{"text_format":"1","workbook":"xlsx","n_sheets":4,"sheets":["前年度登録","中学生記録会","所属コード","1"],"not_rendered":{"charts":0,"images":0,"macros":1,"external_links":0,"defined_names":8,"comments":0,"pivot_tables":0},"unopened":[],"bounds":{"document_bytes":16777216,"sheet_cells":100000,"rows_first":2000,"rows_last":500,"rows_between":2000,"halvings":0,"cell_chars":16384,"cell_head_chars":4096},"cells_cut":0,"cells_raw":0,"read":"whole","date_system":"1900"}

{"sheet":"前年度登録","index":0,"n_rows":191,"n_cols":116,"rows_kept":191,"cut":false,"hidden":false,"merged":[[0,0,2,14],[0,48,0,54],[1,32,1,34],[0,15,0,17],[0,18,0,19],[0,23,0,26],[1,17,2,17],[1,18,1,19],[1,20,2,20],[1,23,2,23],[1,24,2,24],[1,25,1,27]]}
["JAAF登録サイトより貼り付け",null,null,null,null,null,null,null,null,null,null,null,null,null,null,"顧問名",null,null,null,null,"学校名",null,"緊急連絡先（携帯）",null,null,null,null,null,null,null,null,null,null,null,null,null,null,null,null,null,null,null,null,null,null,null,null,"男","左記、白枠は必ず入れて下さい",null,null,null,null,null,null,null,null,null,null,null,null,null,null,null,null,null,null,null,null,null,null,null,null,null,null,null,null,null,null,null,null,null,null,null,null,null,null,null,null,null,null,null,null,null,null,null,null,null,null,null,null,null,null,null,null,null,null,null,null,null,null,null,null,null,null,"去年の登録を貼り付けてください"]
[null,null,null,null,null,null,null,null,null,null,null,null,null,null,null,null,"登録月日","学校コード","登録番号",null,"登録の種類","氏名","フリガナ","学年","性別","生年月日",null,null,null,"所属","学校番号","所属地コード",null,null,null,null,null,null,null,null,null,null,null,null,null,null,null,"女","公認記録記載欄(随時記録が更新された場合は、変更入力して下さい。全ての申し込みに反映されます。正確にお願いいたします",null,null,null,null,null,null,null,null,null,null,null,null,null,null,null,"高跳の記録",null,null,null,null,null,null,null,null,null,null,null,null,null,null,null,null,null,null,null,null,null,null,null,null,null,null,null,null,null,null,null,null,null,null,null,null,null,null,null,null,null,null,null,null,null,null,null,null,null,null,"学年は1つ上げてください"]
[null,null,null,null,null,null,null,null,null,null,null,null,null,null,null,null,"(○／○○）",null,"日本陸連ID","選手番号",null,"（姓と名の間は全角１文字スペース）","（全角カタカナで入力、姓と名の間は全角１文字スペース）",null,null,"年（西暦）","月","日",null,"三重",null,"三重",null,null,null,null,null,null,null,null,null,null,null,null,null,null,null,null,"100m","200m","400m","800m","1500m","2000m","3000m","110mH","100mH","走高跳","棒高跳","走幅跳","三段跳","砲丸投","円盤投","ｼﾞｬﾍﾞﾘｯｸ","四種","110mJH","少年B110mJH","少年B100mYH","100mYH","2年100m","2年1500m","1年100m","1年1500m","1年800m","A-100m","A-200m","A-3000m","A-110mH","A-走高跳","A-砲丸投","AB円盤投","ABCｼﾞｬﾍﾞﾘｯｸ","A-100mH","B-100m","B-1500m","B-110mH","B-走幅跳","B-100mH","C-800m","B-砲丸投","C-100m","C-1500m",null,"C-走幅跳",null,"中学女子3ｋ","中学女子3ｋ","中学男子5ｋ","少年B砲丸投","TRIM","数","空","名","姓","名"]
["JAAF ID","会員名","会員名カナ","性別","登録都道府県コード","登録都道府県名","団体ID","団体名","団体名カナ","団体名略称","生年月日","都道府県(学連)登録番号","旧団体コード","備考","学年",1,null,null,null,null,null,null,null,null,null,null,null,null,{"$f":"DJ4","v":"00"},{"$f":"V1","v":0},{"$f":"IF(AD4=\"\",\"\",VLOOKUP(AD4,所属コード!$A$2:$E$247,2,FALSE))","v":{"$error":"#N/A"}},{"$f":"IF(AD4=\"\",\"\",VLOOKUP(AD4,所属コード!$A$2:$G$189,7,FALSE))","v":{"$error":"#N/A"}},null,null,null,null,null,null,null,{"$f":"IF(Y4=\"\",\"\",IF(Y4=\"男\",1,2))","v":""},{"$f":"ASC(W4)","v":""},"男",null,null,null,null,null,null,null,null,null,null,null,null,null,null,null,null,null,null,null,null,null,null,{"$f":"BF4","v":0},{"$f":"BD4","v":0},{"$f":"BD4","v":0},{"$f":"BD4","v":0},0,{"$f":"AW4","v":0},{"$f":"BA4","v":0},{"$f":"AW4","v":0},{"$f":"BA4","v":0},{"$f":"AZ4","v":0},{"$f":"AW4","v":0},{"$f":"AX4","v":0},{"$f":"BC4","v":0},{"$f":"BD4","v":0},{"$f":"BF4","v":0},{"$f":"BJ4","v":0},{"$f":"BK4","v":0},{"$f":"BL4","v":0},{"$f":"BE4","v":0},{"$f":"AW4","v":0},{"$f":"BA4","v":0},{"$f":"BD4","v":0},{"$f":"BH4","v":0},{"$f":"BE4","v":0},{"$f":"AZ4","v":0},{"$f":"BJ4","v":0},{"$f":"AW4","v":0},{"$f":"BA4","v":0},{"$f":"BE4","v":0},{"$f":"BH4","v":0},{"$f":"BJ4","v":0},{"$f":"BC4","v":0},{"$f":"BB4","v":0},{"$f":"BC4","v":0},{"$f":"BJ4","v":0},{"$f":"TRIM(V4)","v":""},{"$f":"IF(CV4=\"\",\"\",LEN(CV4))","v":""},{"$f":"IF(CV4=\"\",\"\",FIND(\"　\",CV4,1))","v":""},{"$f":"IF(CV4=\"\",\"\",CW4-CX4)","v":""},{"$f":"IF(CV4=\"\",\"\",LEFT(CV4,CX4-1))","v":""},{"$f":"IF(CV4=\"\",\"\",RIGHT(CV4,CY4))","v":""},{"$f":"IF(CV4=\"\",\"\",IF(CW4=4,CONCATENATE(CZ4,\"　\",\"　\",DA4),IF(CW4=6,CONCATENATE(CZ4,DA4),CV4)))","v":""},{"$f":"IF(X4=\"3\",3,IF(X4=\"2\",2,IF(X4=\"1\",1,IF(X4=1,1,IF(X4=2,2,IF(X4=3,3,\"\"))))))","v":""},{"$f":"IF(AB4<10,CONCATENATE(0,AB4),AB4)","v":"0"},{"$f":"Z4","v":0},"成徳",235001,{"$f":"IF(AA4=1,\"01\",IF(AA4=2,\"02\",IF(AA4=3,\"03\",IF(AA4=4,\"04\",IF(AA4=5,\"05\",IF(AA4=6,\"06\",IF(AA4=7,\"07\",IF(AA4=8,\"08\",IF(AA4=9,\"09\",AA4)))))))))","v":0},{"$f":"IF(AB4=1,\"01\",IF(AB4=2,\"02\",IF(AB4=3,\"03\",IF(AB4=4,\"04\",IF(AB4=5,\"05\",IF(AB4=6,\"06\",IF(AB4=7,\"07\",IF(AB4=8,\"08\",IF(AB4=9,\"09\",AB4)))))))))","v":0},{"$f":"CONCATENATE(DH4,DI4)","v":"00"}]
[null,null,null,null,null,null,null,null,null,null,null,null,null,null,null,2,null,null,null,null,null,null,null,null,null,null,null,null,{"$f":"DJ5","v":"00"},{"$f":"IF(V5=\"\",\"\",$AD$4)","v":""},{"$f":"IF(V5=\"\",\"\",$AE$4)","v":""},{"$f":"IF(V5=\"\",\"\",$AF$4)","v":""},null,null,null,null,null,null,null,{"$f":"IF(Y5=\"\",\"\",IF(Y5=\"男\",1,2))","v":""},{"$f":"ASC(W5)","v":""},"女",null,null,null,null,null,null,null,null,null,null,null,null,null,null,null,null,null,null,null,null,null,null,{"$f":"BF5","v":0},0,0,0,0,{"$f":"AW5","v":0},{"$f":"BA5","v":0},{"$f":"AW5","v":0},{"$f":"BA5","v":0},{"$f":"AZ5","v":0},{"$f":"AW5","v":0},0,{"$f":"BC5","v":0},0,{"$f":"BF5","v":0},{"$f":"BJ5","v":0},0,0,{"$f":"BE5","v":0},{"$f":"AW5","v":0},{"$f":"BA5","v":0},{"$f":"BD5","v":0},{"$f":"BH5","v":0},{"$f":"BE5","v":0},{"$f":"AZ5","v":0},{"$f":"BJ5","v":0},{"$f":"AW5","v":0},{"$f":"BA5","v":0},{"$f":"BE5","v":0},{"$f":"BH5","v":0},{"$f":"BJ5","v":0},{"$f":"BC5","v":0},{"$f":"BB5","v":0},0,{"$f":"BJ5","v":0},{"$f":"TRIM(V5)","v":""},{"$f":"IF(CV5=\"\",\"\",LEN(CV5))","v":""},{"$f":"IF(CV5=\"\",\"\",FIND(\"　\",CV5,1))","v":""},{"$f":"IF(CV5=\"\",\"\",CW5-CX5)","v":""},{"$f":"IF(CV5=\"\",\"\",LEFT(CV5,CX5-1))","v":""},{"$f":"IF(CV5=\"\",\"\",RIGHT(CV5,CY5))","v":""},{"$f":"IF(CV5=\"\",\"\",IF(CW5=4,CONCATENATE(CZ5,\"　\",\"　\",DA5),IF(CW5=6,CONCATENATE(CZ5,DA5),CV5)))","v":""},"",{"$f":"IF(AB5<10,CONCATENATE(0,AB5),AB5)","v":"0"},{"$f":"Z5","v":0},"明正",235002,{"$f":"IF(AA5=1,\"01\",IF(AA5=2,\"02\",IF(AA5=3,\"03\",IF(AA5=4,\"04\",IF(AA5=5,\"05\",IF(AA5=6,\"06\",IF(AA5=7,\"07\",IF(AA5=8,\"08\",IF(AA5=9,\"09\",AA5)))))))))","v":0},{"$f":"IF(AB5=1,\"01\",IF(AB5=2,\"02\",IF(AB5=3,\"03\",IF(AB5=4,\"04\",IF(AB5=5,\"05\",IF(AB5=6,\"06\",IF(AB5=7,\"07\",IF(AB5=8,\"08\",IF(AB5=9,\"09\",AB5)))))))))","v":0},{"$f":"CONCATENATE(DH5,DI5)","v":"00"}]
[null,null,null,null,null,null,null,null,null,null,null,null,null,null,null,3,null,null,null,null,null,null,null,null,null,null,null,null,"00",{"$f":"IF(V6=\"\",\"\",$AD$4)","v":""},{"$f":"IF(AD6=\"\",\"\",VLOOKUP(AD6,所属コード!$A$2:$E$189,2,FALSE))","v":""},{"$f":"IF(AD6=\"\",\"\",VLOOKUP(AD6,所属コード!$A$2:$G$189,7,FALSE))","v":""},null,null,null,null,null,null,null,"","","23",null,null,null,null,null,null,null,null,null,null,null,null,null,null,null,null,null,null,null,null,null,null,0,0,0,0,0,0,0,0,0,0,0,0,0,0,0,0,0,0,0,0,0,0,0,0,0,0,0,0,0,0,0,0,0,0,0,"","","","","","","","","0",0,"光風",235003,0,0,"00"]
[null,null,null,null,null,null,null,null,null,null,null,null,null,null,null,4,null,null,null,null,null,null,null,null,null,null,null,null,"00","",{"$f":"IF(AD7=\"\",\"\",VLOOKUP(AD7,所属コード!$A$2:$E$189,2,FALSE))","v":""},{"$f":"IF(AD7=\"\",\"\",VLOOKUP(AD7,所属コード!$A$2:$G$189,7,FALSE))","v":""},null,null,null,null,null,null,null,"","",null,null,null,null,null,null,null,null,null,null,null,null,null,null,null,null,null,null,null,null,null,null,null,0,0,0,0,0,0,0,0,0,0,0,0,0,0,0,0,0,0,0,0,0,0,0,0,0,0,0,0,0,0,0,0,0,0,0,"","","","","","","","","0",0,"陽和",235004,0,0,"00"]
[null,null,null,null,null,null,null,null,null,null,null,null,null,null,null,5,null,null,null,null,null,null,null,null,null,null,null,null,"00","",{"$f":"IF(AD8=\"\",\"\",VLOOKUP(AD8,所属コード!$A$2:$E$189,2,FALSE))","v":""},{"$f":"IF(AD8=\"\",\"\",VLOOKUP(AD8,所属コード!$A$2:$G$189,7,FALSE))","v":""},null,null,null,null,null,null,null,"","",null,null,null,null,null,null,null,null,null,null,null,null,null,null,null,null,null,null,null,null,null,null,null,0,0,0,0,0,0,0,0,0,0,0,0,0,0,0,0,0,0,0,0,0,0,0,0,0,0,0,0,0,0,0,0,0,0,0,"","","","","","","","","0",0,"正和",235005,0,0,"00"]
[null,null,null,null,null,null,null,null,null,null,null,null,null,null,null,6,null,null,null,null,null,null,null,null,null,null,null,null,"00","",{"$f":"IF(AD9=\"\",\"\",VLOOKUP(AD9,所属コード!$A$2:$E$189,2,FALSE))","v":""},{"$f":"IF(AD9=\"\",\"\",VLOOKUP(AD9,所属コード!$A$2:$G$189,7,FALSE))","v":""},null,null,null,null,null,null,null,"","",null,null,null,null,null,null,null,null,null,null,null,null,null,null,null,null,null,null,null,null,null,null,null,0,0,0,0,0,0,0,0,0,0,0,0,0,0,0,0,0,0,0,0,0,0,0,0,0,0,0,0,0,0,0,0,0,0,0,"","","","","","","","","0",0,"陵成",235006,0,0,"00"]
[null,null,null,null,null,null,null,null,null,null,null,null,null,null,null,7,null,null,null,null,null,null,null,null,null,null,null,null,"00","",{"$f":"IF(AD10=\"\",\"\",VLOOKUP(AD10,所属コード!$A$2:$E$189,2,FALSE))","v":""},{"$f":"IF(AD10=\"\",\"\",VLOOKUP(AD10,所属コード!$A$2:$G$189,7,FALSE))","v":""},null,null,null,null,null,null,null,"","",null,null,null,null,null,null,null,null,null,null,null,null,null,null,null,null,null,null,null,null,null,null,null,0,0,0,0,0,0,0,0,0,0,0,0,0,0,0,0,0,0,0,0,0,0,0,0,0,0,0,0,0,0,0,0,0,0,0,"","","","","","","","","0",0,"光陵",235007,0,0,"00"]
[null,null,null,null,null,null,null,null,null,null,null,null,null,null,null,8,null,null,null,null,null,null,null,null,null,null,null,null,"00","",{"$f":"IF(AD11=\"\",\"\",VLOOKUP(AD11,所属コード!$A$2:$E$189,2,FALSE))","v":""},{"$f":"IF(AD11=\"\",\"\",VLOOKUP(AD11,所属コード!$A$2:$G$189,7,FALSE))","v":""},null,null,null,null,null,null,null,"","",null,null,null,null,null,null,null,null,null,null,null,null,null,null,null,null,null,null,null,null,null,null,null,0,0,0,0,0,0,0,0,0,0,0,0,0,0,0,0,0,0,0,0,0,0,0,0,0,0,0,0,0,0,0,0,0,0,0,"","","","","","","","","0",0,"多度",235008,0,0,"00"]
[null,null,null,null,null,null,null,null,null,null,null,null,null,null,null,9,null,null,null,null,null,null,null,null,null,null,null,null,"00","",{"$f":"IF(AD12=\"\",\"\",VLOOKUP(AD12,所属コード!$A$2:$E$189,2,FALSE))","v":""},{"$f":"IF(AD12=\"\",\"\",VLOOKUP(AD12,所属コード!$A$2:$G$189,7,FALSE))","v":""},null,null,null,null,null,null,null,"","",null,null,null,null,null,null,null,null,null,null,null,null,null,null,null,null,null,null,null,null,null,null,null,0,0,0,0,0,0,0,0,0,0,0,0,0,0,0,0,0,0,0,0,0,0,0,0,0,0,0,0,0,0,0,0,0,0,0,"","","","","","","","","0",0,"長島",235009,0,0,"00"]
[null,null,null,null,null,null,null,null,null,null,null,null,null,null,null,10,null,null,null,null,null,null,null,null,null,null,null,null,"00","",{"$f":"IF(AD13=\"\",\"\",VLOOKUP(AD13,所属コード!$A$2:$E$189,2,FALSE))","v":""},{"$f":"IF(AD13=\"\",\"\",VLOOKUP(AD13,所属コード!$A$2:$G$189,7,FALSE))","v":""},null,null,null,null,null,null,null,"","",null,null,null,null,null,null,null,null,null,null,null,null,null,null,null,null,null,null,null,null,null,null,null,0,0,0,0,0,0,0,0,0,0,0,0,0,0,0,0,0,0,0,0,0,0,0,0,0,0,0,0,0,0,0,0,0,0,0,"","","","","","","","","0",0,"津田学園",235010,0,0,"00"]
[null,null,null,null,null,null,null,null,null,null,null,null,null,null,null,11,null,null,null,null,null,null,null,null,null,null,null,null,"00","",{"$f":"IF(AD14=\"\",\"\",VLOOKUP(AD14,所属コード!$A$2:$E$189,2,FALSE))","v":""},{"$f":"IF(AD14=\"\",\"\",VLOOKUP(AD14,所属コード!$A$2:$G$189,7,FALSE))","v":""},null,null,null,null,null,null,null,"","",null,null,null,null,null,null,null,null,null,null,null,null,null,null,null,null,null,null,null,null,null,null,null,0,0,0,0,0,0,0,0,0,0,0,0,0,0,0,0,0,0,0,0,0,0,0,0,0,0,0,0,0,0,0,0,0,0,0,"","","","","","","","","0",0,"木曽岬",235011,0,0,"00"]
[null,null,null,null,null,null,null,null,null,null,null,null,null,null,null,12,null,null,null,null,null,null,null,null,null,null,null,null,"00","",{"$f":"IF(AD15=\"\",\"\",VLOOKUP(AD15,所属コード!$A$2:$E$189,2,FALSE))","v":""},{"$f":"IF(AD15=\"\",\"\",VLOOKUP(AD15,所属コード!$A$2:$G$189,7,FALSE))","v":""},null,null,null,null,null,null,null,"","",null,null,null,null,null,null,null,null,null,null,null,null,null,null,null,null,null,null,null,null,null,null,null,0,0,0,0,0,0,0,0,0,0,0,0,0,0,0,0,0,0,0,0,0,0,0,0,0,0,0,0,0,0,0,0,0,0,0,"","","","","","","","","0",0,"北勢",235012,0,0,"00"]
[null,null,null,null,null,null,null,null,null,null,null,null,null,null,null,13,null,null,null,null,null,null,null,null,null,null,null,null,"00","",{"$f":"IF(AD16=\"\",\"\",VLOOKUP(AD16,所属コード!$A$2:$E$189,2,FALSE))","v":""},{"$f":"IF(AD16=\"\",\"\",VLOOKUP(AD16,所属コード!$A$2:$G$189,7,FALSE))","v":""},null,null,null,null,null,null,null,"","",null,null,null,null,null,null,null,null,null,null,null,null,null,null,null,null,null,null,null,null,null,null,null,0,0,0,0,0,0,0,0,0,0,0,0,0,0,0,0,0,0,0,0,0,0,0,0,0,0,0,0,0,0,0,0,0,0,0,"","","","","","","","","0",0,"員弁",235013,0,0,"00"]
[null,null,null,null,null,null,null,null,null,null,null,null,null,null,null,14,null,null,null,null,null,null,null,null,null,null,null,null,"00","",{"$f":"IF(AD17=\"\",\"\",VLOOKUP(AD17,所属コード!$A$2:$E$189,2,FALSE))","v":""},{"$f":"IF(AD17=\"\",\"\",VLOOKUP(AD17,所属コード!$A$2:$G$189,7,FALSE))","v":""},null,null,null,null,null,null,null,"","",null,null,null,null,null,null,null,null,null,null,null,null,null,null,null,null,null,null,null,null,null,null,null,0,0,0,0,0,0,0,0,0,0,0,0,0,0,0,0,0,0,0,0,0,0,0,0,0,0,0,0,0,0,0,0,0,0,0,"","","","","","","","","0",0,"大安",235014,0,0,"00"]
[null,null,null,null,null,null,null,null,null,null,null,null,null,null,null,15,null,null,null,null,null,null,null,null,null,null,null,null,"00","",{"$f":"IF(AD18=\"\",\"\",VLOOKUP(AD18,所属コード!$A$2:$E$189,2,FALSE))","v":""},{"$f":"IF(AD18=\"\",\"\",VLOOKUP(AD18,所属コード!$A$2:$G$189,7,FALSE))","v":""},null,null,null,null,null,null,null,"","",null,null,null,null,null,null,null,null,null,null,null,null,null,null,null,null,null,null,null,null,null,null,null,0,0,0,0,0,0,0,0,0,0,0,0,0,0,0,0,0,0,0,0,0,0,0,0,0,0,0,0,0,0,0,0,0,0,0,"","","","","","","","","0",0,"東員第一",235015,0,0,"00"]
[null,null,null,null,null,null,null,null,null,null,null,null,null,null,null,16,null,null,null,null,null,null,null,null,null,null,null,null,"00","",{"$f":"IF(AD19=\"\",\"\",VLOOKUP(AD19,所属コード!$A$2:$E$189,2,FALSE))","v":""},{"$f":"IF(AD19=\"\",\"\",VLOOKUP(AD19,所属コード!$A$2:$G$189,7,FALSE))","v":""},null,null,null,null,null,null,null,"","",null,null,null,null,null,null,null,null,null,null,null,null,null,null,null,null,null,null,null,null,null,null,null,0,0,0,0,0,0,0,0,0,0,0,0,0,0,0,0,0,0,0,0,0,0,0,0,0,0,0,0,0,0,0,0,0,0,0,"","","","","","","","","0",0,"東員第二",235016,0,0,"00"]
[null,null,null,null,null,null,null,null,null,null,null,null,null,null,null,17,null,null,null,null,null,null,null,null,null,null,null,null,"00","",{"$f":"IF(AD20=\"\",\"\",VLOOKUP(AD20,所属コード!$A$2:$E$189,2,FALSE))","v":""},{"$f":"IF(AD20=\"\",\"\",VLOOKUP(AD20,所属コード!$A$2:$G$189,7,FALSE))","v":""},null,null,null,null,null,null,null,"","",null,null,null,null,null,null,null,null,null,null,null,null,null,null,null,null,null,null,null,null,null,null,null,0,0,0,0,0,0,0,0,0,0,0,0,0,0,0,0,0,0,0,0,0,0,0,0,0,0,0,0,0,0,0,0,0,0,0,"","","","","","","","","0",0,"藤原",235017,0,0,"00"]
[null,null,null,null,null,null,null,null,null,null,null,null,null,null,null,18,null,null,null,null,null,null,null,null,null,null,null,null,"00","",{"$f":"IF(AD21=\"\",\"\",VLOOKUP(AD21,所属コード!$A$2:$E$189,2,FALSE))","v":""},{"$f":"IF(AD21=\"\",\"\",VLOOKUP(AD21,所属コード!$A$2:$G$189,7,FALSE))","v":""},null,null,null,null,null,null,null,"","",null,null,null,null,null,null,null,null,null,null,null,null,null,null,null,null,null,null,null,null,null,null,null,0,0,0,0,0,0,0,0,0,0,0,0,0,0,0,0,0,0,0,0,0,0,0,0,0,0,0,0,0,0,0,0,0,0,0,"","","","","","","","","0",0,"中部",235018,0,0,"00"]
[null,null,null,null,null,null,null,null,null,null,null,null,null,null,null,19,null,null,null,null,null,null,null,null,null,null,null,null,"00","",{"$f":"IF(AD22=\"\",\"\",VLOOKUP(AD22,所属コード!$A$2:$E$189,2,FALSE))","v":""},{"$f":"IF(AD22=\"\",\"\",VLOOKUP(AD22,所属コード!$A$2:$G$189,7,FALSE))","v":""},null,null,null,null,null,null,null,"","",null,null,null,null,null,null,null,null,null,null,null,null,null,null,null,null,null,null,null,null,null,null,null,0,0,0,0,0,0,0,0,0,0,0,0,0,0,0,0,0,0,0,0,0,0,0,0,0,0,0,0,0,0,0,0,0,0,0,"","","","","","","","","0",0,"港",235019,0,0,"00"]
[null,null,null,null,null,null,null,null,null,null,null,null,null,null,null,20,null,null,null,null,null,null,null,null,null,null,null,null,"00","",{"$f":"IF(AD23=\"\",\"\",VLOOKUP(AD23,所属コード!$A$2:$E$189,2,FALSE))","v":""},{"$f":"IF(AD23=\"\",\"\",VLOOKUP(AD23,所属コード!$A$2:$G$189,7,FALSE))","v":""},null,null,null,null,null,null,null,"","",null,null,null,null,null,null,null,null,null,null,null,null,null,null,null,null,null,null,null,null,null,null,null,0,0,0,0,0,0,0,0,0,0,0,0,0,0,0,0,0,0,0,0,0,0,0,0,0,0,0,0,0,0,0,0,0,0,0,"","","","","","","","","0",0,"塩浜",235020,0,0,"00"]
[null,null,null,null,null,null,null,null,null,null,null,null,null,null,null,21,null,null,null,null,null,null,null,null,null,null,null,null,"00","",{"$f":"IF(AD24=\"\",\"\",VLOOKUP(AD24,所属コード!$A$2:$E$189,2,FALSE))","v":""},{"$f":"IF(AD24=\"\",\"\",VLOOKUP(AD24,所属コード!$A$2:$G$189,7,FALSE))","v":""},null,null,null,null,null,null,null,"","",null,null,null,null,null,null,null,null,null,null,null,null,null,null,null,null,null,null,null,null,null,null,null,0,0,0,0,0,0,0,0,0,0,0,0,0,0,0,0,0,0,0,0,0,0,0,0,0,0,0,0,0,0,0,0,0,0,0,"","","","","","","","","0",0,"山手",235021,0,0,"00"]
[null,null,null,null,null,null,null,null,null,null,null,null,null,null,null,22,null,null,null,null,null,null,null,null,null,null,null,null,"00","",{"$f":"IF(AD25=\"\",\"\",VLOOKUP(AD25,所属コード!$A$2:$E$189,2,FALSE))","v":""},{"$f":"IF(AD25=\"\",\"\",VLOOKUP(AD25,所属コード!$A$2:$G$189,7,FALSE))","v":""},null,null,null,null,null,null,null,"","",null,null,null,null,null,null,null,null,null,null,null,null,null,null,null,null,null,null,null,null,null,null,null,0,0,0,0,0,0,0,0,0,0,0,0,0,0,0,0,0,0,0,0,0,0,0,0,0,0,0,0,0,0,0,0,0,0,0,"","","","","","","","","0",0,"富洲原",235022,0,0,"00"]
[null,null,null,null,null,null,null,null,null,null,null,null,null,null,null,23,null,null,null,null,null,null,null,null,null,null,null,null,"00","",{"$f":"IF(AD26=\"\",\"\",VLOOKUP(AD26,所属コード!$A$2:$E$189,2,FALSE))","v":""},{"$f":"IF(AD26=\"\",\"\",VLOOKUP(AD26,所属コード!$A$2:$G$189,7,FALSE))","v":""},null,null,null,null,null,null,null,"","",null,null,null,null,null,null,null,null,null,null,null,null,null,null,null,null,null,null,null,null,null,null,null,0,0,0,0,0,0,0,0,0,0,0,0,0,0,0,0,0,0,0,0,0,0,0,0,0,0,0,0,0,0,0,0,0,0,0,"","","","","","","","","0",0,"富田",235023,0,0,"00"]
[null,null,null,null,null,null,null,null,null,null,null,null,null,null,null,24,null,null,null,null,null,null,null,null,null,null,null,null,"00","",{"$f":"IF(AD27=\"\",\"\",VLOOKUP(AD27,所属コード!$A$2:$E$189,2,FALSE))","v":""},{"$f":"IF(AD27=\"\",\"\",VLOOKUP(AD27,所属コード!$A$2:$G$189,7,FALSE))","v":""},null,null,null,null,null,null,null,"","",null,null,null,null,null,null,null,null,null,null,null,null,null,null,null,null,null,null,null,null,null,null,null,0,0,0,0,0,0,0,0,0,0,0,0,0,0,0,0,0,0,0,0,0,0,0,0,0,0,0,0,0,0,0,0,0,0,0,"","","","","","","","","0",0,"笹川",235024,0,0,"00"]
[null,null,null,null,null,null,null,null,null,null,null,null,null,null,null,25,null,null,null,null,null,null,null,null,null,null,null,null,"00","",{"$f":"IF(AD28=\"\",\"\",VLOOKUP(AD28,所属コード!$A$2:$E$189,2,FALSE))","v":""},{"$f":"IF(AD28=\"\",\"\",VLOOKUP(AD28,所属コード!$A$2:$G$189,7,FALSE))","v":""},null,null,null,null,null,null,null,"","",null,null,null,null,null,null,null,null,null,null,null,null,null,null,null,null,null,null,null,null,null,null,null,0,0,0,0,0,0,0,0,0,0,0,0,0,0,0,0,0,0,0,0,0,0,0,0,0,0,0,0,0,0,0,0,0,0,0,"","","","","","","","","0",0,"四日市南",235025,0,0,"00"]
[null,null,null,null,null,null,null,null,null,null,null,null,null,null,null,26,null,null,null,null,null,null,null,null,null,null,null,null,"00","",{"$f":"IF(AD29=\"\",\"\",VLOOKUP(AD29,所属コード!$A$2:$E$189,2,FALSE))","v":""},{"$f":"IF(AD29=\"\",\"\",VLOOKUP(AD29,所属コード!$A$2:$G$189,7,FALSE))","v":""},null,null,null,null,null,null,null,"","",null,null,null,null,null,null,null,null,null,null,null,null,null,null,null,null,null,null,null,null,null,null,null,0,0,0,0,0,0,0,0,0,0,0,0,0,0,0,0,0,0,0,0,0,0,0,0,0,0,0,0,0,0,0,0,0,0,0,"","","","","","","","","0",0,"西陵",235026,0,0,"00"]
[null,null,null,null,null,null,null,null,null,null,null,null,null,null,null,27,null,null,null,null,null,null,null,null,null,null,null,null,"00","",{"$f":"IF(AD30=\"\",\"\",VLOOKUP(AD30,所属コード!$A$2:$E$189,2,FALSE))","v":""},{"$f":"IF(AD30=\"\",\"\",VLOOKUP(AD30,所属コード!$A$2:$G$189,7,FALSE))","v":""},null,null,null,null,null,null,null,"","",null,null,null,null,null,null,null,null,null,null,null,null,null,null,null,null,null,null,null,null,null,null,null,0,0,0,0,0,0,0,0,0,0,0,0,0,0,0,0,0,0,0,0,0,0,0,0,0,0,0,0,0,0,0,0,0,0,0,"","","","","","","","","0",0,"三滝",235027,0,0,"00"]
[null,null,null,null,null,null,null,null,null,null,null,null,null,null,null,28,null,null,null,null,null,null,null,null,null,null,null,null,"00","",{"$f":"IF(AD31=\"\",\"\",VLOOKUP(AD31,所属コード!$A$2:$E$189,2,FALSE))","v":""},{"$f":"IF(AD31=\"\",\"\",VLOOKUP(AD31,所属コード!$A$2:$G$189,7,FALSE))","v":""},null,null,null,null,null,null,null,"","",null,null,null,null,null,null,null,null,null,null,null,null,null,null,null,null,null,null,null,null,null,null,null,0,0,0,0,0,0,0,0,0,0,0,0,0,0,0,0,0,0,0,0,0,0,0,0,0,0,0,0,0,0,0,0,0,0,0,"","","","","","","","","0",0,"大池",235028,0,0,"00"]
[null,null,null,null,null,null,null,null,null,null,null,null,null,null,null,29,null,null,null,null,null,null,null,null,null,null,null,null,"00","",{"$f":"IF(AD32=\"\",\"\",VLOOKUP(AD32,所属コード!$A$2:$E$189,2,FALSE))","v":""},{"$f":"IF(AD32=\"\",\"\",VLOOKUP(AD32,所属コード!$A$2:$G$189,7,FALSE))","v":""},null,null,null,null,null,null,null,"","",null,null,null,null,null,null,null,null,null,null,null,null,null,null,null,null,null,null,null,null,null,null,null,0,0,0,0,0,0,0,0,0,0,0,0,0,0,0,0,0,0,0,0,0,0,0,0,0,0,0,0,0,0,0,0,0,0,0,"","","","","","","","","0",0,"朝明",235029,0,0,"00"]
[null,null,null,null,null,null,null,null,null,null,null,null,null,null,null,30,null,null,null,null,null,null,null,null,null,null,null,null,"00","",{"$f":"IF(AD33=\"\",\"\",VLOOKUP(AD33,所属コード!$A$2:$E$189,2,FALSE))","v":""},{"$f":"IF(AD33=\"\",\"\",VLOOKUP(AD33,所属コード!$A$2:$G$189,7,FALSE))","v":""},null,null,null,null,null,null,null,"","",null,null,null,null,null,null,null,null,null,null,null,null,null,null,null,null,null,null,null,null,null,null,null,0,0,0,0,0,0,0,0,0,0,0,0,0,0,0,0,0,0,0,0,0,0,0,0,0,0,0,0,0,0,0,0,0,0,0,"","","","","","","","","0",0,"保々",235030,0,0,"00"]
[null,null,null,null,null,null,null,null,null,null,null,null,null,null,null,31,null,null,null,null,null,null,null,null,null,null,null,null,"00","",{"$f":"IF(AD34=\"\",\"\",VLOOKUP(AD34,所属コード!$A$2:$E$189,2,FALSE))","v":""},{"$f":"IF(AD34=\"\",\"\",VLOOKUP(AD34,所属コード!$A$2:$G$189,7,FALSE))","v":""},null,null,null,null,null,null,null,"","",null,null,null,null,null,null,null,null,null,null,null,null,null,null,null,null,null,null,null,null,null,null,null,0,0,0,0,0,0,0,0,0,0,0,0,0,0,0,0,0,0,0,0,0,0,0,0,0,0,0,0,0,0,0,0,0,0,0,"","","","","","","","","0",0,"常磐",235031,0,0,"00"]
[null,null,null,null,null,null,null,null,null,null,null,null,null,null,null,32,null,null,null,null,null,null,null,null,null,null,null,null,"00","",{"$f":"IF(AD35=\"\",\"\",VLOOKUP(AD35,所属コード!$A$2:$E$189,2,FALSE))","v":""},{"$f":"IF(AD35=\"\",\"\",VLOOKUP(AD35,所属コード!$A$2:$G$189,7,FALSE))","v":""},null,null,null,null,null,null,null,"","",null,null,null,null,null,null,null,null,null,null,null,null,null,null,null,null,null,null,null,null,null,null,null,0,0,0,0,0,0,0,0,0,0,0,0,0,0,0,0,0,0,0,0,0,0,0,0,0,0,0,0,0,0,0,0,0,0,0,"","","","","","","","","0",0,"西笹川",235032,0,0,"00"]
[null,null,null,null,null,null,null,null,null,null,null,null,null,null,null,33,null,null,null,null,null,null,null,null,null,null,null,null,"00","",{"$f":"IF(AD36=\"\",\"\",VLOOKUP(AD36,所属コード!$A$2:$E$189,2,FALSE))","v":""},{"$f":"IF(AD36=\"\",\"\",VLOOKUP(AD36,所属コード!$A$2:$G$189,7,FALSE))","v":""},null,null,null,null,null,null,null,"","",null,null,null,null,null,null,null,null,null,null,null,null,null,null,null,null,null,null,null,null,null,null,null,0,0,0,{"$f":"BD36","v":0},0,0,0,0,0,0,0,0,0,0,0,0,0,0,0,0,0,0,0,0,0,0,0,0,0,0,0,0,0,0,0,"","","","","","","","","0",0,"三重平",235033,0,0,"00"]
[null,null,null,null,null,null,null,null,null,null,null,null,null,null,null,34,null,null,null,null,null,null,null,null,null,null,null,null,"00","",{"$f":"IF(AD37=\"\",\"\",VLOOKUP(AD37,所属コード!$A$2:$E$189,2,FALSE))","v":""},{"$f":"IF(AD37=\"\",\"\",VLOOKUP(AD37,所属コード!$A$2:$G$189,7,FALSE))","v":""},null,null,null,null,null,null,null,"","",null,null,null,null,null,null,null,null,null,null,null,null,null,null,null,null,null,null,null,null,null,null,null,0,0,0,0,0,0,0,0,0,0,0,0,0,0,0,0,0,0,0,0,0,0,0,0,0,0,0,0,0,0,0,0,0,0,0,"","","","","","","","","0",0,"羽津",235034,0,0,"00"]
[null,null,null,null,null,null,null,null,null,null,null,null,null,null,null,35,null,null,null,null,null,null,null,null,null,null,null,null,"00","",{"$f":"IF(AD38=\"\",\"\",VLOOKUP(AD38,所属コード!$A$2:$E$189,2,FALSE))","v":""},{"$f":"IF(AD38=\"\",\"\",VLOOKUP(AD38,所属コード!$A$2:$G$189,7,FALSE))","v":""},null,null,null,null,null,null,null,"","",null,null,null,null,null,null,null,null,null,null,null,null,null,null,null,null,null,null,null,null,null,null,null,0,0,0,0,0,0,0,0,0,0,0,0,0,0,0,0,0,0,0,0,0,0,0,0,0,0,0,0,0,0,0,0,0,0,0,"","","","","","","","","0",0,"西朝明",235035,0,0,"00"]
[null,null,null,null,null,null,null,null,null,null,null,null,null,null,null,36,null,null,null,null,null,null,null,null,null,null,null,null,"00","",{"$f":"IF(AD39=\"\",\"\",VLOOKUP(AD39,所属コード!$A$2:$E$189,2,FALSE))","v":""},{"$f":"IF(AD39=\"\",\"\",VLOOKUP(AD39,所属コード!$A$2:$G$189,7,FALSE))","v":""},null,null,null,null,null,null,null,"","",null,null,null,null,null,null,null,null,null,null,null,null,null,null,null,null,null,null,null,null,null,null,null,0,0,0,0,0,0,0,0,0,0,0,0,0,0,0,0,0,0,0,0,0,0,0,0,0,0,0,0,0,0,0,0,0,0,0,"","","","","","","","","0",0,"桜",235036,0,0,"00"]
[null,null,null,null,null,null,null,null,null,null,null,null,null,null,null,37,null,null,null,null,null,null,null,null,null,null,null,null,"00","",{"$f":"IF(AD40=\"\",\"\",VLOOKUP(AD40,所属コード!$A$2:$E$189,2,FALSE))","v":""},{"$f":"IF(AD40=\"\",\"\",VLOOKUP(AD40,所属コード!$A$2:$G$189,7,FALSE))","v":""},null,null,null,null,null,null,null,"","",null,null,null,null,null,null,null,null,null,null,null,null,null,null,null,null,null,null,null,null,null,null,null,0,0,0,0,0,0,0,0,0,0,0,0,0,0,0,0,0,0,0,0,0,0,0,0,0,0,0,0,0,0,0,0,0,0,0,"","","","","","","","","0",0,"内部",235037,0,0,"00"]
[null,null,null,null,null,null,null,null,null,null,null,null,null,null,null,38,null,null,null,null,null,null,null,null,null,null,null,null,"00","",{"$f":"IF(AD41=\"\",\"\",VLOOKUP(AD41,所属コード!$A$2:$E$189,2,FALSE))","v":""},{"$f":"IF(AD41=\"\",\"\",VLOOKUP(AD41,所属コード!$A$2:$G$189,7,FALSE))","v":""},null,null,null,null,null,null,null,"","",null,null,null,null,null,null,null,null,null,null,null,null,null,null,null,null,null,null,null,null,null,null,null,0,0,0,0,0,0,0,0,0,0,0,0,0,0,0,0,0,0,0,0,0,0,0,0,0,0,0,0,0,0,0,0,0,0,0,"","","","","","","","","0",0,"暁",235038,0,0,"00"]
[null,null,null,null,null,null,null,null,null,null,null,null,null,null,null,39,null,null,null,null,null,null,null,null,null,null,null,null,"00","",{"$f":"IF(AD42=\"\",\"\",VLOOKUP(AD42,所属コード!$A$2:$E$189,2,FALSE))","v":""},{"$f":"IF(AD42=\"\",\"\",VLOOKUP(AD42,所属コード!$A$2:$G$189,7,FALSE))","v":""},null,null,null,null,null,null,null,"","",null,null,null,null,null,null,null,null,null,null,null,null,null,null,null,null,null,null,null,null,null,null,null,0,0,0,0,0,0,0,0,0,0,0,0,0,0,0,0,0,0,0,0,0,0,0,0,0,0,0,0,0,0,0,0,0,0,0,"","","","","","","","","0",0,"海星",235039,0,0,"00"]
[null,null,null,null,null,null,null,null,null,null,null,null,null,null,null,40,null,null,null,null,null,null,null,null,null,null,null,null,"00","",{"$f":"IF(AD43=\"\",\"\",VLOOKUP(AD43,所属コード!$A$2:$E$189,2,FALSE))","v":""},{"$f":"IF(AD43=\"\",\"\",VLOOKUP(AD43,所属コード!$A$2:$G$189,7,FALSE))","v":""},null,null,null,null,null,null,null,"","",null,null,null,null,null,null,null,null,null,null,null,null,null,null,null,null,null,null,null,null,null,null,null,0,0,0,0,0,0,0,0,0,0,0,0,0,0,0,0,0,0,0,0,0,0,0,0,0,0,0,0,0,0,0,0,0,0,0,"","","","","","","","","0",0,"ﾒﾘﾉｰﾙ",235040,0,0,"00"]
[null,null,null,null,null,null,null,null,null,null,null,null,null,null,null,41,null,null,null,null,null,null,null,null,null,null,null,null,"00","",{"$f":"IF(AD44=\"\",\"\",VLOOKUP(AD44,所属コード!$A$2:$E$189,2,FALSE))","v":""},{"$f":"IF(AD44=\"\",\"\",VLOOKUP(AD44,所属コード!$A$2:$G$189,7,FALSE))","v":""},null,null,null,null,null,null,null,"","",null,null,null,null,null,null,null,null,null,null,null,null,null,null,null,null,null,null,null,null,null,null,null,0,0,0,0,0,0,0,0,0,0,0,0,0,0,0,0,0,0,0,0,0,0,0,0,0,0,0,0,0,0,0,0,0,0,0,"","","","","","","","","0",0,"菰野",235041,0,0,"00"]
[null,null,null,null,null,null,null,null,null,null,null,null,null,null,null,42,null,null,null,null,null,null,null,null,null,null,null,null,"00","",{"$f":"IF(AD45=\"\",\"\",VLOOKUP(AD45,所属コード!$A$2:$E$189,2,FALSE))","v":""},{"$f":"IF(AD45=\"\",\"\",VLOOKUP(AD45,所属コード!$A$2:$G$189,7,FALSE))","v":""},null,null,null,null,null,null,null,"","",null,null,null,null,null,null,null,null,null,null,null,null,null,null,null,null,null,null,null,null,null,null,null,0,0,0,0,0,0,0,0,0,0,0,0,0,0,0,0,0,0,0,0,0,0,0,0,0,0,0,0,0,0,0,0,0,0,0,"","","","","","","","","0",0,"八風",235042,0,0,"00"]
[null,null,null,null,null,null,null,null,null,null,null,null,null,null,null,43,null,null,null,null,null,null,null,null,null,null,null,null,"00","",{"$f":"IF(AD46=\"\",\"\",VLOOKUP(AD46,所属コード!$A$2:$E$189,2,FALSE))","v":""},{"$f":"IF(AD46=\"\",\"\",VLOOKUP(AD46,所属コード!$A$2:$G$189,7,FALSE))","v":""},null,null,null,null,null,null,null,"","",null,null,null,null,null,null,null,null,null,null,null,null,null,null,null,null,null,null,null,null,null,null,null,0,0,0,0,0,0,0,0,0,0,0,0,0,0,0,0,0,0,0,0,0,0,0,0,0,0,0,0,0,0,0,0,0,0,0,"","","","","","","","","0",0,"楠",235043,0,0,"00"]
[null,null,null,null,null,null,null,null,null,null,null,null,null,null,null,44,null,null,null,null,null,null,null,null,null,null,null,null,"00","",{"$f":"IF(AD47=\"\",\"\",VLOOKUP(AD47,所属コード!$A$2:$E$189,2,FALSE))","v":""},{"$f":"IF(AD47=\"\",\"\",VLOOKUP(AD47,所属コード!$A$2:$G$189,7,FALSE))","v":""},null,null,null,null,null,null,null,"","",null,null,null,null,null,null,null,null,null,null,null,null,null,null,null,null,null,null,null,null,null,null,null,0,0,0,0,0,0,0,0,0,0,0,0,0,0,0,0,0,0,0,0,0,0,0,0,0,0,0,0,0,0,0,0,0,0,0,"","","","","","","","","0",0,"朝日",235044,0,0,"00"]
[null,null,null,null,null,null,null,null,null,null,null,null,null,null,null,45,null,null,null,null,null,null,null,null,null,null,null,null,"00","",{"$f":"IF(AD48=\"\",\"\",VLOOKUP(AD48,所属コード!$A$2:$E$189,2,FALSE))","v":""},{"$f":"IF(AD48=\"\",\"\",VLOOKUP(AD48,所属コード!$A$2:$G$189,7,FALSE))","v":""},null,null,null,null,null,null,null,"","",null,null,null,null,null,null,null,null,null,null,null,null,null,null,null,null,null,null,null,null,null,null,null,0,0,0,0,0,0,0,0,0,0,0,0,0,0,0,0,0,0,0,0,0,0,0,0,0,0,0,0,0,0,0,0,0,0,0,"","","","","","","","","0",0,"川越",235045,0,0,"00"]
[null,null,null,null,null,null,null,null,null,null,null,null,null,null,null,46,null,null,null,null,null,null,null,null,null,null,null,null,"00","",{"$f":"IF(AD49=\"\",\"\",VLOOKUP(AD49,所属コード!$A$2:$E$189,2,FALSE))","v":""},{"$f":"IF(AD49=\"\",\"\",VLOOKUP(AD49,所属コード!$A$2:$G$189,7,FALSE))","v":""},null,null,null,null,null,null,null,"","",null,null,null,null,null,null,null,null,null,null,null,null,null,null,null,null,null,null,null,null,null,null,null,0,0,0,0,0,0,0,0,0,0,0,0,0,0,0,0,0,0,0,0,0,0,0,0,0,0,0,0,0,0,0,0,0,0,0,"","","","","","","","","0",0,"平田野",235046,0,0,"00"]
[null,null,null,null,null,null,null,null,null,null,null,null,null,null,null,47,null,null,null,null,null,null,null,null,null,null,null,null,"00","",{"$f":"IF(AD50=\"\",\"\",VLOOKUP(AD50,所属コード!$A$2:$E$189,2,FALSE))","v":""},{"$f":"IF(AD50=\"\",\"\",VLOOKUP(AD50,所属コード!$A$2:$G$189,7,FALSE))","v":""},null,null,null,null,null,null,null,"","",null,null,null,null,null,null,null,null,null,null,null,null,null,null,null,null,null,null,null,null,null,null,null,0,0,0,0,0,0,0,0,0,0,0,0,0,0,0,0,0,0,0,0,0,0,0,0,0,0,0,0,0,0,0,0,0,0,0,"","","","","","","","","0",0,"白鳥",235047,0,0,"00"]
[null,null,null,null,null,null,null,null,null,null,null,null,null,null,null,48,null,null,null,null,null,null,null,null,null,null,null,null,"00","",{"$f":"IF(AD51=\"\",\"\",VLOOKUP(AD51,所属コード!$A$2:$E$189,2,FALSE))","v":""},{"$f":"IF(AD51=\"\",\"\",VLOOKUP(AD51,所属コード!$A$2:$G$189,7,FALSE))","v":""},null,null,null,null,null,null,null,"","",null,null,null,null,null,null,null,null,null,null,null,null,null,null,null,null,null,null,null,null,null,null,null,0,0,0,0,0,0,0,0,0,0,0,0,0,0,0,0,0,0,0,0,0,0,0,0,0,0,0,0,0,0,0,0,0,0,0,"","","","","","","","","0",0,"神戸",235048,0,0,"00"]
[null,null,null,null,null,null,null,null,null,null,null,null,null,null,null,49,null,null,null,null,null,null,null,null,null,null,null,null,"00","",{"$f":"IF(AD52=\"\",\"\",VLOOKUP(AD52,所属コード!$A$2:$E$189,2,FALSE))","v":""},{"$f":"IF(AD52=\"\",\"\",VLOOKUP(AD52,所属コード!$A$2:$G$189,7,FALSE))","v":""},null,null,null,null,null,null,null,"","",null,null,null,null,null,null,null,null,null,null,null,null,null,null,null,null,null,null,null,null,null,null,null,0,0,0,0,0,0,0,0,0,0,0,0,0,0,0,0,0,0,0,0,0,0,0,0,0,0,0,0,0,0,0,0,0,0,0,"","","","","","","","","0",0,"大木",235049,0,0,"00"]
[null,null,null,null,null,null,null,null,null,null,null,null,null,null,null,50,null,null,null,null,null,null,null,null,null,null,null,null,"00","",{"$f":"IF(AD53=\"\",\"\",VLOOKUP(AD53,所属コード!$A$2:$E$189,2,FALSE))","v":""},{"$f":"IF(AD53=\"\",\"\",VLOOKUP(AD53,所属コード!$A$2:$G$189,7,FALSE))","v":""},null,null,null,null,null,null,null,"","",null,null,null,null,null,null,null,null,null,null,null,null,null,null,null,null,null,null,null,null,null,null,null,0,0,0,0,0,0,0,0,0,0,0,0,0,0,0,0,0,0,0,0,0,0,0,0,0,0,0,0,0,0,0,0,0,0,0,"","","","","","","","","0",0,"千代崎",235050,0,0,"00"]
[null,null,null,null,null,null,null,null,null,null,null,null,null,null,null,51,null,null,null,null,null,null,null,null,null,null,null,null,"00","",{"$f":"IF(AD54=\"\",\"\",VLOOKUP(AD54,所属コード!$A$2:$E$189,2,FALSE))","v":""},{"$f":"IF(AD54=\"\",\"\",VLOOKUP(AD54,所属コード!$A$2:$G$189,7,FALSE))","v":""},null,null,null,null,null,null,null,"","",null,null,null,null,null,null,null,null,null,null,null,null,null,null,null,null,null,null,null,null,null,null,null,0,0,0,0,0,0,0,0,0,0,0,0,0,0,0,0,0,0,0,0,0,0,0,0,0,0,0,0,0,0,0,0,0,0,0,"","","","","","","","","0",0,"白子",235051,0,0,"00"]
[null,null,null,null,null,null,null,null,null,null,null,null,null,null,null,52,null,null,null,null,null,null,null,null,null,null,null,null,"00","",{"$f":"IF(AD55=\"\",\"\",VLOOKUP(AD55,所属コード!$A$2:$E$189,2,FALSE))","v":""},{"$f":"IF(AD55=\"\",\"\",VLOOKUP(AD55,所属コード!$A$2:$G$189,7,FALSE))","v":""},null,null,null,null,null,null,null,"","",null,null,null,null,null,null,null,null,null,null,null,null,null,null,null,null,null,null,null,null,null,null,null,0,0,0,0,0,0,0,0,0,0,0,0,0,0,0,0,0,0,0,0,0,0,0,0,0,0,0,0,0,0,0,0,0,0,0,"","","","","","","","","0",0,"天栄",235052,0,0,"00"]
[null,null,null,null,null,null,null,null,null,null,null,null,null,null,null,53,null,null,null,null,null,null,null,null,null,null,null,null,"00","",{"$f":"IF(AD56=\"\",\"\",VLOOKUP(AD56,所属コード!$A$2:$E$189,2,FALSE))","v":""},{"$f":"IF(AD56=\"\",\"\",VLOOKUP(AD56,所属コード!$A$2:$G$189,7,FALSE))","v":""},null,null,null,null,null,null,null,"","",null,null,null,null,null,null,null,null,null,null,null,null,null,null,null,null,null,null,null,null,null,null,null,0,0,0,0,0,0,0,0,0,0,0,0,0,0,0,0,0,0,0,0,0,0,0,0,0,0,0,0,0,0,0,0,0,0,0,"","","","","","","","","0",0,"鈴峰",235053,0,0,"00"]
[null,null,null,null,null,null,null,null,null,null,null,null,null,null,null,54,null,null,null,null,null,null,null,null,null,null,null,null,"00","",{"$f":"IF(AD57=\"\",\"\",VLOOKUP(AD57,所属コード!$A$2:$E$189,2,FALSE))","v":""},{"$f":"IF(AD57=\"\",\"\",VLOOKUP(AD57,所属コード!$A$2:$G$189,7,FALSE))","v":""},null,null,null,null,null,null,null,"","",null,null,null,null,null,null,null,null,null,null,null,null,null,null,null,null,null,null,null,null,null,null,null,0,0,0,0,0,0,0,0,0,0,0,0,0,0,0,0,0,0,0,0,0,0,0,0,0,0,0,0,0,0,0,0,0,0,0,"","","","","","","","","0",0,"鼓ヶ浦",235054,0,0,"00"]
[null,null,null,null,null,null,null,null,null,null,null,null,null,null,null,55,null,null,null,null,null,null,null,null,null,null,null,null,"00","",{"$f":"IF(AD58=\"\",\"\",VLOOKUP(AD58,所属コード!$A$2:$E$189,2,FALSE))","v":""},{"$f":"IF(AD58=\"\",\"\",VLOOKUP(AD58,所属コード!$A$2:$G$189,7,FALSE))","v":""},null,null,null,null,null,null,null,"","",null,null,null,null,null,null,null,null,null,null,null,null,null,null,null,null,null,null,null,null,null,null,null,0,0,0,0,0,0,0,0,0,0,0,0,0,0,0,0,0,0,0,0,0,0,0,0,0,0,0,0,0,0,0,0,0,0,0,"","","","","","","","","0",0,"創徳",235055,0,0,"00"]
[null,null,null,null,null,null,null,null,null,null,null,null,null,null,null,56,null,null,null,null,null,null,null,null,null,null,null,null,"00","",{"$f":"IF(AD59=\"\",\"\",VLOOKUP(AD59,所属コード!$A$2:$E$189,2,FALSE))","v":""},{"$f":"IF(AD59=\"\",\"\",VLOOKUP(AD59,所属コード!$A$2:$G$189,7,FALSE))","v":""},null,null,null,null,null,null,null,"","",null,null,null,null,null,null,null,null,null,null,null,null,null,null,null,null,null,null,null,null,null,null,null,0,0,0,0,0,0,0,0,0,0,0,0,0,0,0,0,0,0,0,0,0,0,0,0,0,0,0,0,0,0,0,0,0,0,0,"","","","","","","","","0",0,"鈴鹿",235056,0,0,"00"]
[null,null,null,null,null,null,null,null,null,null,null,null,null,null,null,57,null,null,null,null,null,null,null,null,null,null,null,null,"00","",{"$f":"IF(AD60=\"\",\"\",VLOOKUP(AD60,所属コード!$A$2:$E$189,2,FALSE))","v":""},{"$f":"IF(AD60=\"\",\"\",VLOOKUP(AD60,所属コード!$A$2:$G$189,7,FALSE))","v":""},null,null,null,null,null,null,null,"","",null,null,null,null,null,null,null,null,null,null,null,null,null,null,null,null,null,null,null,null,null,null,null,0,0,0,0,0,0,0,0,0,0,0,0,0,0,0,0,0,0,0,0,0,0,0,0,0,0,0,0,0,0,0,0,0,0,0,"","","","","","","","","0",0,"亀山",235057,0,0,"00"]
[null,null,null,null,null,null,null,null,null,null,null,null,null,null,null,58,null,null,null,null,null,null,null,null,null,null,null,null,"00","",{"$f":"IF(AD61=\"\",\"\",VLOOKUP(AD61,所属コード!$A$2:$E$189,2,FALSE))","v":""},{"$f":"IF(AD61=\"\",\"\",VLOOKUP(AD61,所属コード!$A$2:$G$189,7,FALSE))","v":""},null,null,null,null,null,null,null,"","",null,null,null,null,null,null,null,null,null,null,null,null,null,null,null,null,null,null,null,null,null,null,null,0,0,0,0,0,0,0,0,0,0,0,0,0,0,0,0,0,0,0,0,0,0,0,0,0,0,0,0,0,0,0,0,0,0,0,"","","","","","","","","0",0,"亀山中部",235058,0,0,"00"]
[null,null,null,null,null,null,null,null,null,null,null,null,null,null,null,59,null,null,null,null,null,null,null,null,null,null,null,null,"00","",{"$f":"IF(AD62=\"\",\"\",VLOOKUP(AD62,所属コード!$A$2:$E$189,2,FALSE))","v":""},{"$f":"IF(AD62=\"\",\"\",VLOOKUP(AD62,所属コード!$A$2:$G$189,7,FALSE))","v":""},null,null,null,null,null,null,null,"","",null,null,null,null,null,null,null,null,null,null,null,null,null,null,null,null,null,null,null,null,null,null,null,0,0,0,0,0,0,0,0,0,0,0,0,0,0,0,0,0,0,0,0,0,0,0,0,0,0,0,0,0,0,0,0,0,0,0,"","","","","","","","","0",0,"関",235059,0,0,"00"]
[null,null,null,null,null,null,null,null,null,null,null,null,null,null,null,60,null,null,null,null,null,null,null,null,null,null,null,null,"00","",{"$f":"IF(AD63=\"\",\"\",VLOOKUP(AD63,所属コード!$A$2:$E$189,2,FALSE))","v":""},{"$f":"IF(AD63=\"\",\"\",VLOOKUP(AD63,所属コード!$A$2:$G$189,7,FALSE))","v":""},null,null,null,null,null,null,null,"","",null,null,null,null,null,null,null,null,null,null,null,null,null,null,null,null,null,null,null,null,null,null,null,0,0,0,0,0,0,0,0,0,0,0,0,0,0,0,0,0,0,0,0,0,0,0,0,0,0,0,0,0,0,0,0,0,0,0,"","","","","","","","","0",0,"橋北",235060,0,0,"00"]
[null,null,null,null,null,null,null,null,null,null,null,null,null,null,null,61,null,null,null,null,null,null,null,null,null,null,null,null,"00","",{"$f":"IF(AD64=\"\",\"\",VLOOKUP(AD64,所属コード!$A$2:$E$189,2,FALSE))","v":""},{"$f":"IF(AD64=\"\",\"\",VLOOKUP(AD64,所属コード!$A$2:$G$189,7,FALSE))","v":""},null,null,null,null,null,null,null,"","",null,null,null,null,null,null,null,null,null,null,null,null,null,null,null,null,null,null,null,null,null,null,null,0,0,0,0,0,0,0,0,0,0,0,0,0,0,0,0,0,0,0,0,0,0,0,0,0,0,0,0,0,0,0,0,0,0,0,"","","","","","","","","0",0,"東橋内",235061,0,0,"00"]
[null,null,null,null,null,null,null,null,null,null,null,null,null,null,null,62,null,null,null,null,null,null,null,null,null,null,null,null,"00","",{"$f":"IF(AD65=\"\",\"\",VLOOKUP(AD65,所属コード!$A$2:$E$189,2,FALSE))","v":""},{"$f":"IF(AD65=\"\",\"\",VLOOKUP(AD65,所属コード!$A$2:$G$189,7,FALSE))","v":""},null,null,null,null,null,null,null,"","",null,null,null,null,null,null,null,null,null,null,null,null,null,null,null,null,null,null,null,null,null,null,null,0,0,0,0,0,0,0,0,0,0,0,0,0,0,0,0,0,0,0,0,0,0,0,0,0,0,0,0,0,0,0,0,0,0,0,"","","","","","","","","0",0,"西橋内",235062,0,0,"00"]
[null,null,null,null,null,null,null,null,null,null,null,null,null,null,null,63,null,null,null,null,null,null,null,null,null,null,null,null,"00","",{"$f":"IF(AD66=\"\",\"\",VLOOKUP(AD66,所属コード!$A$2:$E$189,2,FALSE))","v":""},{"$f":"IF(AD66=\"\",\"\",VLOOKUP(AD66,所属コード!$A$2:$G$189,7,FALSE))","v":""},null,null,null,null,null,null,null,"","",null,null,null,null,null,null,null,null,null,null,null,null,null,null,null,null,null,null,null,null,null,null,null,0,0,0,0,0,0,0,0,0,0,0,0,0,0,0,0,0,0,0,0,0,0,0,0,0,0,0,0,0,0,0,0,0,0,0,"","","","","","","","","0",0,"橋南",235063,0,0,"00"]
[null,null,null,null,null,null,null,null,null,null,null,null,null,null,null,64,null,null,null,null,null,null,null,null,null,null,null,null,"00","",{"$f":"IF(AD67=\"\",\"\",VLOOKUP(AD67,所属コード!$A$2:$E$189,2,FALSE))","v":""},{"$f":"IF(AD67=\"\",\"\",VLOOKUP(AD67,所属コード!$A$2:$G$189,7,FALSE))","v":""},null,null,null,null,null,null,null,"","",null,null,null,null,null,null,null,null,null,null,null,null,null,null,null,null,null,null,null,null,null,null,null,0,0,0,0,0,0,0,0,0,0,0,0,0,0,0,0,0,0,0,0,0,0,0,0,0,0,0,0,0,0,0,0,0,0,0,"","","","","","","","","0",0,"南郊",235064,0,0,"00"]
[null,null,null,null,null,null,null,null,null,null,null,null,null,null,null,65,null,null,null,null,null,null,null,null,null,null,null,null,"00","",{"$f":"IF(AD68=\"\",\"\",VLOOKUP(AD68,所属コード!$A$2:$E$189,2,FALSE))","v":""},{"$f":"IF(AD68=\"\",\"\",VLOOKUP(AD68,所属コード!$A$2:$G$189,7,FALSE))","v":""},null,null,null,null,null,null,null,"","",null,null,null,null,null,null,null,null,null,null,null,null,null,null,null,null,null,null,null,null,null,null,null,0,{"$f":"BD68","v":0},{"$f":"BD68","v":0},{"$f":"BD68","v":0},0,0,0,0,0,0,0,0,0,0,0,0,0,0,0,0,0,0,0,0,0,0,0,0,0,0,0,0,0,0,0,"","","","","","","",{"$f":"IF(X68=\"3\",3,IF(X68=\"2\",2,IF(X68=\"1\",1,IF(X68=1,1,IF(X68=2,2,IF(X68=3,3,\"\"))))))","v":""},"0",0,"西郊",235065,0,0,"00"]
[null,null,null,null,null,null,null,null,null,null,null,null,null,null,null,66,null,null,null,null,null,null,null,null,null,null,null,null,{"$f":"DJ69","v":"00"},"",{"$f":"IF(AD69=\"\",\"\",VLOOKUP(AD69,所属コード!$A$2:$E$189,2,FALSE))","v":""},{"$f":"IF(AD69=\"\",\"\",VLOOKUP(AD69,所属コード!$A$2:$G$189,7,FALSE))","v":""},null,null,null,null,null,null,null,{"$f":"IF(Y69=\"\",\"\",IF(Y69=\"男\",1,2))","v":""},{"$f":"ASC(W69)","v":""},null,null,null,null,null,null,null,null,null,null,null,null,null,null,null,null,null,null,null,null,null,null,null,{"$f":"BF69","v":0},0,0,0,0,{"$f":"AW69","v":0},{"$f":"BA69","v":0},{"$f":"AW69","v":0},{"$f":"BA69","v":0},{"$f":"AZ69","v":0},{"$f":"AW69","v":0},0,{"$f":"BC69","v":0},0,{"$f":"BF69","v":0},{"$f":"BJ69","v":0},0,0,{"$f":"BE69","v":0},{"$f":"AW69","v":0},{"$f":"BA69","v":0},{"$f":"BD69","v":0},{"$f":"BH69","v":0},{"$f":"BE69","v":0},{"$f":"AZ69","v":0},{"$f":"BJ69","v":0},{"$f":"AW69","v":0},{"$f":"BA69","v":0},{"$f":"BE69","v":0},{"$f":"BH69","v":0},{"$f":"BJ69","v":0},{"$f":"BC69","v":0},{"$f":"BB69","v":0},0,{"$f":"BJ69","v":0},{"$f":"TRIM(V69)","v":""},{"$f":"IF(CV69=\"\",\"\",LEN(CV69))","v":""},{"$f":"IF(CV69=\"\",\"\",FIND(\"　\",CV69,1))","v":""},{"$f":"IF(CV69=\"\",\"\",CW69-CX69)","v":""},{"$f":"IF(CV69=\"\",\"\",LEFT(CV69,CX69-1))","v":""},{"$f":"IF(CV69=\"\",\"\",RIGHT(CV69,CY69))","v":""},{"$f":"IF(CV69=\"\",\"\",IF(CW69=4,CONCATENATE(CZ69,\"　\",\"　\",DA69),IF(CW69=6,CONCATENATE(CZ69,DA69),CV69)))","v":""},"",{"$f":"IF(AB69<10,CONCATENATE(0,AB69),AB69)","v":"0"},{"$f":"Z69","v":0},"一身田",235066,{"$f":"IF(AA69=1,\"01\",IF(AA69=2,\"02\",IF(AA69=3,\"03\",IF(AA69=4,\"04\",IF(AA69=5,\"05\",IF(AA69=6,\"06\",IF(AA69=7,\"07\",IF(AA69=8,\"08\",IF(AA69=9,\"09\",AA69)))))))))","v":0},{"$f":"IF(AB69=1,\"01\",IF(AB69=2,\"02\",IF(AB69=3,\"03\",IF(AB69=4,\"04\",IF(AB69=5,\"05\",IF(AB69=6,\"06\",IF(AB69=7,\"07\",IF(AB69=8,\"08\",IF(AB69=9,\"09\",AB69)))))))))","v":0},{"$f":"CONCATENATE(DH69,DI69)","v":"00"}]
[null,null,null,null,null,null,null,null,null,null,null,null,null,null,null,67,null,null,null,null,null,null,null,null,null,null,null,null,"00",{"$f":"IF(V70=\"\",\"\",$AD$4)","v":""},{"$f":"IF(AD70=\"\",\"\",VLOOKUP(AD70,所属コード!$A$2:$E$189,2,FALSE))","v":""},{"$f":"IF(AD70=\"\",\"\",VLOOKUP(AD70,所属コード!$A$2:$G$189,7,FALSE))","v":""},null,null,null,null,null,null,null,"","",null,null,null,null,null,null,null,null,null,null,null,null,null,null,null,null,null,null,null,null,null,null,null,0,0,0,0,0,0,0,0,0,0,0,0,0,0,0,0,0,0,0,0,0,0,0,0,0,0,0,0,0,0,0,0,0,0,0,"","","","","","","","","0",0,"一身田国児",235067,0,0,"00"]
[null,null,null,null,null,null,null,null,null,null,null,null,null,null,null,68,null,null,null,null,null,null,null,null,null,null,null,null,"00","",{"$f":"IF(AD71=\"\",\"\",VLOOKUP(AD71,所属コード!$A$2:$E$189,2,FALSE))","v":""},{"$f":"IF(AD71=\"\",\"\",VLOOKUP(AD71,所属コード!$A$2:$G$189,7,FALSE))","v":""},null,null,null,null,null,null,null,"","",null,null,null,null,null,null,null,null,null,null,null,null,null,null,null,null,null,null,null,null,null,null,null,0,0,0,0,0,0,0,0,0,0,0,0,0,0,0,0,0,0,0,0,0,0,0,0,0,0,0,0,0,0,0,0,0,0,0,"","","","","","","","","0",0,"南が丘",235068,0,0,"00"]
[null,null,null,null,null,null,null,null,null,null,null,null,null,null,null,69,null,null,null,null,null,null,null,null,null,null,null,null,"00","",{"$f":"IF(AD72=\"\",\"\",VLOOKUP(AD72,所属コード!$A$2:$E$189,2,FALSE))","v":""},{"$f":"IF(AD72=\"\",\"\",VLOOKUP(AD72,所属コード!$A$2:$G$189,7,FALSE))","v":""},null,null,null,null,null,null,null,"","",null,null,null,null,null,null,null,null,null,null,null,null,null,null,null,null,null,null,null,null,null,null,null,0,0,0,0,0,0,0,0,0,0,0,0,0,0,0,0,0,0,0,0,0,0,0,0,0,0,0,0,0,0,0,0,0,0,0,"","","","","","","","","0",0,"高田",235069,0,0,"00"]
[null,null,null,null,null,null,null,null,null,null,null,null,null,null,null,70,null,null,null,null,null,null,null,null,null,null,null,null,"00","",{"$f":"IF(AD73=\"\",\"\",VLOOKUP(AD73,所属コード!$A$2:$E$189,2,FALSE))","v":""},{"$f":"IF(AD73=\"\",\"\",VLOOKUP(AD73,所属コード!$A$2:$G$189,7,FALSE))","v":""},null,null,null,null,null,null,null,"","",null,null,null,null,null,null,null,null,null,null,null,null,null,null,null,null,null,null,null,null,null,null,null,0,0,0,0,0,0,0,0,0,0,0,0,0,0,0,0,0,0,0,0,0,0,0,0,0,0,0,0,0,0,0,0,0,0,0,"","","","","","","","","0",0,"セントヨゼフ",235070,0,0,"00"]
[null,null,null,null,null,null,null,null,null,null,null,null,null,null,null,71,null,null,null,null,null,null,null,null,null,null,null,null,"00","",{"$f":"IF(AD74=\"\",\"\",VLOOKUP(AD74,所属コード!$A$2:$E$189,2,FALSE))","v":""},{"$f":"IF(AD74=\"\",\"\",VLOOKUP(AD74,所属コード!$A$2:$G$189,7,FALSE))","v":""},null,null,null,null,null,null,null,"","",null,null,null,null,null,null,null,null,null,null,null,null,null,null,null,null,null,null,null,null,null,null,null,0,0,0,0,0,0,0,0,0,0,0,0,0,0,0,0,0,0,0,0,0,0,0,0,0,0,0,0,0,0,0,0,0,0,0,"","","","","","","","","0",0,"三重大附属",235071,0,0,"00"]
[null,null,null,null,null,null,null,null,null,null,null,null,null,null,null,72,null,null,null,null,null,null,null,null,null,null,null,null,"00","",{"$f":"IF(AD75=\"\",\"\",VLOOKUP(AD75,所属コード!$A$2:$E$189,2,FALSE))","v":""},{"$f":"IF(AD75=\"\",\"\",VLOOKUP(AD75,所属コード!$A$2:$G$189,7,FALSE))","v":""},null,null,null,null,null,null,null,"","",null,null,null,null,null,null,null,null,null,null,null,null,null,null,null,null,null,null,null,null,null,null,null,0,0,0,0,0,0,0,0,0,0,0,0,0,0,0,0,0,0,0,0,0,0,0,0,0,0,0,0,0,0,0,0,0,0,0,"","","","","","","","","0",0,"豊里",235072,0,0,"00"]
[null,null,null,null,null,null,null,null,null,null,null,null,null,null,null,73,null,null,null,null,null,null,null,null,null,null,null,null,"00","",{"$f":"IF(AD76=\"\",\"\",VLOOKUP(AD76,所属コード!$A$2:$E$189,2,FALSE))","v":""},{"$f":"IF(AD76=\"\",\"\",VLOOKUP(AD76,所属コード!$A$2:$G$189,7,FALSE))","v":""},null,null,null,null,null,null,null,"","",null,null,null,null,null,null,null,null,null,null,null,null,null,null,null,null,null,null,null,null,null,null,null,0,0,0,0,0,0,0,0,0,0,0,0,0,0,0,0,0,0,0,0,0,0,0,0,0,0,0,0,0,0,0,0,0,0,0,"","","","","","","","","0",0,"朝陽",235073,0,0,"00"]
[null,null,null,null,null,null,null,null,null,null,null,null,null,null,null,74,null,null,null,null,null,null,null,null,null,null,null,null,"00","",{"$f":"IF(AD77=\"\",\"\",VLOOKUP(AD77,所属コード!$A$2:$E$189,2,FALSE))","v":""},{"$f":"IF(AD77=\"\",\"\",VLOOKUP(AD77,所属コード!$A$2:$G$189,7,FALSE))","v":""},null,null,null,null,null,null,null,"","",null,null,null,null,null,null,null,null,null,null,null,null,null,null,null,null,null,null,null,null,null,null,null,0,0,0,0,0,0,0,0,0,0,0,0,0,0,0,0,0,0,0,0,0,0,0,0,0,0,0,0,0,0,0,0,0,0,0,"","","","","","","","","0",0,"芸濃",235074,0,0,"00"]
[null,null,null,null,null,null,null,null,null,null,null,null,null,null,null,75,null,null,null,null,null,null,null,null,null,null,null,null,"00","",{"$f":"IF(AD78=\"\",\"\",VLOOKUP(AD78,所属コード!$A$2:$E$189,2,FALSE))","v":""},{"$f":"IF(AD78=\"\",\"\",VLOOKUP(AD78,所属コード!$A$2:$G$189,7,FALSE))","v":""},null,null,null,null,null,null,null,"","",null,null,null,null,null,null,null,null,null,null,null,null,null,null,null,null,null,null,null,null,null,null,null,0,0,0,0,0,0,0,0,0,0,0,0,0,0,0,0,0,0,0,0,0,0,0,0,0,0,0,0,0,0,0,0,0,0,0,"","","","","","","","","0",0,"美里",235075,0,0,"00"]
[null,null,null,null,null,null,null,null,null,null,null,null,null,null,null,76,null,null,null,null,null,null,null,null,null,null,null,null,"00","",{"$f":"IF(AD79=\"\",\"\",VLOOKUP(AD79,所属コード!$A$2:$E$189,2,FALSE))","v":""},{"$f":"IF(AD79=\"\",\"\",VLOOKUP(AD79,所属コード!$A$2:$G$189,7,FALSE))","v":""},null,null,null,null,null,null,null,"","",null,null,null,null,null,null,null,null,null,null,null,null,null,null,null,null,null,null,null,null,null,null,null,0,0,0,0,0,0,0,0,0,0,0,0,0,0,0,0,0,0,0,0,0,0,0,0,0,0,0,0,0,0,0,0,0,0,0,"","","","","","","","","0",0,"東観",235076,0,0,"00"]
[null,null,null,null,null,null,null,null,null,null,null,null,null,null,null,77,null,null,null,null,null,null,null,null,null,null,null,null,"00","",{"$f":"IF(AD80=\"\",\"\",VLOOKUP(AD80,所属コード!$A$2:$E$189,2,FALSE))","v":""},{"$f":"IF(AD80=\"\",\"\",VLOOKUP(AD80,所属コード!$A$2:$G$189,7,FALSE))","v":""},null,null,null,null,null,null,null,"","",null,null,null,null,null,null,null,null,null,null,null,null,null,null,null,null,null,null,null,null,null,null,null,0,0,0,0,0,0,0,0,0,0,0,0,0,0,0,0,0,0,0,0,0,0,0,0,0,0,0,0,0,0,0,0,0,0,0,"","","","","","","","","0",0,"久居",235077,0,0,"00"]
[null,null,null,null,null,null,null,null,null,null,null,null,null,null,null,78,null,null,null,null,null,null,null,null,null,null,null,null,"00","",{"$f":"IF(AD81=\"\",\"\",VLOOKUP(AD81,所属コード!$A$2:$E$189,2,FALSE))","v":""},{"$f":"IF(AD81=\"\",\"\",VLOOKUP(AD81,所属コード!$A$2:$G$189,7,FALSE))","v":""},null,null,null,null,null,null,null,"","",null,null,null,null,null,null,null,null,null,null,null,null,null,null,null,null,null,null,null,null,null,null,null,0,0,0,0,0,0,0,0,0,0,0,0,0,0,0,0,0,0,0,0,0,0,0,0,0,0,0,0,0,0,0,0,0,0,0,"","","","","","","","","0",0,"久居西",235078,0,0,"00"]
[null,null,null,null,null,null,null,null,null,null,null,null,null,null,null,79,null,null,null,null,null,null,null,null,null,null,null,null,"00","",{"$f":"IF(AD82=\"\",\"\",VLOOKUP(AD82,所属コード!$A$2:$E$189,2,FALSE))","v":""},{"$f":"IF(AD82=\"\",\"\",VLOOKUP(AD82,所属コード!$A$2:$G$189,7,FALSE))","v":""},null,null,null,null,null,null,null,"","",null,null,null,null,null,null,null,null,null,null,null,null,null,null,null,null,null,null,null,null,null,null,null,0,0,0,0,0,0,0,0,0,0,0,0,0,0,0,0,0,0,0,0,0,0,0,0,0,0,0,0,0,0,0,0,0,0,0,"","","","","","","","","0",0,"久居東",235079,0,0,"00"]
[null,null,null,null,null,null,null,null,null,null,null,null,null,null,null,80,null,null,null,null,null,null,null,null,null,null,null,null,"00","",{"$f":"IF(AD83=\"\",\"\",VLOOKUP(AD83,所属コード!$A$2:$E$189,2,FALSE))","v":""},{"$f":"IF(AD83=\"\",\"\",VLOOKUP(AD83,所属コード!$A$2:$G$189,7,FALSE))","v":""},null,null,null,null,null,null,null,"","",null,null,null,null,null,null,null,null,null,null,null,null,null,null,null,null,null,null,null,null,null,null,null,0,0,0,0,0,0,0,0,0,0,0,0,0,0,0,0,0,0,0,0,0,0,0,0,0,0,0,0,0,0,0,0,0,0,0,"","","","","","","","","0",0,"香海",235080,0,0,"00"]
[null,null,null,null,null,null,null,null,null,null,null,null,null,null,null,81,null,null,null,null,null,null,null,null,null,null,null,null,"00","",{"$f":"IF(AD84=\"\",\"\",VLOOKUP(AD84,所属コード!$A$2:$E$189,2,FALSE))","v":""},{"$f":"IF(AD84=\"\",\"\",VLOOKUP(AD84,所属コード!$A$2:$G$189,7,FALSE))","v":""},null,null,null,null,null,null,null,"","",null,null,null,null,null,null,null,null,null,null,null,null,null,null,null,null,null,null,null,null,null,null,null,0,0,0,0,0,0,0,0,0,0,0,0,0,0,0,0,0,0,0,0,0,0,0,0,0,0,0,0,0,0,0,0,0,0,0,"","","","","","","","","0",0,"一志",235081,0,0,"00"]
[null,null,null,null,null,null,null,null,null,null,null,null,null,null,null,82,null,null,null,null,null,null,null,null,null,null,null,null,"00","",{"$f":"IF(AD85=\"\",\"\",VLOOKUP(AD85,所属コード!$A$2:$E$189,2,FALSE))","v":""},{"$f":"IF(AD85=\"\",\"\",VLOOKUP(AD85,所属コード!$A$2:$G$189,7,FALSE))","v":""},null,null,null,null,null,null,null,"","",null,null,null,null,null,null,null,null,null,null,null,null,null,null,null,null,null,null,null,null,null,null,null,0,0,0,0,0,0,0,0,0,0,0,0,0,0,0,0,0,0,0,0,0,0,0,0,0,0,0,0,0,0,0,0,0,0,0,"","","","","","","","","0",0,"白山",235082,0,0,"00"]
[null,null,null,null,null,null,null,null,null,null,null,null,null,null,null,83,null,null,null,null,null,null,null,null,null,null,null,null,"00","",{"$f":"IF(AD86=\"\",\"\",VLOOKUP(AD86,所属コード!$A$2:$E$189,2,FALSE))","v":""},{"$f":"IF(AD86=\"\",\"\",VLOOKUP(AD86,所属コード!$A$2:$G$189,7,FALSE))","v":""},null,null,null,null,null,null,null,"","",null,null,null,null,null,null,null,null,null,null,null,null,null,null,null,null,null,null,null,null,null,null,null,0,0,0,0,0,0,0,0,0,0,0,0,0,0,0,0,0,0,0,0,0,0,0,0,0,0,0,0,0,0,0,0,0,0,0,"","","","","","","","","0",0,"嬉野",235083,0,0,"00"]
[null,null,null,null,null,null,null,null,null,null,null,null,null,null,null,84,null,null,null,null,null,null,null,null,null,null,null,null,"00","",{"$f":"IF(AD87=\"\",\"\",VLOOKUP(AD87,所属コード!$A$2:$E$189,2,FALSE))","v":""},{"$f":"IF(AD87=\"\",\"\",VLOOKUP(AD87,所属コード!$A$2:$G$189,7,FALSE))","v":""},null,null,null,null,null,null,null,"","",null,null,null,null,null,null,null,null,null,null,null,null,null,null,null,null,null,null,null,null,null,null,null,0,0,0,0,0,0,0,0,0,0,0,0,0,0,0,0,0,0,0,0,0,0,0,0,0,0,0,0,0,0,0,0,0,0,0,"","","","","","","","","0",0,"美杉",235084,0,0,"00"]
[null,null,null,null,null,null,null,null,null,null,null,null,null,null,null,85,null,null,null,null,null,null,null,null,null,null,null,null,"00","",{"$f":"IF(AD88=\"\",\"\",VLOOKUP(AD88,所属コード!$A$2:$E$189,2,FALSE))","v":""},{"$f":"IF(AD88=\"\",\"\",VLOOKUP(AD88,所属コード!$A$2:$G$189,7,FALSE))","v":""},null,null,null,null,null,null,null,"","",null,null,null,null,null,null,null,null,null,null,null,null,null,null,null,null,null,null,null,null,null,null,null,0,0,0,0,0,0,0,0,0,0,0,0,0,0,0,0,0,0,0,0,0,0,0,0,0,0,0,0,0,0,0,0,0,0,0,"","","","","","","","","0",0,"三雲",235085,0,0,"00"]
[null,null,null,null,null,null,null,null,null,null,null,null,null,null,null,86,null,null,null,null,null,null,null,null,null,null,null,null,"00","",{"$f":"IF(AD89=\"\",\"\",VLOOKUP(AD89,所属コード!$A$2:$E$189,2,FALSE))","v":""},{"$f":"IF(AD89=\"\",\"\",VLOOKUP(AD89,所属コード!$A$2:$G$189,7,FALSE))","v":""},null,null,null,null,null,null,null,"","",null,null,null,null,null,null,null,null,null,null,null,null,null,null,null,null,null,null,null,null,null,null,null,0,0,0,0,0,0,0,0,0,0,0,0,0,0,0,0,0,0,0,0,0,0,0,0,0,0,0,0,0,0,0,0,0,0,0,"","","","","","","","","0",0,"殿町",235086,0,0,"00"]
[null,null,null,null,null,null,null,null,null,null,null,null,null,null,null,87,null,null,null,null,null,null,null,null,null,null,null,null,"00","",{"$f":"IF(AD90=\"\",\"\",VLOOKUP(AD90,所属コード!$A$2:$E$189,2,FALSE))","v":""},{"$f":"IF(AD90=\"\",\"\",VLOOKUP(AD90,所属コード!$A$2:$G$189,7,FALSE))","v":""},null,null,null,null,null,null,null,"","",null,null,null,null,null,null,null,null,null,null,null,null,null,null,null,null,null,null,null,null,null,null,null,0,0,0,0,0,0,0,0,0,0,0,0,0,0,0,0,0,0,0,0,0,0,0,0,0,0,0,0,0,0,0,0,0,0,0,"","","","","","","","","0",0,"鎌田",235087,0,0,"00"]
[null,null,null,null,null,null,null,null,null,null,null,null,null,null,null,88,null,null,null,null,null,null,null,null,null,null,null,null,"00","",{"$f":"IF(AD91=\"\",\"\",VLOOKUP(AD91,所属コード!$A$2:$E$189,2,FALSE))","v":""},{"$f":"IF(AD91=\"\",\"\",VLOOKUP(AD91,所属コード!$A$2:$G$189,7,FALSE))","v":""},null,null,null,null,null,null,null,"","",null,null,null,null,null,null,null,null,null,null,null,null,null,null,null,null,null,null,null,null,null,null,null,0,0,0,0,0,0,0,0,0,0,0,0,0,0,0,0,0,0,0,0,0,0,0,0,0,0,0,0,0,0,0,0,0,0,0,"","","","","","","","","0",0,"久保",235088,0,0,"00"]
[null,null,null,null,null,null,null,null,null,null,null,null,null,null,null,89,null,null,null,null,null,null,null,null,null,null,null,null,"00","",{"$f":"IF(AD92=\"\",\"\",VLOOKUP(AD92,所属コード!$A$2:$E$189,2,FALSE))","v":""},{"$f":"IF(AD92=\"\",\"\",VLOOKUP(AD92,所属コード!$A$2:$G$189,7,FALSE))","v":""},null,null,null,null,null,null,null,"","",null,null,null,null,null,null,null,null,null,null,null,null,null,null,null,null,null,null,null,null,null,null,null,0,0,0,0,0,0,0,0,0,0,0,0,0,0,0,0,0,0,0,0,0,0,0,0,0,0,0,0,0,0,0,0,0,0,0,"","","","","","","","","0",0,"松阪東部",235089,0,0,"00"]
[null,null,null,null,null,null,null,null,null,null,null,null,null,null,null,90,null,null,null,null,null,null,null,null,null,null,null,null,"00","",{"$f":"IF(AD93=\"\",\"\",VLOOKUP(AD93,所属コード!$A$2:$E$189,2,FALSE))","v":""},{"$f":"IF(AD93=\"\",\"\",VLOOKUP(AD93,所属コード!$A$2:$G$189,7,FALSE))","v":""},null,null,null,null,null,null,null,"","",null,null,null,null,null,null,null,null,null,null,null,null,null,null,null,null,null,null,null,null,null,null,null,0,0,0,0,0,0,0,0,0,0,0,0,0,0,0,0,0,0,0,0,0,0,0,0,0,0,0,0,0,0,0,0,0,0,0,"","","","","","","","","0",0,"松阪中部",235090,0,0,"00"]
[null,null,null,null,null,null,null,null,null,null,null,null,null,null,null,91,null,null,null,null,null,null,null,null,null,null,null,null,"00","",{"$f":"IF(AD94=\"\",\"\",VLOOKUP(AD94,所属コード!$A$2:$E$189,2,FALSE))","v":""},{"$f":"IF(AD94=\"\",\"\",VLOOKUP(AD94,所属コード!$A$2:$G$189,7,FALSE))","v":""},null,null,null,null,null,null,null,"","",null,null,null,null,null,null,null,null,null,null,null,null,null,null,null,null,null,null,null,null,null,null,null,0,0,0,0,0,0,0,0,0,0,0,0,0,0,0,0,0,0,0,0,0,0,0,0,0,0,0,0,0,0,0,0,0,0,0,"","","","","","","","","0",0,"大江",235091,0,0,"00"]
[null,null,null,null,null,null,null,null,null,null,null,null,null,null,null,92,null,null,null,null,null,null,null,null,null,null,null,null,"00","",{"$f":"IF(AD95=\"\",\"\",VLOOKUP(AD95,所属コード!$A$2:$E$189,2,FALSE))","v":""},{"$f":"IF(AD95=\"\",\"\",VLOOKUP(AD95,所属コード!$A$2:$G$189,7,FALSE))","v":""},null,null,null,null,null,null,null,"","",null,null,null,null,null,null,null,null,null,null,null,null,null,null,null,null,null,null,null,null,null,null,null,0,0,0,0,0,0,0,0,0,0,0,0,0,0,0,0,0,0,0,0,0,0,0,0,0,0,0,0,0,0,0,0,0,0,0,"","","","","","","","","0",0,"西",235092,0,0,"00"]
[null,null,null,null,null,null,null,null,null,null,null,null,null,null,null,93,null,null,null,null,null,null,null,null,null,null,null,null,"00","",{"$f":"IF(AD96=\"\",\"\",VLOOKUP(AD96,所属コード!$A$2:$E$189,2,FALSE))","v":""},{"$f":"IF(AD96=\"\",\"\",VLOOKUP(AD96,所属コード!$A$2:$G$189,7,FALSE))","v":""},null,null,null,null,null,null,null,"","",null,null,null,null,null,null,null,null,null,null,null,null,null,null,null,null,null,null,null,null,null,null,null,0,0,0,0,0,0,0,0,0,0,0,0,0,0,0,0,0,0,0,0,0,0,0,0,0,0,0,0,0,0,0,0,0,0,0,"","","","","","","","","0",0,"三重",235093,0,0,"00"]
[null,null,null,null,null,null,null,null,null,null,null,null,null,null,null,94,null,null,null,null,null,null,null,null,null,null,null,null,"00","",{"$f":"IF(AD97=\"\",\"\",VLOOKUP(AD97,所属コード!$A$2:$E$189,2,FALSE))","v":""},{"$f":"IF(AD97=\"\",\"\",VLOOKUP(AD97,所属コード!$A$2:$G$189,7,FALSE))","v":""},null,null,null,null,null,null,null,"","",null,null,null,null,null,null,null,null,null,null,null,null,null,null,null,null,null,null,null,null,null,null,null,0,0,0,0,0,0,0,0,0,0,0,0,0,0,0,0,0,0,0,0,0,0,0,0,0,0,0,0,0,0,0,0,0,0,0,"","","","","","","","","0",0,"飯南",235094,0,0,"00"]
[null,null,null,null,null,null,null,null,null,null,null,null,null,null,null,95,null,null,null,null,null,null,null,null,null,null,null,null,"00","",{"$f":"IF(AD98=\"\",\"\",VLOOKUP(AD98,所属コード!$A$2:$E$189,2,FALSE))","v":""},{"$f":"IF(AD98=\"\",\"\",VLOOKUP(AD98,所属コード!$A$2:$G$189,7,FALSE))","v":""},null,null,null,null,null,null,null,"","",null,null,null,null,null,null,null,null,null,null,null,null,null,null,null,null,null,null,null,null,null,null,null,0,0,0,0,0,0,0,0,0,0,0,0,0,0,0,0,0,0,0,0,0,0,0,0,0,0,0,0,0,0,0,0,0,0,0,"","","","","","","","","0",0,"飯高西",235095,0,0,"00"]
[null,null,null,null,null,null,null,null,null,null,null,null,null,null,null,96,null,null,null,null,null,null,null,null,null,null,null,null,"00","",{"$f":"IF(AD99=\"\",\"\",VLOOKUP(AD99,所属コード!$A$2:$E$189,2,FALSE))","v":""},{"$f":"IF(AD99=\"\",\"\",VLOOKUP(AD99,所属コード!$A$2:$G$189,7,FALSE))","v":""},null,null,null,null,null,null,null,"","",null,null,null,null,null,null,null,null,null,null,null,null,null,null,null,null,null,null,null,null,null,null,null,0,0,0,0,0,0,0,0,0,0,0,0,0,0,0,0,0,0,0,0,0,0,0,0,0,0,0,0,0,0,0,0,0,0,0,"","","","","","","","","0",0,"飯高東",235096,0,0,"00"]
[null,null,null,null,null,null,null,null,null,null,null,null,null,null,null,97,null,null,null,null,null,null,null,null,null,null,null,null,"00","",{"$f":"IF(AD100=\"\",\"\",VLOOKUP(AD100,所属コード!$A$2:$E$189,2,FALSE))","v":""},{"$f":"IF(AD100=\"\",\"\",VLOOKUP(AD100,所属コード!$A$2:$G$189,7,FALSE))","v":""},null,null,null,null,null,null,null,"","",null,null,null,null,null,null,null,null,null,null,null,null,null,null,null,null,null,null,null,null,null,null,null,0,0,0,{"$f":"BD100","v":0},0,0,0,0,0,0,0,0,0,0,0,0,0,0,0,0,0,0,0,0,0,0,0,0,0,0,0,0,0,0,0,"","","","","","","","","0",0,"多気",235097,0,0,"00"]
[null,null,null,null,null,null,null,null,null,null,null,null,null,null,null,98,null,null,null,null,null,null,null,null,null,null,null,null,"00","",{"$f":"IF(AD101=\"\",\"\",VLOOKUP(AD101,所属コード!$A$2:$E$189,2,FALSE))","v":""},{"$f":"IF(AD101=\"\",\"\",VLOOKUP(AD101,所属コード!$A$2:$G$189,7,FALSE))","v":""},null,null,null,null,null,null,null,"","",null,null,null,null,null,null,null,null,null,null,null,null,null,null,null,null,null,null,null,null,null,null,null,0,0,0,0,0,0,0,0,0,0,0,0,0,0,0,0,0,0,0,0,0,0,0,0,0,0,0,0,0,0,0,0,0,0,0,"","","","","","","","","0",0,"明和",235098,0,0,"00"]
[null,null,null,null,null,null,null,null,null,null,null,null,null,null,null,99,null,null,null,null,null,null,null,null,null,null,null,null,"00","",{"$f":"IF(AD102=\"\",\"\",VLOOKUP(AD102,所属コード!$A$2:$E$189,2,FALSE))","v":""},{"$f":"IF(AD102=\"\",\"\",VLOOKUP(AD102,所属コード!$A$2:$G$189,7,FALSE))","v":""},null,null,null,null,null,null,null,"","",null,null,null,null,null,null,null,null,null,null,null,null,null,null,null,null,null,null,null,null,null,null,null,0,0,0,0,0,0,0,0,0,0,0,0,0,0,0,0,0,0,0,0,0,0,0,0,0,0,0,0,0,0,0,0,0,0,0,"","","","","","","","","0",0,"協和",235099,0,0,"00"]
[null,null,null,null,null,null,null,null,null,null,null,null,null,null,null,100,null,null,null,null,null,null,null,null,null,null,null,null,"00","",{"$f":"IF(AD103=\"\",\"\",VLOOKUP(AD103,所属コード!$A$2:$E$189,2,FALSE))","v":""},{"$f":"IF(AD103=\"\",\"\",VLOOKUP(AD103,所属コード!$A$2:$G$189,7,FALSE))","v":""},null,null,null,null,null,null,null,"","",null,null,null,null,null,null,null,null,null,null,null,null,null,null,null,null,null,null,null,null,null,null,null,0,0,0,0,0,0,0,0,0,0,0,0,0,0,0,0,0,0,0,0,0,0,0,0,0,0,0,0,0,0,0,0,0,0,0,"","","","","","","","","0",0,"大台",235100,0,0,"00"]
[null,null,null,null,null,null,null,null,null,null,null,null,null,null,null,101,null,null,null,null,null,null,null,null,null,null,null,null,"00","",{"$f":"IF(AD104=\"\",\"\",VLOOKUP(AD104,所属コード!$A$2:$E$189,2,FALSE))","v":""},{"$f":"IF(AD104=\"\",\"\",VLOOKUP(AD104,所属コード!$A$2:$G$189,7,FALSE))","v":""},null,null,null,null,null,null,null,"","",null,null,null,null,null,null,null,null,null,null,null,null,null,null,null,null,null,null,null,null,null,null,null,0,0,0,0,0,0,0,0,0,0,0,0,0,0,0,0,0,0,0,0,0,0,0,0,0,0,0,0,0,0,0,0,0,0,0,"","","","","","","","","0",0,"勢和",235101,0,0,"00"]
[null,null,null,null,null,null,null,null,null,null,null,null,null,null,null,102,null,null,null,null,null,null,null,null,null,null,null,null,"00","",{"$f":"IF(AD105=\"\",\"\",VLOOKUP(AD105,所属コード!$A$2:$E$189,2,FALSE))","v":""},{"$f":"IF(AD105=\"\",\"\",VLOOKUP(AD105,所属コード!$A$2:$G$189,7,FALSE))","v":""},null,null,null,null,null,null,null,"","",null,null,null,null,null,null,null,null,null,null,null,null,null,null,null,null,null,null,null,null,null,null,null,0,0,0,0,0,0,0,0,0,0,0,0,0,0,0,0,0,0,0,0,0,0,0,0,0,0,0,0,0,0,0,0,0,0,0,"","","","","","","","","0",0,"多気宮川",235102,0,0,"00"]
[null,null,null,null,null,null,null,null,null,null,null,null,null,null,null,103,null,null,null,null,null,null,null,null,null,null,null,null,"00","",{"$f":"IF(AD106=\"\",\"\",VLOOKUP(AD106,所属コード!$A$2:$E$189,2,FALSE))","v":""},{"$f":"IF(AD106=\"\",\"\",VLOOKUP(AD106,所属コード!$A$2:$G$189,7,FALSE))","v":""},null,null,null,null,null,null,null,"","",null,null,null,null,null,null,null,null,null,null,null,null,null,null,null,null,null,null,null,null,null,null,null,0,0,0,0,0,0,0,0,0,0,0,0,0,0,0,0,0,0,0,0,0,0,0,0,0,0,0,0,0,0,0,0,0,0,0,"","","","","","","","","0",0,"倉田山",235103,0,0,"00"]
[null,null,null,null,null,null,null,null,null,null,null,null,null,null,null,104,null,null,null,null,null,null,null,null,null,null,null,null,"00","",{"$f":"IF(AD107=\"\",\"\",VLOOKUP(AD107,所属コード!$A$2:$E$189,2,FALSE))","v":""},{"$f":"IF(AD107=\"\",\"\",VLOOKUP(AD107,所属コード!$A$2:$G$189,7,FALSE))","v":""},null,null,null,null,null,null,null,"","",null,null,null,null,null,null,null,null,null,null,null,null,null,null,null,null,null,null,null,null,null,null,null,0,0,0,0,0,0,0,0,0,0,0,0,0,0,0,0,0,0,0,0,0,0,0,0,0,0,0,0,0,0,0,0,0,0,0,"","","","","","","","","0",0,"厚生",235104,0,0,"00"]
[null,null,null,null,null,null,null,null,null,null,null,null,null,null,null,105,null,null,null,null,null,null,null,null,null,null,null,null,"00","",{"$f":"IF(AD108=\"\",\"\",VLOOKUP(AD108,所属コード!$A$2:$E$189,2,FALSE))","v":""},{"$f":"IF(AD108=\"\",\"\",VLOOKUP(AD108,所属コード!$A$2:$G$189,7,FALSE))","v":""},null,null,null,null,null,null,null,"","",null,null,null,null,null,null,null,null,null,null,null,null,null,null,null,null,null,null,null,null,null,null,null,0,0,0,0,0,0,0,0,0,0,0,0,0,0,0,0,0,0,0,0,0,0,0,0,0,0,0,0,0,0,0,0,0,0,0,"","","","","","","","","0",0,"伊勢宮川",235105,0,0,"00"]
[null,null,null,null,null,null,null,null,null,null,null,null,null,null,null,106,null,null,null,null,null,null,null,null,null,null,null,null,"00","",{"$f":"IF(AD109=\"\",\"\",VLOOKUP(AD109,所属コード!$A$2:$E$189,2,FALSE))","v":""},{"$f":"IF(AD109=\"\",\"\",VLOOKUP(AD109,所属コード!$A$2:$G$189,7,FALSE))","v":""},null,null,null,null,null,null,null,"","",null,null,null,null,null,null,null,null,null,null,null,null,null,null,null,null,null,null,null,null,null,null,null,0,0,0,0,0,0,0,0,0,0,0,0,0,0,0,0,0,0,0,0,0,0,0,0,0,0,0,0,0,0,0,0,0,0,0,"","","","","","","","","0",0,"伊勢港",235106,0,0,"00"]
[null,null,null,null,null,null,null,null,null,null,null,null,null,null,null,107,null,null,null,null,null,null,null,null,null,null,null,null,"00","",{"$f":"IF(AD110=\"\",\"\",VLOOKUP(AD110,所属コード!$A$2:$E$189,2,FALSE))","v":""},{"$f":"IF(AD110=\"\",\"\",VLOOKUP(AD110,所属コード!$A$2:$G$189,7,FALSE))","v":""},null,null,null,null,null,null,null,"","",null,null,null,null,null,null,null,null,null,null,null,null,null,null,null,null,null,null,null,null,null,null,null,0,0,0,0,0,0,0,0,0,0,0,0,0,0,0,0,0,0,0,0,0,0,0,0,0,0,0,0,0,0,0,0,0,0,0,"","","","","","","","","0",0,"豊浜",235107,0,0,"00"]
[null,null,null,null,null,null,null,null,null,null,null,null,null,null,null,108,null,null,null,null,null,null,null,null,null,null,null,null,"00","",{"$f":"IF(AD111=\"\",\"\",VLOOKUP(AD111,所属コード!$A$2:$E$189,2,FALSE))","v":""},{"$f":"IF(AD111=\"\",\"\",VLOOKUP(AD111,所属コード!$A$2:$G$189,7,FALSE))","v":""},null,null,null,null,null,null,null,"","",null,null,null,null,null,null,null,null,null,null,null,null,null,null,null,null,null,null,null,null,null,null,null,0,0,0,0,0,0,0,0,0,0,0,0,0,0,0,0,0,0,0,0,0,0,0,0,0,0,0,0,0,0,0,0,0,0,0,"","","","","","","","","0",0,"北浜",235108,0,0,"00"]
[null,null,null,null,null,null,null,null,null,null,null,null,null,null,null,109,null,null,null,null,null,null,null,null,null,null,null,null,"00","",{"$f":"IF(AD112=\"\",\"\",VLOOKUP(AD112,所属コード!$A$2:$E$189,2,FALSE))","v":""},{"$f":"IF(AD112=\"\",\"\",VLOOKUP(AD112,所属コード!$A$2:$G$189,7,FALSE))","v":""},null,null,null,null,null,null,null,"","",null,null,null,null,null,null,null,null,null,null,null,null,null,null,null,null,null,null,null,null,null,null,null,0,0,0,0,0,0,0,0,0,0,0,0,0,0,0,0,0,0,0,0,0,0,0,0,0,0,0,0,0,0,0,0,0,0,0,"","","","","","","","","0",0,"沼木",235109,0,0,"00"]
[null,null,null,null,null,null,null,null,null,null,null,null,null,null,null,110,null,null,null,null,null,null,null,null,null,null,null,null,"00","",{"$f":"IF(AD113=\"\",\"\",VLOOKUP(AD113,所属コード!$A$2:$E$189,2,FALSE))","v":""},{"$f":"IF(AD113=\"\",\"\",VLOOKUP(AD113,所属コード!$A$2:$G$189,7,FALSE))","v":""},null,null,null,null,null,null,null,"","",null,null,null,null,null,null,null,null,null,null,null,null,null,null,null,null,null,null,null,null,null,null,null,0,0,0,0,0,0,0,0,0,0,0,0,0,0,0,0,0,0,0,0,0,0,0,0,0,0,0,0,0,0,0,0,0,0,0,"","","","","","","","","0",0,"城田",235110,0,0,"00"]
[null,null,null,null,null,null,null,null,null,null,null,null,null,null,null,null,null,null,null,null,null,null,null,null,null,null,null,null,null,null,null,null,null,null,null,null,null,null,null,null,null,null,null,null,null,null,null,null,null,null,null,null,null,null,null,null,null,null,null,null,null,null,null,null,null,null,null,null,null,null,null,null,null,null,null,null,null,null,null,null,null,null,null,null,null,null,null,null,null,null,null,null,null,null,null,null,null,null,null,null,{"$f":"IF(AY114=\"\",\"\",LEN(AY114))","v":""},{"$f":"IF(AY114=\"\",\"\",FIND(\"　\",AY114,1))","v":""},{"$f":"IF(AY114=\"\",\"\",CW114-CX114)","v":""},{"$f":"IF(AY114=\"\",\"\",LEFT(AY114,CX114-1))","v":""},{"$f":"IF(AY114=\"\",\"\",RIGHT(AY114,CY114))","v":""},{"$f":"IF(AY114=\"\",\"\",IF(CW114=4,CONCATENATE(CZ114,\"　\",\"　\",DA114),IF(CW114=6,CONCATENATE(CZ114,DA114),AY114)))","v":""},null,null,null,"五十鈴",235111]
[null,null,null,null,null,null,null,null,null,null,null,null,null,null,null,null,null,null,null,null,null,null,null,null,null,null,null,null,null,null,null,null,null,null,null,null,null,null,null,null,null,null,null,null,null,null,null,null,null,null,null,null,null,null,null,null,null,null,null,null,null,null,null,null,null,null,null,null,null,null,null,null,null,null,null,null,null,null,null,null,null,null,null,null,null,null,null,null,null,null,null,null,null,null,null,null,null,null,null,null,{"$f":"IF(AY115=\"\",\"\",LEN(AY115))","v":""},{"$f":"IF(AY115=\"\",\"\",FIND(\"　\",AY115,1))","v":""},{"$f":"IF(AY115=\"\",\"\",CW115-CX115)","v":""},{"$f":"IF(AY115=\"\",\"\",LEFT(AY115,CX115-1))","v":""},{"$f":"IF(AY115=\"\",\"\",RIGHT(AY115,CY115))","v":""},{"$f":"IF(AY115=\"\",\"\",IF(CW115=4,CONCATENATE(CZ115,\"　\",\"　\",DA115),IF(CW115=6,CONCATENATE(CZ115,DA115),AY115)))","v":""},null,null,null,"皇學館",235112]
[null,null,null,null,null,null,null,null,null,null,null,null,null,null,null,null,null,null,null,null,null,null,null,null,null,null,null,null,null,null,null,null,null,null,null,null,null,null,null,null,null,null,null,null,null,null,null,null,null,null,null,null,null,null,null,null,null,null,null,null,null,null,null,null,null,null,null,null,null,null,null,null,null,null,null,null,null,null,null,null,null,null,null,null,null,null,null,null,null,null,null,null,null,null,null,null,null,null,null,null,{"$f":"IF(AY116=\"\",\"\",LEN(AY116))","v":""},{"$f":"IF(AY116=\"\",\"\",FIND(\"　\",AY116,1))","v":""},{"$f":"IF(AY116=\"\",\"\",CW116-CX116)","v":""},{"$f":"IF(AY116=\"\",\"\",LEFT(AY116,CX116-1))","v":""},{"$f":"IF(AY116=\"\",\"\",RIGHT(AY116,CY116))","v":""},{"$f":"IF(AY116=\"\",\"\",IF(CW116=4,CONCATENATE(CZ116,\"　\",\"　\",DA116),IF(CW116=6,CONCATENATE(CZ116,DA116),AY116)))","v":""},null,null,null,"二見",235113]
[null,null,null,null,null,null,null,null,null,null,null,null,null,null,null,null,null,null,null,null,null,null,null,null,null,null,null,null,null,null,null,null,null,null,null,null,null,null,null,null,null,null,null,null,null,null,null,null,null,null,null,null,null,null,null,null,null,null,null,null,null,null,null,null,null,null,null,null,null,null,null,null,null,null,null,null,null,null,null,null,null,null,null,null,null,null,null,null,null,null,null,null,null,null,null,null,null,null,null,null,{"$f":"IF(AY117=\"\",\"\",LEN(AY117))","v":""},{"$f":"IF(AY117=\"\",\"\",FIND(\"　\",AY117,1))","v":""},{"$f":"IF(AY117=\"\",\"\",CW117-CX117)","v":""},{"$f":"IF(AY117=\"\",\"\",LEFT(AY117,CX117-1))","v":""},{"$f":"IF(AY117=\"\",\"\",RIGHT(AY117,CY117))","v":""},{"$f":"IF(AY117=\"\",\"\",IF(CW117=4,CONCATENATE(CZ117,\"　\",\"　\",DA117),IF(CW117=6,CONCATENATE(CZ117,DA117),AY117)))","v":""},null,null,null,"御薗",235114]
[null,null,null,null,null,null,null,null,null,null,null,null,null,null,null,null,null,null,null,null,null,null,null,null,null,null,null,null,null,null,null,null,null,null,null,null,null,null,null,null,null,null,null,null,null,null,null,null,null,null,null,null,null,null,null,null,null,null,null,null,null,null,null,null,null,null,null,null,null,null,null,null,null,null,null,null,null,null,null,null,null,null,null,null,null,null,null,null,null,null,null,null,null,null,null,null,null,null,null,null,{"$f":"IF(AY118=\"\",\"\",LEN(AY118))","v":""},{"$f":"IF(AY118=\"\",\"\",FIND(\"　\",AY118,1))","v":""},{"$f":"IF(AY118=\"\",\"\",CW118-CX118)","v":""},{"$f":"IF(AY118=\"\",\"\",LEFT(AY118,CX118-1))","v":""},{"$f":"IF(AY118=\"\",\"\",RIGHT(AY118,CY118))","v":""},{"$f":"IF(AY118=\"\",\"\",IF(CW118=4,CONCATENATE(CZ118,\"　\",\"　\",DA118),IF(CW118=6,CONCATENATE(CZ118,DA118),AY118)))","v":""},null,null,null,"小俣",235115]
[null,null,null,null,null,null,null,null,null,null,null,null,null,null,null,null,null,null,null,null,null,null,null,null,null,null,null,null,null,null,null,null,null,null,null,null,null,null,null,null,null,null,null,null,null,null,null,null,null,null,null,null,null,null,null,null,null,null,null,null,null,null,null,null,null,null,null,null,null,null,null,null,null,null,null,null,null,null,null,null,null,null,null,null,null,null,null,null,null,null,null,null,null,null,null,null,null,null,null,null,null,null,null,null,null,null,null,null,null,"玉城",235116]
[null,null,null,null,null,null,null,null,null,null,null,null,null,null,null,null,null,null,null,null,null,null,null,null,null,null,null,null,null,null,null,null,null,null,null,null,null,null,null,null,null,null,null,null,null,null,null,null,null,null,null,null,null,null,null,null,null,null,null,null,null,null,null,null,null,null,null,null,null,null,null,null,null,null,null,null,null,null,null,null,null,null,null,null,null,null,null,null,null,null,null,null,null,null,null,null,null,null,null,null,null,null,null,null,null,null,null,null,null,"大宮",235117]
[null,null,null,null,null,null,null,null,null,null,null,null,null,null,null,null,null,null,null,null,null,null,null,null,null,null,null,null,null,null,null,null,null,null,null,null,null,null,null,null,null,null,null,null,null,null,null,null,null,null,null,null,null,null,null,null,null,null,null,null,null,null,null,null,null,null,null,null,null,null,null,null,null,null,null,null,null,null,null,null,null,null,null,null,null,null,null,null,null,null,null,null,null,null,null,null,null,null,null,null,null,null,null,null,null,null,null,null,null,"大紀",235119]
[null,null,null,null,null,null,null,null,null,null,null,null,null,null,null,null,null,null,null,null,null,null,null,null,null,null,null,null,null,null,null,null,null,null,null,null,null,null,null,null,null,null,null,null,null,null,null,null,null,null,null,null,null,null,null,null,null,null,null,null,null,null,null,null,null,null,null,null,null,null,null,null,null,null,null,null,null,null,null,null,null,null,null,null,null,null,null,null,null,null,null,null,null,null,null,null,null,null,null,null,null,null,null,null,null,null,null,null,null,"南島",235121]
[null,null,null,null,null,null,null,null,null,null,null,null,null,null,null,null,null,null,null,null,null,null,null,null,null,null,null,null,null,null,null,null,null,null,null,null,null,null,null,null,null,null,null,null,null,null,null,null,null,null,null,null,null,null,null,null,null,null,null,null,null,null,null,null,null,null,null,null,null,null,null,null,null,null,null,null,null,null,null,null,null,null,null,null,null,null,null,null,null,null,null,null,null,null,null,null,null,null,null,null,null,null,null,null,null,null,null,null,null,"南島西",235122]
[null,null,null,null,null,null,null,null,null,null,null,null,null,null,null,null,null,null,null,null,null,null,null,null,null,null,null,null,null,null,null,null,null,null,null,null,null,null,null,null,null,null,null,null,null,null,null,null,null,null,null,null,null,null,null,null,null,null,null,null,null,null,null,null,null,null,null,null,null,null,null,null,null,null,null,null,null,null,null,null,null,null,null,null,null,null,null,null,null,null,null,null,null,null,null,null,null,null,null,null,null,null,null,null,null,null,null,null,null,"南勢",235123]
[null,null,null,null,null,null,null,null,null,null,null,null,null,null,null,null,null,null,null,null,null,null,null,null,null,null,null,null,null,null,null,null,null,null,null,null,null,null,null,null,null,null,null,null,null,null,null,null,null,null,null,null,null,null,null,null,null,null,null,null,null,null,null,null,null,null,null,null,null,null,null,null,null,null,null,null,null,null,null,null,null,null,null,null,null,null,null,null,null,null,null,null,null,null,null,null,null,null,null,null,null,null,null,null,null,null,null,null,null,"度会",235124]
[null,null,null,null,null,null,null,null,null,null,null,null,null,null,null,null,null,null,null,null,null,null,null,null,null,null,null,null,null,null,null,null,null,null,null,null,null,null,null,null,null,null,null,null,null,null,null,null,null,null,null,null,null,null,null,null,null,null,null,null,null,null,null,null,null,null,null,null,null,null,null,null,null,null,null,null,null,null,null,null,null,null,null,null,null,null,null,null,null,null,null,null,null,null,null,null,null,null,null,null,null,null,null,null,null,null,null,null,null,"鳥羽東",235125]
[null,null,null,null,null,null,null,null,null,null,null,null,null,null,null,null,null,null,null,null,null,null,null,null,null,null,null,null,null,null,null,null,null,null,null,null,null,null,null,null,null,null,null,null,null,null,null,null,null,null,null,null,null,null,null,null,null,null,null,null,null,null,null,null,null,null,null,null,null,null,null,null,null,null,null,null,null,null,null,null,null,null,null,null,null,null,null,null,null,null,null,null,null,null,null,null,null,null,null,null,null,null,null,null,null,null,null,null,null,"答志",235126]
[null,null,null,null,null,null,null,null,null,null,null,null,null,null,null,null,null,null,null,null,null,null,null,null,null,null,null,null,null,null,null,null,null,null,null,null,null,null,null,null,null,null,null,null,null,null,null,null,null,null,null,null,null,null,null,null,null,null,null,null,null,null,null,null,null,null,null,null,null,null,null,null,null,null,null,null,null,null,null,null,null,null,null,null,null,null,null,null,null,null,null,null,null,null,null,null,null,null,null,null,null,null,null,null,null,null,null,null,null,"神島",235127]
[null,null,null,null,null,null,null,null,null,null,null,null,null,null,null,null,null,null,null,null,null,null,null,null,null,null,null,null,null,null,null,null,null,null,null,null,null,null,null,null,null,null,null,null,null,null,null,null,null,null,null,null,null,null,null,null,null,null,null,null,null,null,null,null,null,null,null,null,null,null,null,null,null,null,null,null,null,null,null,null,null,null,null,null,null,null,null,null,null,null,null,null,null,null,null,null,null,null,null,null,null,null,null,null,null,null,null,null,null,"加茂",235128]
[null,null,null,null,null,null,null,null,null,null,null,null,null,null,null,null,null,null,null,null,null,null,null,null,null,null,null,null,null,null,null,null,null,null,null,null,null,null,null,null,null,null,null,null,null,null,null,null,null,null,null,null,null,null,null,null,null,null,null,null,null,null,null,null,null,null,null,null,null,null,null,null,null,null,null,null,null,null,null,null,null,null,null,null,null,null,null,null,null,null,null,null,null,null,null,null,null,null,null,null,null,null,null,null,null,null,null,null,null,"鏡浦",235129]
[null,null,null,null,null,null,null,null,null,null,null,null,null,null,null,null,null,null,null,null,null,null,null,null,null,null,null,null,null,null,null,null,null,null,null,null,null,null,null,null,null,null,null,null,null,null,null,null,null,null,null,null,null,null,null,null,null,null,null,null,null,null,null,null,null,null,null,null,null,null,null,null,null,null,null,null,null,null,null,null,null,null,null,null,null,null,null,null,null,null,null,null,null,null,null,null,null,null,null,null,null,null,null,null,null,null,null,null,null,"長岡",235130]
[null,null,null,null,null,null,null,null,null,null,null,null,null,null,null,null,null,null,null,null,null,null,null,null,null,null,null,null,null,null,null,null,null,null,null,null,null,null,null,null,null,null,null,null,null,null,null,null,null,null,null,null,null,null,null,null,null,null,null,null,null,null,null,null,null,null,null,null,null,null,null,null,null,null,null,null,null,null,null,null,null,null,null,null,null,null,null,null,null,null,null,null,null,null,null,null,null,null,null,null,null,null,null,null,null,null,null,null,null,"浜島",235131]
[null,null,null,null,null,null,null,null,null,null,null,null,null,null,null,null,null,null,null,null,null,null,null,null,null,null,null,null,null,null,null,null,null,null,null,null,null,null,null,null,null,null,null,null,null,null,null,null,null,null,null,null,null,null,null,null,null,null,null,null,null,null,null,null,null,null,null,null,null,null,null,null,null,null,null,null,null,null,null,null,null,null,null,null,null,null,null,null,null,null,null,null,null,null,null,null,null,null,null,null,null,null,null,null,null,null,null,null,null,"大王",235132]
[null,null,null,null,null,null,null,null,null,null,null,null,null,null,null,null,null,null,null,null,null,null,null,null,null,null,null,null,null,null,null,null,null,null,null,null,null,null,null,null,null,null,null,null,null,null,null,null,null,null,null,null,null,null,null,null,null,null,null,null,null,null,null,null,null,null,null,null,null,null,null,null,null,null,null,null,null,null,null,null,null,null,null,null,null,null,null,null,null,null,null,null,null,null,null,null,null,null,null,null,null,null,null,null,null,null,null,null,null,"*",235133]
[null,null,null,null,null,null,null,null,null,null,null,null,null,null,null,null,null,null,null,null,null,null,null,null,null,null,null,null,null,null,null,null,null,null,null,null,null,null,null,null,null,null,null,null,null,null,null,null,null,null,null,null,null,null,null,null,null,null,null,null,null,null,null,null,null,null,null,null,null,null,null,null,null,null,null,null,null,null,null,null,null,null,null,null,null,null,null,null,null,null,null,null,null,null,null,null,null,null,null,null,null,null,null,null,null,null,null,null,null,"*",235134]
[null,null,null,null,null,null,null,null,null,null,null,null,null,null,null,null,null,null,null,null,null,null,null,null,null,null,null,null,null,null,null,null,null,null,null,null,null,null,null,null,null,null,null,null,null,null,null,null,null,null,null,null,null,null,null,null,null,null,null,null,null,null,null,null,null,null,null,null,null,null,null,null,null,null,null,null,null,null,null,null,null,null,null,null,null,null,null,null,null,null,null,null,null,null,null,null,null,null,null,null,null,null,null,null,null,null,null,null,null,"志摩",235135]
[null,null,null,null,null,null,null,null,null,null,null,null,null,null,null,null,null,null,null,null,null,null,null,null,null,null,null,null,null,null,null,null,null,null,null,null,null,null,null,null,null,null,null,null,null,null,null,null,null,null,null,null,null,null,null,null,null,null,null,null,null,null,null,null,null,null,null,null,null,null,null,null,null,null,null,null,null,null,null,null,null,null,null,null,null,null,null,null,null,null,null,null,null,null,null,null,null,null,null,null,null,null,null,null,null,null,null,null,null,"*",235136]
[null,null,null,null,null,null,null,null,null,null,null,null,null,null,null,null,null,null,null,null,null,null,null,null,null,null,null,null,null,null,null,null,null,null,null,null,null,null,null,null,null,null,null,null,null,null,null,null,null,null,null,null,null,null,null,null,null,null,null,null,null,null,null,null,null,null,null,null,null,null,null,null,null,null,null,null,null,null,null,null,null,null,null,null,null,null,null,null,null,null,null,null,null,null,null,null,null,null,null,null,null,null,null,null,null,null,null,null,null,"文岡",235137]
[null,null,null,null,null,null,null,null,null,null,null,null,null,null,null,null,null,null,null,null,null,null,null,null,null,null,null,null,null,null,null,null,null,null,null,null,null,null,null,null,null,null,null,null,null,null,null,null,null,null,null,null,null,null,null,null,null,null,null,null,null,null,null,null,null,null,null,null,null,null,null,null,null,null,null,null,null,null,null,null,null,null,null,null,null,null,null,null,null,null,null,null,null,null,null,null,null,null,null,null,null,null,null,null,null,null,null,null,null,"東海",235138]
[null,null,null,null,null,null,null,null,null,null,null,null,null,null,null,null,null,null,null,null,null,null,null,null,null,null,null,null,null,null,null,null,null,null,null,null,null,null,null,null,null,null,null,null,null,null,null,null,null,null,null,null,null,null,null,null,null,null,null,null,null,null,null,null,null,null,null,null,null,null,null,null,null,null,null,null,null,null,null,null,null,null,null,null,null,null,null,null,null,null,null,null,null,null,null,null,null,null,null,null,null,null,null,null,null,null,null,null,null,"安乗",235139]
[null,null,null,null,null,null,null,null,null,null,null,null,null,null,null,null,null,null,null,null,null,null,null,null,null,null,null,null,null,null,null,null,null,null,null,null,null,null,null,null,null,null,null,null,null,null,null,null,null,null,null,null,null,null,null,null,null,null,null,null,null,null,null,null,null,null,null,null,null,null,null,null,null,null,null,null,null,null,null,null,null,null,null,null,null,null,null,null,null,null,null,null,null,null,null,null,null,null,null,null,null,null,null,null,null,null,null,null,null,"磯部",235140]
[null,null,null,null,null,null,null,null,null,null,null,null,null,null,null,null,null,null,null,null,null,null,null,null,null,null,null,null,null,null,null,null,null,null,null,null,null,null,null,null,null,null,null,null,null,null,null,null,null,null,null,null,null,null,null,null,null,null,null,null,null,null,null,null,null,null,null,null,null,null,null,null,null,null,null,null,null,null,null,null,null,null,null,null,null,null,null,null,null,null,null,null,null,null,null,null,null,null,null,null,null,null,null,null,null,null,null,null,null,"的矢",235141]
[null,null,null,null,null,null,null,null,null,null,null,null,null,null,null,null,null,null,null,null,null,null,null,null,null,null,null,null,null,null,null,null,null,null,null,null,null,null,null,null,null,null,null,null,null,null,null,null,null,null,null,null,null,null,null,null,null,null,null,null,null,null,null,null,null,null,null,null,null,null,null,null,null,null,null,null,null,null,null,null,null,null,null,null,null,null,null,null,null,null,null,null,null,null,null,null,null,null,null,null,null,null,null,null,null,null,null,null,null,"崇広",235142]
[null,null,null,null,null,null,null,null,null,null,null,null,null,null,null,null,null,null,null,null,null,null,null,null,null,null,null,null,null,null,null,null,null,null,null,null,null,null,null,null,null,null,null,null,null,null,null,null,null,null,null,null,null,null,null,null,null,null,null,null,null,null,null,null,null,null,null,null,null,null,null,null,null,null,null,null,null,null,null,null,null,null,null,null,null,null,null,null,null,null,null,null,null,null,null,null,null,null,null,null,null,null,null,null,null,null,null,null,null,"城東",235143]
[null,null,null,null,null,null,null,null,null,null,null,null,null,null,null,null,null,null,null,null,null,null,null,null,null,null,null,null,null,null,null,null,null,null,null,null,null,null,null,null,null,null,null,null,null,null,null,null,null,null,null,null,null,null,null,null,null,null,null,null,null,null,null,null,null,null,null,null,null,null,null,null,null,null,null,null,null,null,null,null,null,null,null,null,null,null,null,null,null,null,null,null,null,null,null,null,null,null,null,null,null,null,null,null,null,null,null,null,null,"緑ヶ丘",235144]
[null,null,null,null,null,null,null,null,null,null,null,null,null,null,null,null,null,null,null,null,null,null,null,null,null,null,null,null,null,null,null,null,null,null,null,null,null,null,null,null,null,null,null,null,null,null,null,null,null,null,null,null,null,null,null,null,null,null,null,null,null,null,null,null,null,null,null,null,null,null,null,null,null,null,null,null,null,null,null,null,null,null,null,null,null,null,null,null,null,null,null,null,null,null,null,null,null,null,null,null,null,null,null,null,null,null,null,null,null,"成和",235146]
[null,null,null,null,null,null,null,null,null,null,null,null,null,null,null,null,null,null,null,null,null,null,null,null,null,null,null,null,null,null,null,null,null,null,null,null,null,null,null,null,null,null,null,null,null,null,null,null,null,null,null,null,null,null,null,null,null,null,null,null,null,null,null,null,null,null,null,null,null,null,null,null,null,null,null,null,null,null,null,null,null,null,null,null,null,null,null,null,null,null,null,null,null,null,null,null,null,null,null,null,null,null,null,null,null,null,null,null,null,"丸山",235147]
[null,null,null,null,null,null,null,null,null,null,null,null,null,null,null,null,null,null,null,null,null,null,null,null,null,null,null,null,null,null,null,null,null,null,null,null,null,null,null,null,null,null,null,null,null,null,null,null,null,null,null,null,null,null,null,null,null,null,null,null,null,null,null,null,null,null,null,null,null,null,null,null,null,null,null,null,null,null,null,null,null,null,null,null,null,null,null,null,null,null,null,null,null,null,null,null,null,null,null,null,null,null,null,null,null,null,null,null,null,"桜丘",235148]
[null,null,null,null,null,null,null,null,null,null,null,null,null,null,null,null,null,null,null,null,null,null,null,null,null,null,null,null,null,null,null,null,null,null,null,null,null,null,null,null,null,null,null,null,null,null,null,null,null,null,null,null,null,null,null,null,null,null,null,null,null,null,null,null,null,null,null,null,null,null,null,null,null,null,null,null,null,null,null,null,null,null,null,null,null,null,null,null,null,null,null,null,null,null,null,null,null,null,null,null,null,null,null,null,null,null,null,null,null,"名張",235149]
[null,null,null,null,null,null,null,null,null,null,null,null,null,null,null,null,null,null,null,null,null,null,null,null,null,null,null,null,null,null,null,null,null,null,null,null,null,null,null,null,null,null,null,null,null,null,null,null,null,null,null,null,null,null,null,null,null,null,null,null,null,null,null,null,null,null,null,null,null,null,null,null,null,null,null,null,null,null,null,null,null,null,null,null,null,null,null,null,null,null,null,null,null,null,null,null,null,null,null,null,null,null,null,null,null,null,null,null,null,"赤目",235150]
[null,null,null,null,null,null,null,null,null,null,null,null,null,null,null,null,null,null,null,null,null,null,null,null,null,null,null,null,null,null,null,null,null,null,null,null,null,null,null,null,null,null,null,null,null,null,null,null,null,null,null,null,null,null,null,null,null,null,null,null,null,null,null,null,null,null,null,null,null,null,null,null,null,null,null,null,null,null,null,null,null,null,null,null,null,null,null,null,null,null,null,null,null,null,null,null,null,null,null,null,null,null,null,null,null,null,null,null,null,"桔梗が丘",235151]
[null,null,null,null,null,null,null,null,null,null,null,null,null,null,null,null,null,null,null,null,null,null,null,null,null,null,null,null,null,null,null,null,null,null,null,null,null,null,null,null,null,null,null,null,null,null,null,null,null,null,null,null,null,null,null,null,null,null,null,null,null,null,null,null,null,null,null,null,null,null,null,null,null,null,null,null,null,null,null,null,null,null,null,null,null,null,null,null,null,null,null,null,null,null,null,null,null,null,null,null,null,null,null,null,null,null,null,null,null,"名張北",235152]
[null,null,null,null,null,null,null,null,null,null,null,null,null,null,null,null,null,null,null,null,null,null,null,null,null,null,null,null,null,null,null,null,null,null,null,null,null,null,null,null,null,null,null,null,null,null,null,null,null,null,null,null,null,null,null,null,null,null,null,null,null,null,null,null,null,null,null,null,null,null,null,null,null,null,null,null,null,null,null,null,null,null,null,null,null,null,null,null,null,null,null,null,null,null,null,null,null,null,null,null,null,null,null,null,null,null,null,null,null,"南",235153]
[null,null,null,null,null,null,null,null,null,null,null,null,null,null,null,null,null,null,null,null,null,null,null,null,null,null,null,null,null,null,null,null,null,null,null,null,null,null,null,null,null,null,null,null,null,null,null,null,null,null,null,null,null,null,null,null,null,null,null,null,null,null,null,null,null,null,null,null,null,null,null,null,null,null,null,null,null,null,null,null,null,null,null,null,null,null,null,null,null,null,null,null,null,null,null,null,null,null,null,null,null,null,null,null,null,null,null,null,null,"青山",235154]
[null,null,null,null,null,null,null,null,null,null,null,null,null,null,null,null,null,null,null,null,null,null,null,null,null,null,null,null,null,null,null,null,null,null,null,null,null,null,null,null,null,null,null,null,null,null,null,null,null,null,null,null,null,null,null,null,null,null,null,null,null,null,null,null,null,null,null,null,null,null,null,null,null,null,null,null,null,null,null,null,null,null,null,null,null,null,null,null,null,null,null,null,null,null,null,null,null,null,null,null,null,null,null,null,null,null,null,null,null,"柘植",235155]
[null,null,null,null,null,null,null,null,null,null,null,null,null,null,null,null,null,null,null,null,null,null,null,null,null,null,null,null,null,null,null,null,null,null,null,null,null,null,null,null,null,null,null,null,null,null,null,null,null,null,null,null,null,null,null,null,null,null,null,null,null,null,null,null,null,null,null,null,null,null,null,null,null,null,null,null,null,null,null,null,null,null,null,null,null,null,null,null,null,null,null,null,null,null,null,null,null,null,null,null,null,null,null,null,null,null,null,null,null,"霊峰",235156]
[null,null,null,null,null,null,null,null,null,null,null,null,null,null,null,null,null,null,null,null,null,null,null,null,null,null,null,null,null,null,null,null,null,null,null,null,null,null,null,null,null,null,null,null,null,null,null,null,null,null,null,null,null,null,null,null,null,null,null,null,null,null,null,null,null,null,null,null,null,null,null,null,null,null,null,null,null,null,null,null,null,null,null,null,null,null,null,null,null,null,null,null,null,null,null,null,null,null,null,null,null,null,null,null,null,null,null,null,null,"島ヶ原",235157]
[null,null,null,null,null,null,null,null,null,null,null,null,null,null,null,null,null,null,null,null,null,null,null,null,null,null,null,null,null,null,null,null,null,null,null,null,null,null,null,null,null,null,null,null,null,null,null,null,null,null,null,null,null,null,null,null,null,null,null,null,null,null,null,null,null,null,null,null,null,null,null,null,null,null,null,null,null,null,null,null,null,null,null,null,null,null,null,null,null,null,null,null,null,null,null,null,null,null,null,null,null,null,null,null,null,null,null,null,null,"阿山",235158]
[null,null,null,null,null,null,null,null,null,null,null,null,null,null,null,null,null,null,null,null,null,null,null,null,null,null,null,null,null,null,null,null,null,null,null,null,null,null,null,null,null,null,null,null,null,null,null,null,null,null,null,null,null,null,null,null,null,null,null,null,null,null,null,null,null,null,null,null,null,null,null,null,null,null,null,null,null,null,null,null,null,null,null,null,null,null,null,null,null,null,null,null,null,null,null,null,null,null,null,null,null,null,null,null,null,null,null,null,null,"大山田",235159]
[null,null,null,null,null,null,null,null,null,null,null,null,null,null,null,null,null,null,null,null,null,null,null,null,null,null,null,null,null,null,null,null,null,null,null,null,null,null,null,null,null,null,null,null,null,null,null,null,null,null,null,null,null,null,null,null,null,null,null,null,null,null,null,null,null,null,null,null,null,null,null,null,null,null,null,null,null,null,null,null,null,null,null,null,null,null,null,null,null,null,null,null,null,null,null,null,null,null,null,null,null,null,null,null,null,null,null,null,null,"尾鷲",235160]
[null,null,null,null,null,null,null,null,null,null,null,null,null,null,null,null,null,null,null,null,null,null,null,null,null,null,null,null,null,null,null,null,null,null,null,null,null,null,null,null,null,null,null,null,null,null,null,null,null,null,null,null,null,null,null,null,null,null,null,null,null,null,null,null,null,null,null,null,null,null,null,null,null,null,null,null,null,null,null,null,null,null,null,null,null,null,null,null,null,null,null,null,null,null,null,null,null,null,null,null,null,null,null,null,null,null,null,null,null,"九鬼",235161]
[null,null,null,null,null,null,null,null,null,null,null,null,null,null,null,null,null,null,null,null,null,null,null,null,null,null,null,null,null,null,null,null,null,null,null,null,null,null,null,null,null,null,null,null,null,null,null,null,null,null,null,null,null,null,null,null,null,null,null,null,null,null,null,null,null,null,null,null,null,null,null,null,null,null,null,null,null,null,null,null,null,null,null,null,null,null,null,null,null,null,null,null,null,null,null,null,null,null,null,null,null,null,null,null,null,null,null,null,null,"北輪内",235162]
[null,null,null,null,null,null,null,null,null,null,null,null,null,null,null,null,null,null,null,null,null,null,null,null,null,null,null,null,null,null,null,null,null,null,null,null,null,null,null,null,null,null,null,null,null,null,null,null,null,null,null,null,null,null,null,null,null,null,null,null,null,null,null,null,null,null,null,null,null,null,null,null,null,null,null,null,null,null,null,null,null,null,null,null,null,null,null,null,null,null,null,null,null,null,null,null,null,null,null,null,null,null,null,null,null,null,null,null,null,"輪内",235163]
[null,null,null,null,null,null,null,null,null,null,null,null,null,null,null,null,null,null,null,null,null,null,null,null,null,null,null,null,null,null,null,null,null,null,null,null,null,null,null,null,null,null,null,null,null,null,null,null,null,null,null,null,null,null,null,null,null,null,null,null,null,null,null,null,null,null,null,null,null,null,null,null,null,null,null,null,null,null,null,null,null,null,null,null,null,null,null,null,null,null,null,null,null,null,null,null,null,null,null,null,null,null,null,null,null,null,null,null,null,"紀北",235164]
[null,null,null,null,null,null,null,null,null,null,null,null,null,null,null,null,null,null,null,null,null,null,null,null,null,null,null,null,null,null,null,null,null,null,null,null,null,null,null,null,null,null,null,null,null,null,null,null,null,null,null,null,null,null,null,null,null,null,null,null,null,null,null,null,null,null,null,null,null,null,null,null,null,null,null,null,null,null,null,null,null,null,null,null,null,null,null,null,null,null,null,null,null,null,null,null,null,null,null,null,null,null,null,null,null,null,null,null,null,"赤羽",235165]
[null,null,null,null,null,null,null,null,null,null,null,null,null,null,null,null,null,null,null,null,null,null,null,null,null,null,null,null,null,null,null,null,null,null,null,null,null,null,null,null,null,null,null,null,null,null,null,null,null,null,null,null,null,null,null,null,null,null,null,null,null,null,null,null,null,null,null,null,null,null,null,null,null,null,null,null,null,null,null,null,null,null,null,null,null,null,null,null,null,null,null,null,null,null,null,null,null,null,null,null,null,null,null,null,null,null,null,null,null,"潮南",235166]
[null,null,null,null,null,null,null,null,null,null,null,null,null,null,null,null,null,null,null,null,null,null,null,null,null,null,null,null,null,null,null,null,null,null,null,null,null,null,null,null,null,null,null,null,null,null,null,null,null,null,null,null,null,null,null,null,null,null,null,null,null,null,null,null,null,null,null,null,null,null,null,null,null,null,null,null,null,null,null,null,null,null,null,null,null,null,null,null,null,null,null,null,null,null,null,null,null,null,null,null,null,null,null,null,null,null,null,null,null,"三船",235167]
[null,null,null,null,null,null,null,null,null,null,null,null,null,null,null,null,null,null,null,null,null,null,null,null,null,null,null,null,null,null,null,null,null,null,null,null,null,null,null,null,null,null,null,null,null,null,null,null,null,null,null,null,null,null,null,null,null,null,null,null,null,null,null,null,null,null,null,null,null,null,null,null,null,null,null,null,null,null,null,null,null,null,null,null,null,null,null,null,null,null,null,null,null,null,null,null,null,null,null,null,null,null,null,null,null,null,null,null,null,"荒坂",235168]
[null,null,null,null,null,null,null,null,null,null,null,null,null,null,null,null,null,null,null,null,null,null,null,null,null,null,null,null,null,null,null,null,null,null,null,null,null,null,null,null,null,null,null,null,null,null,null,null,null,null,null,null,null,null,null,null,null,null,null,null,null,null,null,null,null,null,null,null,null,null,null,null,null,null,null,null,null,null,null,null,null,null,null,null,null,null,null,null,null,null,null,null,null,null,null,null,null,null,null,null,null,null,null,null,null,null,null,null,null,"新鹿",235169]
[null,null,null,null,null,null,null,null,null,null,null,null,null,null,null,null,null,null,null,null,null,null,null,null,null,null,null,null,null,null,null,null,null,null,null,null,null,null,null,null,null,null,null,null,null,null,null,null,null,null,null,null,null,null,null,null,null,null,null,null,null,null,null,null,null,null,null,null,null,null,null,null,null,null,null,null,null,null,null,null,null,null,null,null,null,null,null,null,null,null,null,null,null,null,null,null,null,null,null,null,null,null,null,null,null,null,null,null,null,"木本",235170]
[null,null,null,null,null,null,null,null,null,null,null,null,null,null,null,null,null,null,null,null,null,null,null,null,null,null,null,null,null,null,null,null,null,null,null,null,null,null,null,null,null,null,null,null,null,null,null,null,null,null,null,null,null,null,null,null,null,null,null,null,null,null,null,null,null,null,null,null,null,null,null,null,null,null,null,null,null,null,null,null,null,null,null,null,null,null,null,null,null,null,null,null,null,null,null,null,null,null,null,null,null,null,null,null,null,null,null,null,null,"有馬",235171]
[null,null,null,null,null,null,null,null,null,null,null,null,null,null,null,null,null,null,null,null,null,null,null,null,null,null,null,null,null,null,null,null,null,null,null,null,null,null,null,null,null,null,null,null,null,null,null,null,null,null,null,null,null,null,null,null,null,null,null,null,null,null,null,null,null,null,null,null,null,null,null,null,null,null,null,null,null,null,null,null,null,null,null,null,null,null,null,null,null,null,null,null,null,null,null,null,null,null,null,null,null,null,null,null,null,null,null,null,null,"育生",235172]
[null,null,null,null,null,null,null,null,null,null,null,null,null,null,null,null,null,null,null,null,null,null,null,null,null,null,null,null,null,null,null,null,null,null,null,null,null,null,null,null,null,null,null,null,null,null,null,null,null,null,null,null,null,null,null,null,null,null,null,null,null,null,null,null,null,null,null,null,null,null,null,null,null,null,null,null,null,null,null,null,null,null,null,null,null,null,null,null,null,null,null,null,null,null,null,null,null,null,null,null,null,null,null,null,null,null,null,null,null,"神上",235173]
[null,null,null,null,null,null,null,null,null,null,null,null,null,null,null,null,null,null,null,null,null,null,null,null,null,null,null,null,null,null,null,null,null,null,null,null,null,null,null,null,null,null,null,null,null,null,null,null,null,null,null,null,null,null,null,null,null,null,null,null,null,null,null,null,null,null,null,null,null,null,null,null,null,null,null,null,null,null,null,null,null,null,null,null,null,null,null,null,null,null,null,null,null,null,null,null,null,null,null,null,null,null,null,null,null,null,null,null,null,"五郷",235174]
[null,null,null,null,null,null,null,null,null,null,null,null,null,null,null,null,null,null,null,null,null,null,null,null,null,null,null,null,null,null,null,null,null,null,null,null,null,null,null,null,null,null,null,null,null,null,null,null,null,null,null,null,null,null,null,null,null,null,null,null,null,null,null,null,null,null,null,null,null,null,null,null,null,null,null,null,null,null,null,null,null,null,null,null,null,null,null,null,null,null,null,null,null,null,null,null,null,null,null,null,null,null,null,null,null,null,null,null,null,"飛鳥",235175]
[null,null,null,null,null,null,null,null,null,null,null,null,null,null,null,null,null,null,null,null,null,null,null,null,null,null,null,null,null,null,null,null,null,null,null,null,null,null,null,null,null,null,null,null,null,null,null,null,null,null,null,null,null,null,null,null,null,null,null,null,null,null,null,null,null,null,null,null,null,null,null,null,null,null,null,null,null,null,null,null,null,null,null,null,null,null,null,null,null,null,null,null,null,null,null,null,null,null,null,null,null,null,null,null,null,null,null,null,null,"御浜",235176]
[null,null,null,null,null,null,null,null,null,null,null,null,null,null,null,null,null,null,null,null,null,null,null,null,null,null,null,null,null,null,null,null,null,null,null,null,null,null,null,null,null,null,null,null,null,null,null,null,null,null,null,null,null,null,null,null,null,null,null,null,null,null,null,null,null,null,null,null,null,null,null,null,null,null,null,null,null,null,null,null,null,null,null,null,null,null,null,null,null,null,null,null,null,null,null,null,null,null,null,null,null,null,null,null,null,null,null,null,null,"阿田和",235177]
[null,null,null,null,null,null,null,null,null,null,null,null,null,null,null,null,null,null,null,null,null,null,null,null,null,null,null,null,null,null,null,null,null,null,null,null,null,null,null,null,null,null,null,null,null,null,null,null,null,null,null,null,null,null,null,null,null,null,null,null,null,null,null,null,null,null,null,null,null,null,null,null,null,null,null,null,null,null,null,null,null,null,null,null,null,null,null,null,null,null,null,null,null,null,null,null,null,null,null,null,null,null,null,null,null,null,null,null,null,"尾呂志学園",235178]
[null,null,null,null,null,null,null,null,null,null,null,null,null,null,null,null,null,null,null,null,null,null,null,null,null,null,null,null,null,null,null,null,null,null,null,null,null,null,null,null,null,null,null,null,null,null,null,null,null,null,null,null,null,null,null,null,null,null,null,null,null,null,null,null,null,null,null,null,null,null,null,null,null,null,null,null,null,null,null,null,null,null,null,null,null,null,null,null,null,null,null,null,null,null,null,null,null,null,null,null,null,null,null,null,null,null,null,null,null,"相野谷",235179]
[null,null,null,null,null,null,null,null,null,null,null,null,null,null,null,null,null,null,null,null,null,null,null,null,null,null,null,null,null,null,null,null,null,null,null,null,null,null,null,null,null,null,null,null,null,null,null,null,null,null,null,null,null,null,null,null,null,null,null,null,null,null,null,null,null,null,null,null,null,null,null,null,null,null,null,null,null,null,null,null,null,null,null,null,null,null,null,null,null,null,null,null,null,null,null,null,null,null,null,null,null,null,null,null,null,null,null,null,null,"入鹿",235180]
[null,null,null,null,null,null,null,null,null,null,null,null,null,null,null,null,null,null,null,null,null,null,null,null,null,null,null,null,null,null,null,null,null,null,null,null,null,null,null,null,null,null,null,null,null,null,null,null,null,null,null,null,null,null,null,null,null,null,null,null,null,null,null,null,null,null,null,null,null,null,null,null,null,null,null,null,null,null,null,null,null,null,null,null,null,null,null,null,null,null,null,null,null,null,null,null,null,null,null,null,null,null,null,null,null,null,null,null,null,"矢渕",235181]
[null,null,null,null,null,null,null,null,null,null,null,null,null,null,null,null,null,null,null,null,null,null,null,null,null,null,null,null,null,null,null,null,null,null,null,null,null,null,null,null,null,null,null,null,null,null,null,null,null,null,null,null,null,null,null,null,null,null,null,null,null,null,null,null,null,null,null,null,null,null,null,null,null,null,null,null,null,null,null,null,null,null,null,null,null,null,null,null,null,null,null,null,null,null,null,null,null,null,null,null,null,null,null,null,null,null,null,null,null,"Y_W_C",230082]
[null,null,null,null,null,null,null,null,null,null,null,null,null,null,null,null,null,null,null,null,null,null,null,null,null,null,null,null,null,null,null,null,null,null,null,null,null,null,null,null,null,null,null,null,null,null,null,null,null,null,null,null,null,null,null,null,null,null,null,null,null,null,null,null,null,null,null,null,null,null,null,null,null,null,null,null,null,null,null,null,null,null,null,null,null,null,null,null,null,null,null,null,null,null,null,null,null,null,null,null,null,null,null,null,null,null,null,null,null,"ｱｽﾘｰﾄY",239128]
[null,null,null,null,null,null,null,null,null,null,null,null,null,null,null,null,null,null,null,null,null,null,null,null,null,null,null,null,null,null,null,null,null,null,null,null,null,null,null,null,null,null,null,null,null,null,null,null,null,null,null,null,null,null,null,null,null,null,null,null,null,null,null,null,null,null,null,null,null,null,null,null,null,null,null,null,null,null,null,null,null,null,null,null,null,null,null,null,null,null,null,null,null,null,null,null,null,null,null,null,null,null,null,null,null,null,null,null,null,"ASSA-TC",230081]
[null,null,null,null,null,null,null,null,null,null,null,null,null,null,null,null,null,null,null,null,null,null,null,null,null,null,null,null,null,null,null,null,null,null,null,null,null,null,null,null,null,null,null,null,null,null,null,null,null,null,null,null,null,null,null,null,null,null,null,null,null,null,null,null,null,null,null,null,null,null,null,null,null,null,null,null,null,null,null,null,null,null,null,null,null,null,null,null,null,null,null,null,null,null,null,null,null,null,null,null,null,null,null,null,null,null,null,null,null,"イムラＡＡ",239125]
[null,null,null,null,null,null,null,null,null,null,null,null,null,null,null,null,null,null,null,null,null,null,null,null,null,null,null,null,null,null,null,null,null,null,null,null,null,null,null,null,null,null,null,null,null,null,null,null,null,null,null,null,null,null,null,null,null,null,null,null,null,null,null,null,null,null,null,null,null,null,null,null,null,null,null,null,null,null,null,null,null,null,null,null,null,null,null,null,null,null,null,null,null,null,null,null,null,null,null,null,null,null,null,null,null,null,null,null,null,"橋南スポク",230096]
[null,null,null,null,null,null,null,null,null,null,null,null,null,null,null,null,null,null,null,null,null,null,null,null,null,null,null,null,null,null,null,null,null,null,null,null,null,null,null,null,null,null,null,null,null,null,null,null,null,null,null,null,null,null,null,null,null,null,null,null,null,null,null,null,null,null,null,null,null,null,null,null,null,null,null,null,null,null,null,null,null,null,null,null,null,null,null,null,null,null,null,null,null,null,null,null,null,null,null,null,null,null,null,null,null,null,null,null,null,"J＆E久居",239127]
[null,null,null,null,null,null,null,null,null,null,null,null,null,null,null,null,null,null,null,null,null,null,null,null,null,null,null,null,null,null,null,null,null,null,null,null,null,null,null,null,null,null,null,null,null,null,null,null,null,null,null,null,null,null,null,null,null,null,null,null,null,null,null,null,null,null,null,null,null,null,null,null,null,null,null,null,null,null,null,null,null,null,null,null,null,null,null,null,null,null,null,null,null,null,null,null,null,null,null,null,null,null,null,null,null,null,null,null,null,"伊賀TC",230092]
[null,null,null,null,null,null,null,null,null,null,null,null,null,null,null,null,null,null,null,null,null,null,null,null,null,null,null,null,null,null,null,null,null,null,null,null,null,null,null,null,null,null,null,null,null,null,null,null,null,null,null,null,null,null,null,null,null,null,null,null,null,null,null,null,null,null,null,null,null,null,null,null,null,null,null,null,null,null,null,null,null,null,null,null,null,null,null,null,null,null,null,null,null,null,null,null,null,null,null,null,null,null,null,null,null,null,null,null,null,"上野ＡＣ",239125]
[null,null,null,null,null,null,null,null,null,null,null,null,null,null,null,null,null,null,null,null,null,null,null,null,null,null,null,null,null,null,null,null,null,null,null,null,null,null,null,null,null,null,null,null,null,null,null,null,null,null,null,null,null,null,null,null,null,null,null,null,null,null,null,null,null,null,null,null,null,null,null,null,null,null,null,null,null,null,null,null,null,null,null,null,null,null,null,null,null,null,null,null,null,null,null,null,null,null,null,null,null,null,null,null,null,null,null,null,null,"名張ｸﾗﾌﾞ",230116]
[null,null,null,null,null,null,null,null,null,null,null,null,null,null,null,null,null,null,null,null,null,null,null,null,null,null,null,null,null,null,null,null,null,null,null,null,null,null,null,null,null,null,null,null,null,null,null,null,null,null,null,null,null,null,null,null,null,null,null,null,null,null,null,null,null,null,null,null,null,null,null,null,null,null,null,null,null,null,null,null,null,null,null,null,null,null,null,null,null,null,null,null,null,null,null,null,null,null,null,null,null,null,null,null,null,null,null,null,null,"熊野ＲＣ",230115]

{"sheet":"中学生記録会","index":1,"n_rows":117,"n_cols":58,"rows_kept":117,"cut":false,"hidden":false,"merged":[[37,50,37,51],[38,50,38,51],[45,50,45,51],[46,50,46,51],[4,19,4,24],[16,38,16,39],[17,38,17,39],[5,38,5,40],[7,38,7,39],[12,38,12,39],[6,38,6,40],[11,38,11,40],[5,50,5,51],[43,38,43,39],[30,50,30,51],[30,38,30,39],[5,52,5,53],[6,50,6,51],[6,52,6,53],[14,50,14,51],[13,50,13,51],[13,52,13,53],[14,52,14,53],[30,52,30,53],[21,50,21,51],[21,52,21,53],[22,50,22,51],[22,52,22,53],[29,50,29,51],[29,52,29,53]]}
[null,null,null,null,"所属名",{"$f":"IF(前年度登録!$AD$4=\"\",\"\",前年度登録!$AD$4)","v":0}]
[null,null,null,null,"所属コード",{"$f":"前年度登録!$AE$4","v":{"$error":"#N/A"}},"中学生記録会"]
[null,null,null,null,"顧問名",{"$f":"IF(前年度登録!$S$1=\"\",\"\",前年度登録!$S$1)","v":""},"男子",null,null,null,null,null,null,null,{"$f":"COUNTIF($I$7:$I$116,1)-COUNTIF($AW$7:$AW$116,0)","v":0}]
[null,null,null,null,"顧問連絡先",{"$f":"IF(前年度登録!$X$1=\"\",\"\",前年度登録!$X$1)","v":""},"女子",null,null,null,null,null,null,null,{"$f":"COUNTIF($I$7:$I$116,2)-COUNTIF($AX$7:$AX$116,0)","v":0},null,{"$f":"O3+O4","v":0}]
[null,null,null,null,null,null,"大会参加費",null,null,null,null,null,null,null,{"$f":"(AN30+AN42)*500+($AQ$48*1000)","v":0},null,null,null,null,"リレー2種目は　　　　　　　出場できません"]
["競技者コード","所属コード","所属コードB","ナンバーA","ナンバー","名　前","カナ名","掲示板名","性別","学年","生年","月日","個人所属地コード","陸連ID","1種目","コード","記録",null,null,"2種目","コード","記録",null,null,"4×100R","コード","記録3","種目4","コード","自己記録4","種目5","コード","自己記録5",null,null,null,100,null,"4×100mＲ",null,null,null,null,null,null,null,null,"種目数","男子","女子","男子4×100mR",null,"女子4×100mR"]
[{"$f":"Y7","v":0},{"$f":"前年度登録!AE4","v":{"$error":"#N/A"}},{"$f":"Y7","v":0},null,{"$f":"前年度登録!T4","v":0},{"$f":"前年度登録!DB4","v":""},{"$f":"前年度登録!AO4","v":""},{"$f":"前年度登録!DB4","v":""},{"$f":"前年度登録!AN4","v":""},{"$f":"前年度登録!DC4","v":""},{"$f":"前年度登録!DE4","v":0},{"$f":"前年度登録!DJ4","v":"00"},"三重",{"$f":"前年度登録!S4","v":0},null,{"$f":"IF(O7=\"\",\"\",IF(I7=1,VLOOKUP(O7,$AM$19:$AO$29,3,FALSE),IF(I7=2,VLOOKUP(O7,$AM$32:$AO$41,3,FALSE))))","v":""},{"$f":"IF(O7=\"\",\"\",HLOOKUP(O7,前年度登録!$AW$3:$CW$118,2,FALSE))","v":""},{"$f":"IF(O7=\"\",\"\",0)","v":""},{"$f":"IF(O7=\"\",\"\",2)","v":""},null,{"$f":"IF(T7=\"\",\"\",IF(I7=1,VLOOKUP(T7,$AM$19:$AO$29,3,FALSE),IF(I7=2,VLOOKUP(T7,$AM$32:$AO$41,3,FALSE))))","v":""},null,{"$f":"IF(T7=\"\",\"\",0)","v":""},{"$f":"IF(T7=\"\",\"\",2)","v":""},null,{"$f":"IF(Y7=\"\",\"\",IF(I7=1,VLOOKUP(Y7,$AM$48:$AN$50,2,FALSE),IF(I7=2,VLOOKUP(Y7,$AM$51:$AN$53,2,FALSE))))","v":""},null,null,{"$f":"IF(AB7=\"\",\"\",IF(I7=1,VLOOKUP(AB7,#REF!,2,FALSE),IF(I7=2,VLOOKUP(AB7,#REF!,2,FALSE))))","v":""},null,null,null,null,null,null,null,1500,{"$f":"IF(O7=\"\",\"\",1)","v":""},"男子",null,null,null,null,null,null,{"$f":"IF(OR(AL7=1,T7=\"\"),0,1)","v":0},null,{"$f":"COUNT(P7,U7,Z7)","v":0},{"$f":"IF(I7=1,AV7,\"\")","v":""},{"$f":"IF(I7=2,AV7,\"\")","v":""},"Ａ",null,"Ａ"]
[0,{"$f":"前年度登録!AE5","v":""},{"$f":"Y8","v":0},null,{"$f":"前年度登録!T5","v":0},{"$f":"前年度登録!DB5","v":""},{"$f":"前年度登録!AO5","v":""},{"$f":"前年度登録!DB5","v":""},{"$f":"前年度登録!AN5","v":""},{"$f":"前年度登録!DC5","v":""},{"$f":"前年度登録!DE5","v":0},{"$f":"前年度登録!DJ5","v":"00"},"三重",{"$f":"前年度登録!S5","v":0},null,{"$f":"IF(O8=\"\",\"\",IF(I8=1,VLOOKUP(O8,$AM$19:$AO$29,3,FALSE),IF(I8=2,VLOOKUP(O8,$AM$32:$AO$41,3,FALSE))))","v":""},{"$f":"IF(O8=\"\",\"\",HLOOKUP(O8,前年度登録!$AW$3:$CW$118,3,FALSE))","v":""},{"$f":"IF(O8=\"\",\"\",0)","v":""},{"$f":"IF(O8=\"\",\"\",2)","v":""},null,{"$f":"IF(T8=\"\",\"\",IF(I8=1,VLOOKUP(T8,$AM$19:$AO$29,3,FALSE),IF(I8=2,VLOOKUP(T8,$AM$32:$AO$41,3,FALSE))))","v":""},null,{"$f":"IF(T8=\"\",\"\",0)","v":""},{"$f":"IF(T8=\"\",\"\",2)","v":""},null,{"$f":"IF(Y8=\"\",\"\",IF(I8=1,VLOOKUP(Y8,$AM$48:$AN$50,2,FALSE),IF(I8=2,VLOOKUP(Y8,$AM$51:$AN$53,2,FALSE))))","v":""},null,null,{"$f":"IF(AB8=\"\",\"\",IF(I8=1,VLOOKUP(AB8,#REF!,2,FALSE),IF(I8=2,VLOOKUP(AB8,#REF!,2,FALSE))))","v":""},null,null,null,null,null,null,null,"*",{"$f":"IF(O8=\"\",\"\",1)","v":""},"リレー記録記載欄",null,"オーダー",null,null,null,null,0,null,{"$f":"COUNT(P8,U8,Z8)","v":0},"","",{"$f":"IF(ISERROR(BC8),\"\",BC8)","v":""},{"$f":"IF(ISERROR(BD8),\"\",BD8)","v":""},{"$f":"IF(ISERROR(BE8),\"\",BE8)","v":""},{"$f":"IF(ISERROR(BF8),\"\",BF8)","v":""},{"$f":"VLookUpX(\"男子A\",$A$7:$F$116,1,5)","v":{"$error":"#N/A"}},{"$f":"VLookUpX(\"男子A\",$A$7:$F$116,1,6)","v":{"$error":"#N/A"}},{"$f":"VLookUpX(\"女子A\",$A$7:$F$116,1,5)","v":{"$error":"#N/A"}},{"$f":"VLookUpX(\"女子A\",$A$7:$F$116,1,6)","v":{"$error":"#N/A"}}]
[0,{"$f":"前年度登録!AE6","v":""},0,null,{"$f":"前年度登録!T6","v":0},{"$f":"前年度登録!DB6","v":""},{"$f":"前年度登録!AO6","v":""},{"$f":"前年度登録!DB6","v":""},{"$f":"前年度登録!AN6","v":""},{"$f":"前年度登録!DC6","v":""},{"$f":"前年度登録!DE6","v":0},{"$f":"前年度登録!DJ6","v":"00"},"三重",{"$f":"前年度登録!S6","v":0},null,"",{"$f":"IF(O9=\"\",\"\",HLOOKUP(O9,前年度登録!$AW$3:$CW$118,4,FALSE))","v":""},"","",null,"",null,"","",null,"",null,null,{"$f":"IF(AB9=\"\",\"\",IF(I9=1,VLOOKUP(AB9,#REF!,2,FALSE),IF(I9=2,VLOOKUP(AB9,#REF!,2,FALSE))))","v":""},null,null,null,null,null,null,null,"走幅跳","","A",null,{"$f":"COUNTIF($Y$7:$Y$116,\"男子A\")","v":0},{"$f":"IF(AO9>0,1,0)","v":0},null,null,null,0,null,0,"","",{"$f":"IF(ISERROR(BC9),\"\",BC9)","v":""},"",{"$f":"IF(ISERROR(BE9),\"\",BE9)","v":""},"",{"$f":"VLookUpX(\"男子A\",$A$7:$F$116,2,5)","v":{"$error":"#N/A"}},{"$f":"VLookUpX(\"男子A\",$A$7:$F$116,2,6)","v":{"$error":"#N/A"}},{"$f":"VLookUpX(\"女子A\",$A$7:$F$116,2,5)","v":{"$error":"#N/A"}},{"$f":"VLookUpX(\"女子A\",$A$7:$F$116,2,6)","v":{"$error":"#N/A"}}]
[0,{"$f":"前年度登録!AE7","v":""},0,null,{"$f":"前年度登録!T7","v":0},{"$f":"前年度登録!DB7","v":""},{"$f":"前年度登録!AO7","v":""},{"$f":"前年度登録!DB7","v":""},{"$f":"前年度登録!AN7","v":""},{"$f":"前年度登録!DC7","v":""},{"$f":"前年度登録!DE7","v":0},{"$f":"前年度登録!DJ7","v":"00"},"三重",{"$f":"前年度登録!S7","v":0},null,"",{"$f":"IF(O10=\"\",\"\",HLOOKUP(O10,前年度登録!$AW$3:$CW$118,5,FALSE))","v":""},"","",null,"",null,"","",null,"",null,null,{"$f":"IF(AB10=\"\",\"\",IF(I10=1,VLOOKUP(AB10,#REF!,2,FALSE),IF(I10=2,VLOOKUP(AB10,#REF!,2,FALSE))))","v":""},null,null,null,null,null,null,null,"砲丸投","","B",null,{"$f":"COUNTIF($Y$7:$Y$116,\"男子B\")","v":0},{"$f":"IF(AO10>0,1,0)","v":0},null,null,null,0,null,0,"","","","","","",{"$f":"VLookUpX(\"男子A\",$A$7:$F$116,3,5)","v":{"$error":"#N/A"}},{"$f":"VLookUpX(\"男子A\",$A$7:$F$116,3,6)","v":{"$error":"#N/A"}},{"$f":"VLookUpX(\"女子A\",$A$7:$F$116,3,5)","v":{"$error":"#N/A"}},{"$f":"VLookUpX(\"女子A\",$A$7:$F$116,3,6)","v":{"$error":"#N/A"}}]
[0,{"$f":"前年度登録!AE8","v":""},0,null,{"$f":"前年度登録!T8","v":0},{"$f":"前年度登録!DB8","v":""},{"$f":"前年度登録!AO8","v":""},{"$f":"前年度登録!DB8","v":""},{"$f":"前年度登録!AN8","v":""},{"$f":"前年度登録!DC8","v":""},{"$f":"前年度登録!DE8","v":0},{"$f":"前年度登録!DJ8","v":"00"},"三重",{"$f":"前年度登録!S8","v":0},null,"",{"$f":"IF(O11=\"\",\"\",HLOOKUP(O11,前年度登録!$AW$3:$CW$118,6,FALSE))","v":""},"","",null,"",null,"","",null,"",null,null,{"$f":"IF(AB11=\"\",\"\",IF(I11=1,VLOOKUP(AB11,#REF!,2,FALSE),IF(I11=2,VLOOKUP(AB11,#REF!,2,FALSE))))","v":""},null,null,null,null,null,null,null,"ｼﾞｬﾍﾞﾘｯｸ","","C",null,{"$f":"COUNTIF($Y$7:$Y$116,\"男子C\")","v":0},0,{"$f":"SUM(AP9:AP11)","v":0},null,null,0,null,0,"","","","","","",{"$f":"VLookUpX(\"男子A\",$A$7:$F$116,4,5)","v":{"$error":"#N/A"}},{"$f":"VLookUpX(\"男子A\",$A$7:$F$116,4,6)","v":{"$error":"#N/A"}},{"$f":"VLookUpX(\"女子A\",$A$7:$F$116,4,5)","v":{"$error":"#N/A"}},{"$f":"VLookUpX(\"女子A\",$A$7:$F$116,4,6)","v":{"$error":"#N/A"}}]
[0,{"$f":"前年度登録!AE9","v":""},0,null,{"$f":"前年度登録!T9","v":0},{"$f":"前年度登録!DB9","v":""},{"$f":"前年度登録!AO9","v":""},{"$f":"前年度登録!DB9","v":""},{"$f":"前年度登録!AN9","v":""},{"$f":"前年度登録!DC9","v":""},{"$f":"前年度登録!DE9","v":0},{"$f":"前年度登録!DJ9","v":"00"},"三重",{"$f":"前年度登録!S9","v":0},null,"",{"$f":"IF(O12=\"\",\"\",HLOOKUP(O12,前年度登録!$AW$3:$CW$118,7,FALSE))","v":""},"","",null,"",null,"","",null,"",null,null,{"$f":"IF(AB12=\"\",\"\",IF(I12=1,VLOOKUP(AB12,#REF!,2,FALSE),IF(I12=2,VLOOKUP(AB12,#REF!,2,FALSE))))","v":""},null,null,null,null,null,null,null,100,"","女子",null,null,null,null,null,null,0,null,0,"","","","","","",{"$f":"VLookUpX(\"男子A\",$A$7:$F$116,5,5)","v":{"$error":"#N/A"}},{"$f":"VLookUpX(\"男子A\",$A$7:$F$116,5,6)","v":{"$error":"#N/A"}},{"$f":"VLookUpX(\"女子A\",$A$7:$F$116,5,5)","v":{"$error":"#N/A"}},{"$f":"VLookUpX(\"女子A\",$A$7:$F$116,5,6)","v":{"$error":"#N/A"}}]
[0,{"$f":"前年度登録!AE10","v":""},0,null,{"$f":"前年度登録!T10","v":0},{"$f":"前年度登録!DB10","v":""},{"$f":"前年度登録!AO10","v":""},{"$f":"前年度登録!DB10","v":""},{"$f":"前年度登録!AN10","v":""},{"$f":"前年度登録!DC10","v":""},{"$f":"前年度登録!DE10","v":0},{"$f":"前年度登録!DJ10","v":"00"},"三重",{"$f":"前年度登録!S10","v":0},null,"",{"$f":"IF(O13=\"\",\"\",HLOOKUP(O13,前年度登録!$AW$3:$CW$118,8,FALSE))","v":""},"","",null,"",null,"","",null,"",null,null,{"$f":"IF(AB13=\"\",\"\",IF(I13=1,VLOOKUP(AB13,#REF!,2,FALSE),IF(I13=2,VLOOKUP(AB13,#REF!,2,FALSE))))","v":""},null,null,null,null,null,null,null,800,"","リレー記録記載欄",null,"オーダー",null,null,null,null,0,null,0,"","","","","","",{"$f":"VLookUpX(\"男子A\",$A$7:$F$116,6,5)","v":{"$error":"#N/A"}},{"$f":"VLookUpX(\"男子A\",$A$7:$F$116,6,6)","v":{"$error":"#N/A"}},{"$f":"VLookUpX(\"女子A\",$A$7:$F$116,6,5)","v":{"$error":"#N/A"}},{"$f":"VLookUpX(\"女子A\",$A$7:$F$116,6,6)","v":{"$error":"#N/A"}}]
[0,{"$f":"前年度登録!AE11","v":""},0,null,{"$f":"前年度登録!T11","v":0},{"$f":"前年度登録!DB11","v":""},{"$f":"前年度登録!AO11","v":""},{"$f":"前年度登録!DB11","v":""},{"$f":"前年度登録!AN11","v":""},{"$f":"前年度登録!DC11","v":""},{"$f":"前年度登録!DE11","v":0},{"$f":"前年度登録!DJ11","v":"00"},"三重",{"$f":"前年度登録!S11","v":0},null,"",{"$f":"IF(O14=\"\",\"\",HLOOKUP(O14,前年度登録!$AW$3:$CW$118,9,FALSE))","v":""},"","",null,"",null,"","",null,"",null,null,{"$f":"IF(AB14=\"\",\"\",IF(I14=1,VLOOKUP(AB14,#REF!,2,FALSE),IF(I14=2,VLOOKUP(AB14,#REF!,2,FALSE))))","v":""},null,null,null,null,null,null,null,"*","","A",null,{"$f":"COUNTIF($Y$7:$Y$116,\"女子A\")","v":0},0,null,null,null,0,null,0,"","","男子4×100mR",null,"女子4×100mR"]
[0,{"$f":"前年度登録!AE12","v":""},0,null,{"$f":"前年度登録!T12","v":0},{"$f":"前年度登録!DB12","v":""},{"$f":"前年度登録!AO12","v":""},{"$f":"前年度登録!DB12","v":""},{"$f":"前年度登録!AN12","v":""},{"$f":"前年度登録!DC12","v":""},{"$f":"前年度登録!DE12","v":0},{"$f":"前年度登録!DJ12","v":"00"},"三重",{"$f":"前年度登録!S12","v":0},null,"",{"$f":"IF(O15=\"\",\"\",HLOOKUP(O15,前年度登録!$AW$3:$CW$118,10,FALSE))","v":""},"","",null,"",null,"","",null,"",null,null,{"$f":"IF(AB15=\"\",\"\",IF(I15=1,VLOOKUP(AB15,#REF!,2,FALSE),IF(I15=2,VLOOKUP(AB15,#REF!,2,FALSE))))","v":""},null,null,null,null,null,null,null,"走幅跳","","B",null,{"$f":"COUNTIF($Y$7:$Y$116,\"女子B\")","v":0},0,null,null,null,0,null,0,"","","Ｂ",null,"Ｂ"]
[0,{"$f":"前年度登録!AE13","v":""},0,null,{"$f":"前年度登録!T13","v":0},{"$f":"前年度登録!DB13","v":""},{"$f":"前年度登録!AO13","v":""},{"$f":"前年度登録!DB13","v":""},{"$f":"前年度登録!AN13","v":""},{"$f":"前年度登録!DC13","v":""},{"$f":"前年度登録!DE13","v":0},{"$f":"前年度登録!DJ13","v":"00"},"三重",{"$f":"前年度登録!S13","v":0},null,"",{"$f":"IF(O16=\"\",\"\",HLOOKUP(O16,前年度登録!$AW$3:$CW$118,11,FALSE))","v":""},"","",null,"",null,"","",null,"",null,null,{"$f":"IF(AB16=\"\",\"\",IF(I16=1,VLOOKUP(AB16,#REF!,2,FALSE),IF(I16=2,VLOOKUP(AB16,#REF!,2,FALSE))))","v":""},null,null,null,null,null,null,null,"砲丸投","","C",null,{"$f":"COUNTIF($Y$7:$Y$116,\"女子C\")","v":0},0,{"$f":"SUM(AP14:AP16)","v":0},null,null,0,null,0,"","",{"$f":"IF(ISERROR(BC16),\"\",BC16)","v":""},{"$f":"IF(ISERROR(BD16),\"\",BD16)","v":""},{"$f":"IF(ISERROR(BE16),\"\",BE16)","v":""},{"$f":"IF(ISERROR(BF16),\"\",BF16)","v":""},{"$f":"VLookUpX(\"男子B\",$A$7:$F$116,1,5)","v":{"$error":"#N/A"}},{"$f":"VLookUpX(\"男子B\",$A$7:$F$116,1,6)","v":{"$error":"#N/A"}},{"$f":"VLookUpX(\"女子B\",$A$7:$F$116,1,5)","v":{"$error":"#N/A"}},{"$f":"VLookUpX(\"女子B\",$A$7:$F$116,1,6)","v":{"$error":"#N/A"}}]
[0,{"$f":"前年度登録!AE14","v":""},0,null,{"$f":"前年度登録!T14","v":0},{"$f":"前年度登録!DB14","v":""},{"$f":"前年度登録!AO14","v":""},{"$f":"前年度登録!DB14","v":""},{"$f":"前年度登録!AN14","v":""},{"$f":"前年度登録!DC14","v":""},{"$f":"前年度登録!DE14","v":0},{"$f":"前年度登録!DJ14","v":"00"},"三重",{"$f":"前年度登録!S14","v":0},null,"",{"$f":"IF(O17=\"\",\"\",HLOOKUP(O17,前年度登録!$AW$3:$CW$118,12,FALSE))","v":""},"","",null,"",null,"","",null,"",null,null,{"$f":"IF(AB17=\"\",\"\",IF(I17=1,VLOOKUP(AB17,#REF!,2,FALSE),IF(I17=2,VLOOKUP(AB17,#REF!,2,FALSE))))","v":""},null,null,null,null,null,null,null,"ｼﾞｬﾍﾞﾘｯｸ","","種目別人数",null,null,{"$f":"SUM(AP9:AP16)","v":0},null,null,null,0,null,0,"","",{"$f":"IF(ISERROR(BC17),\"\",BC17)","v":""},"",{"$f":"IF(ISERROR(BE17),\"\",BE17)","v":""},"",{"$f":"VLookUpX(\"男子B\",$A$7:$F$116,2,5)","v":{"$error":"#N/A"}},{"$f":"VLookUpX(\"男子B\",$A$7:$F$116,2,6)","v":{"$error":"#N/A"}},{"$f":"VLookUpX(\"女子B\",$A$7:$F$116,2,5)","v":{"$error":"#N/A"}},{"$f":"VLookUpX(\"女子B\",$A$7:$F$116,2,6)","v":{"$error":"#N/A"}}]
[0,{"$f":"前年度登録!AE15","v":""},0,null,{"$f":"前年度登録!T15","v":0},{"$f":"前年度登録!DB15","v":""},{"$f":"前年度登録!AO15","v":""},{"$f":"前年度登録!DB15","v":""},{"$f":"前年度登録!AN15","v":""},{"$f":"前年度登録!DC15","v":""},{"$f":"前年度登録!DE15","v":0},{"$f":"前年度登録!DJ15","v":"00"},"三重",{"$f":"前年度登録!S15","v":0},null,"",{"$f":"IF(O18=\"\",\"\",HLOOKUP(O18,前年度登録!$AW$3:$CW$118,13,FALSE))","v":""},"","",null,"",null,"","",null,"",null,null,{"$f":"IF(AB18=\"\",\"\",IF(I18=1,VLOOKUP(AB18,#REF!,2,FALSE),IF(I18=2,VLOOKUP(AB18,#REF!,2,FALSE))))","v":""},null,null,null,null,null,null,null,"男子A","","男子",null,null,null,null,null,null,0,null,0,"","","","","","",{"$f":"VLookUpX(\"男子B\",$A$7:$F$116,3,5)","v":{"$error":"#N/A"}},{"$f":"VLookUpX(\"男子B\",$A$7:$F$116,3,6)","v":{"$error":"#N/A"}},{"$f":"VLookUpX(\"女子B\",$A$7:$F$116,3,5)","v":{"$error":"#N/A"}},{"$f":"VLookUpX(\"女子B\",$A$7:$F$116,3,6)","v":{"$error":"#N/A"}}]
[0,{"$f":"前年度登録!AE16","v":""},0,null,{"$f":"前年度登録!T16","v":0},{"$f":"前年度登録!DB16","v":""},{"$f":"前年度登録!AO16","v":""},{"$f":"前年度登録!DB16","v":""},{"$f":"前年度登録!AN16","v":""},{"$f":"前年度登録!DC16","v":""},{"$f":"前年度登録!DE16","v":0},{"$f":"前年度登録!DJ16","v":"00"},"三重",{"$f":"前年度登録!S16","v":0},null,"",{"$f":"IF(O19=\"\",\"\",HLOOKUP(O19,前年度登録!$AW$3:$CW$118,14,FALSE))","v":""},"","",null,"",null,"","",null,"",null,null,{"$f":"IF(AB19=\"\",\"\",IF(I19=1,VLOOKUP(AB19,#REF!,2,FALSE),IF(I19=2,VLOOKUP(AB19,#REF!,2,FALSE))))","v":""},null,null,null,null,null,null,null,"男子B","","100m",{"$f":"COUNTIF($P$7:$P$116,50)+COUNTIF($U$7:$U$116,50)","v":0},50,null,null,null,null,0,null,0,"","","","","","",{"$f":"VLookUpX(\"男子B\",$A$7:$F$116,4,5)","v":{"$error":"#N/A"}},{"$f":"VLookUpX(\"男子B\",$A$7:$F$116,4,6)","v":{"$error":"#N/A"}},{"$f":"VLookUpX(\"女子B\",$A$7:$F$116,4,5)","v":{"$error":"#N/A"}},{"$f":"VLookUpX(\"女子B\",$A$7:$F$116,4,6)","v":{"$error":"#N/A"}}]
[0,{"$f":"前年度登録!AE17","v":""},0,null,{"$f":"前年度登録!T17","v":0},{"$f":"前年度登録!DB17","v":""},{"$f":"前年度登録!AO17","v":""},{"$f":"前年度登録!DB17","v":""},{"$f":"前年度登録!AN17","v":""},{"$f":"前年度登録!DC17","v":""},{"$f":"前年度登録!DE17","v":0},{"$f":"前年度登録!DJ17","v":"00"},"三重",{"$f":"前年度登録!S17","v":0},null,"",{"$f":"IF(O20=\"\",\"\",HLOOKUP(O20,前年度登録!$AW$3:$CW$118,15,FALSE))","v":""},"","",null,"",null,"","",null,"",null,null,{"$f":"IF(AB20=\"\",\"\",IF(I20=1,VLOOKUP(AB20,#REF!,2,FALSE),IF(I20=2,VLOOKUP(AB20,#REF!,2,FALSE))))","v":""},null,null,null,null,null,null,null,"男子C","","200m",{"$f":"COUNTIF($P$7:$P$116,51)+COUNTIF($U$7:$U$116,51)","v":0},51,null,null,null,null,0,null,0,"","","","","","",{"$f":"VLookUpX(\"男子B\",$A$7:$F$116,5,5)","v":{"$error":"#N/A"}},{"$f":"VLookUpX(\"男子B\",$A$7:$F$116,5,6)","v":{"$error":"#N/A"}},{"$f":"VLookUpX(\"女子B\",$A$7:$F$116,5,5)","v":{"$error":"#N/A"}},{"$f":"VLookUpX(\"女子B\",$A$7:$F$116,5,6)","v":{"$error":"#N/A"}}]
[0,{"$f":"前年度登録!AE18","v":""},0,null,{"$f":"前年度登録!T18","v":0},{"$f":"前年度登録!DB18","v":""},{"$f":"前年度登録!AO18","v":""},{"$f":"前年度登録!DB18","v":""},{"$f":"前年度登録!AN18","v":""},{"$f":"前年度登録!DC18","v":""},{"$f":"前年度登録!DE18","v":0},{"$f":"前年度登録!DJ18","v":"00"},"三重",{"$f":"前年度登録!S18","v":0},null,"",{"$f":"IF(O21=\"\",\"\",HLOOKUP(O21,前年度登録!$AW$3:$CW$118,16,FALSE))","v":""},"","",null,"",null,"","",null,"",null,null,{"$f":"IF(AB21=\"\",\"\",IF(I21=1,VLOOKUP(AB21,#REF!,2,FALSE),IF(I21=2,VLOOKUP(AB21,#REF!,2,FALSE))))","v":""},null,null,null,null,null,null,null,"女子A","","400m",{"$f":"COUNTIF($P$7:$P$116,52)+COUNTIF($U$7:$U$116,52)","v":0},52,null,null,null,null,0,null,0,"","","","","","",{"$f":"VLookUpX(\"男子B\",$A$7:$F$116,6,5)","v":{"$error":"#N/A"}},{"$f":"VLookUpX(\"男子B\",$A$7:$F$116,6,6)","v":{"$error":"#N/A"}},{"$f":"VLookUpX(\"女子B\",$A$7:$F$116,6,5)","v":{"$error":"#N/A"}},{"$f":"VLookUpX(\"女子B\",$A$7:$F$116,6,6)","v":{"$error":"#N/A"}}]
[0,{"$f":"前年度登録!AE19","v":""},0,null,{"$f":"前年度登録!T19","v":0},{"$f":"前年度登録!DB19","v":""},{"$f":"前年度登録!AO19","v":""},{"$f":"前年度登録!DB19","v":""},{"$f":"前年度登録!AN19","v":""},{"$f":"前年度登録!DC19","v":""},{"$f":"前年度登録!DE19","v":0},{"$f":"前年度登録!DJ19","v":"00"},"三重",{"$f":"前年度登録!S19","v":0},null,"",{"$f":"IF(O22=\"\",\"\",HLOOKUP(O22,前年度登録!$AW$3:$CW$118,17,FALSE))","v":""},"","",null,"",null,"","",null,"",null,null,{"$f":"IF(AB22=\"\",\"\",IF(I22=1,VLOOKUP(AB22,#REF!,2,FALSE),IF(I22=2,VLOOKUP(AB22,#REF!,2,FALSE))))","v":""},null,null,null,null,null,null,null,"女子B","","800m",{"$f":"COUNTIF($P$7:$P$116,53)+COUNTIF($U$7:$U$116,53)","v":0},53,null,null,null,null,0,null,0,"","","男子4×100mR",null,"女子4×100mR"]
[0,{"$f":"前年度登録!AE20","v":""},0,null,{"$f":"前年度登録!T20","v":0},{"$f":"前年度登録!DB20","v":""},{"$f":"前年度登録!AO20","v":""},{"$f":"前年度登録!DB20","v":""},{"$f":"前年度登録!AN20","v":""},{"$f":"前年度登録!DC20","v":""},{"$f":"前年度登録!DE20","v":0},{"$f":"前年度登録!DJ20","v":"00"},"三重",{"$f":"前年度登録!S20","v":0},null,"",{"$f":"IF(O23=\"\",\"\",HLOOKUP(O23,前年度登録!$AW$3:$CW$118,18,FALSE))","v":""},"","",null,"",null,"","",null,"",null,null,{"$f":"IF(AB23=\"\",\"\",IF(I23=1,VLOOKUP(AB23,#REF!,2,FALSE),IF(I23=2,VLOOKUP(AB23,#REF!,2,FALSE))))","v":""},null,null,null,null,null,null,null,"女子C","","1500m",{"$f":"COUNTIF($P$7:$P$116,54)+COUNTIF($U$7:$U$116,54)","v":0},54,null,null,null,null,0,null,0,"","","Ｃ",null,"Ｃ"]
[0,{"$f":"前年度登録!AE21","v":""},0,null,{"$f":"前年度登録!T21","v":0},{"$f":"前年度登録!DB21","v":""},{"$f":"前年度登録!AO21","v":""},{"$f":"前年度登録!DB21","v":""},{"$f":"前年度登録!AN21","v":""},{"$f":"前年度登録!DC21","v":""},{"$f":"前年度登録!DE21","v":0},{"$f":"前年度登録!DJ21","v":"00"},"三重",{"$f":"前年度登録!S21","v":0},null,"",{"$f":"IF(O24=\"\",\"\",HLOOKUP(O24,前年度登録!$AW$3:$CW$118,19,FALSE))","v":""},"","",null,"",null,"","",null,"",null,null,{"$f":"IF(AB24=\"\",\"\",IF(I24=1,VLOOKUP(AB24,#REF!,2,FALSE),IF(I24=2,VLOOKUP(AB24,#REF!,2,FALSE))))","v":""},null,null,null,null,null,null,null,null,"","110mH",{"$f":"COUNTIF($P$7:$P$116,56)+COUNTIF($U$7:$U$116,56)","v":0},56,null,null,null,null,0,null,0,"","",{"$f":"IF(ISERROR(BC24),\"\",BC24)","v":""},{"$f":"IF(ISERROR(BD24),\"\",BD24)","v":""},{"$f":"IF(ISERROR(BE24),\"\",BE24)","v":""},{"$f":"IF(ISERROR(BF24),\"\",BF24)","v":""},{"$f":"VLookUpX(\"男子C\",$A$7:$F$116,1,5)","v":{"$error":"#N/A"}},{"$f":"VLookUpX(\"男子C\",$A$7:$F$116,1,6)","v":{"$error":"#N/A"}},{"$f":"VLookUpX(\"女子C\",$A$7:$F$116,1,5)","v":{"$error":"#N/A"}},{"$f":"VLookUpX(\"女子C\",$A$7:$F$116,1,6)","v":{"$error":"#N/A"}}]
[0,{"$f":"前年度登録!AE22","v":""},0,null,{"$f":"前年度登録!T22","v":0},{"$f":"前年度登録!DB22","v":""},{"$f":"前年度登録!AO22","v":""},{"$f":"前年度登録!DB22","v":""},{"$f":"前年度登録!AN22","v":""},{"$f":"前年度登録!DC22","v":""},{"$f":"前年度登録!DE22","v":0},{"$f":"前年度登録!DJ22","v":"00"},"三重",{"$f":"前年度登録!S22","v":0},null,"",{"$f":"IF(O25=\"\",\"\",HLOOKUP(O25,前年度登録!$AW$3:$CW$118,20,FALSE))","v":""},"","",null,"",null,"","",null,"",null,null,{"$f":"IF(AB25=\"\",\"\",IF(I25=1,VLOOKUP(AB25,#REF!,2,FALSE),IF(I25=2,VLOOKUP(AB25,#REF!,2,FALSE))))","v":""},null,null,null,null,null,null,null,null,"","走高跳",{"$f":"COUNTIF($P$7:$P$116,58)+COUNTIF($U$7:$U$116,58)","v":0},58,null,null,null,null,0,null,0,"","",{"$f":"IF(ISERROR(BC25),\"\",BC25)","v":""},"",{"$f":"IF(ISERROR(BE25),\"\",BE25)","v":""},"",{"$f":"VLookUpX(\"男子C\",$A$7:$F$116,2,5)","v":{"$error":"#N/A"}},{"$f":"VLookUpX(\"男子C\",$A$7:$F$116,2,6)","v":{"$error":"#N/A"}},{"$f":"VLookUpX(\"女子C\",$A$7:$F$116,2,5)","v":{"$error":"#N/A"}},{"$f":"VLookUpX(\"女子C\",$A$7:$F$116,2,6)","v":{"$error":"#N/A"}}]
[0,{"$f":"前年度登録!AE23","v":""},0,null,{"$f":"前年度登録!T23","v":0},{"$f":"前年度登録!DB23","v":""},{"$f":"前年度登録!AO23","v":""},{"$f":"前年度登録!DB23","v":""},{"$f":"前年度登録!AN23","v":""},{"$f":"前年度登録!DC23","v":""},{"$f":"前年度登録!DE23","v":0},{"$f":"前年度登録!DJ23","v":"00"},"三重",{"$f":"前年度登録!S23","v":0},null,"",{"$f":"IF(O26=\"\",\"\",HLOOKUP(O26,前年度登録!$AW$3:$CW$118,21,FALSE))","v":""},"","",null,"",null,"","",null,"",null,null,{"$f":"IF(AB26=\"\",\"\",IF(I26=1,VLOOKUP(AB26,#REF!,2,FALSE),IF(I26=2,VLOOKUP(AB26,#REF!,2,FALSE))))","v":""},null,null,null,null,null,null,null,null,"","棒高跳",{"$f":"COUNTIF($P$7:$P$116,71)+COUNTIF($U$7:$U$116,71)","v":0},71,null,null,null,null,0,null,0,"","","","","","",{"$f":"VLookUpX(\"男子C\",$A$7:$F$116,3,5)","v":{"$error":"#N/A"}},{"$f":"VLookUpX(\"男子C\",$A$7:$F$116,3,6)","v":{"$error":"#N/A"}},{"$f":"VLookUpX(\"女子C\",$A$7:$F$116,3,5)","v":{"$error":"#N/A"}},{"$f":"VLookUpX(\"女子C\",$A$7:$F$116,3,6)","v":{"$error":"#N/A"}}]
[0,{"$f":"前年度登録!AE24","v":""},0,null,{"$f":"前年度登録!T24","v":0},{"$f":"前年度登録!DB24","v":""},{"$f":"前年度登録!AO24","v":""},{"$f":"前年度登録!DB24","v":""},{"$f":"前年度登録!AN24","v":""},{"$f":"前年度登録!DC24","v":""},{"$f":"前年度登録!DE24","v":0},{"$f":"前年度登録!DJ24","v":"00"},"三重",{"$f":"前年度登録!S24","v":0},null,"",{"$f":"IF(O27=\"\",\"\",HLOOKUP(O27,前年度登録!$AW$3:$CW$118,22,FALSE))","v":""},"","",null,"",null,"","",null,"",null,null,{"$f":"IF(AB27=\"\",\"\",IF(I27=1,VLOOKUP(AB27,#REF!,2,FALSE),IF(I27=2,VLOOKUP(AB27,#REF!,2,FALSE))))","v":""},null,null,null,null,null,null,null,null,"","走幅跳",{"$f":"COUNTIF($P$7:$P$116,59)+COUNTIF($U$7:$U$116,59)","v":0},59,null,null,null,null,0,null,0,"","","","","","",{"$f":"VLookUpX(\"男子C\",$A$7:$F$116,4,5)","v":{"$error":"#N/A"}},{"$f":"VLookUpX(\"男子C\",$A$7:$F$116,4,6)","v":{"$error":"#N/A"}},{"$f":"VLookUpX(\"女子C\",$A$7:$F$116,4,5)","v":{"$error":"#N/A"}},{"$f":"VLookUpX(\"女子C\",$A$7:$F$116,4,6)","v":{"$error":"#N/A"}}]
[0,{"$f":"前年度登録!AE25","v":""},0,null,{"$f":"前年度登録!T25","v":0},{"$f":"前年度登録!DB25","v":""},{"$f":"前年度登録!AO25","v":""},{"$f":"前年度登録!DB25","v":""},{"$f":"前年度登録!AN25","v":""},{"$f":"前年度登録!DC25","v":""},{"$f":"前年度登録!DE25","v":0},{"$f":"前年度登録!DJ25","v":"00"},"三重",{"$f":"前年度登録!S25","v":0},null,"",{"$f":"IF(O28=\"\",\"\",HLOOKUP(O28,前年度登録!$AW$3:$CW$118,23,FALSE))","v":""},"","",null,"",null,"","",null,"",null,null,{"$f":"IF(AB28=\"\",\"\",IF(I28=1,VLOOKUP(AB28,#REF!,2,FALSE),IF(I28=2,VLOOKUP(AB28,#REF!,2,FALSE))))","v":""},null,null,null,null,null,null,null,null,"","三段跳",{"$f":"COUNTIF($P$7:$P$116,74)+COUNTIF($U$7:$U$116,74)","v":0},74,null,null,null,null,0,null,0,"","","","","","",{"$f":"VLookUpX(\"男子C\",$A$7:$F$116,5,5)","v":{"$error":"#N/A"}},{"$f":"VLookUpX(\"男子C\",$A$7:$F$116,5,6)","v":{"$error":"#N/A"}},{"$f":"VLookUpX(\"女子C\",$A$7:$F$116,5,5)","v":{"$error":"#N/A"}},{"$f":"VLookUpX(\"女子C\",$A$7:$F$116,5,6)","v":{"$error":"#N/A"}}]
[0,{"$f":"前年度登録!AE26","v":""},0,null,{"$f":"前年度登録!T26","v":0},{"$f":"前年度登録!DB26","v":""},{"$f":"前年度登録!AO26","v":""},{"$f":"前年度登録!DB26","v":""},{"$f":"前年度登録!AN26","v":""},{"$f":"前年度登録!DC26","v":""},{"$f":"前年度登録!DE26","v":0},{"$f":"前年度登録!DJ26","v":"00"},"三重",{"$f":"前年度登録!S26","v":0},null,"",{"$f":"IF(O29=\"\",\"\",HLOOKUP(O29,前年度登録!$AW$3:$CW$118,24,FALSE))","v":""},"","",null,"",null,"","",null,"",null,null,{"$f":"IF(AB29=\"\",\"\",IF(I29=1,VLOOKUP(AB29,#REF!,2,FALSE),IF(I29=2,VLOOKUP(AB29,#REF!,2,FALSE))))","v":""},null,null,null,null,null,null,null,null,"","砲丸投",{"$f":"+COUNTIF($U$7:$U$116,60)+COUNTIF($U$7:$U$116,60)","v":0},60,null,null,null,null,0,null,0,"","","","","","",{"$f":"VLookUpX(\"男子C\",$A$7:$F$116,6,5)","v":{"$error":"#N/A"}},{"$f":"VLookUpX(\"男子C\",$A$7:$F$116,6,6)","v":{"$error":"#N/A"}},{"$f":"VLookUpX(\"女子C\",$A$7:$F$116,6,5)","v":{"$error":"#N/A"}},{"$f":"VLookUpX(\"女子C\",$A$7:$F$116,6,6)","v":{"$error":"#N/A"}}]
[0,{"$f":"前年度登録!AE27","v":""},0,null,{"$f":"前年度登録!T27","v":0},{"$f":"前年度登録!DB27","v":""},{"$f":"前年度登録!AO27","v":""},{"$f":"前年度登録!DB27","v":""},{"$f":"前年度登録!AN27","v":""},{"$f":"前年度登録!DC27","v":""},{"$f":"前年度登録!DE27","v":0},{"$f":"前年度登録!DJ27","v":"00"},"三重",{"$f":"前年度登録!S27","v":0},null,"",{"$f":"IF(O30=\"\",\"\",HLOOKUP(O30,前年度登録!$AW$3:$CW$118,25,FALSE))","v":""},"","",null,"",null,"","",null,"",null,null,{"$f":"IF(AB30=\"\",\"\",IF(I30=1,VLOOKUP(AB30,#REF!,2,FALSE),IF(I30=2,VLOOKUP(AB30,#REF!,2,FALSE))))","v":""},null,null,null,null,null,null,null,null,"","計",{"$f":"SUM(AN19:AN29)","v":0},null,null,null,null,null,0,null,0,"",""]
[0,{"$f":"前年度登録!AE28","v":""},0,null,{"$f":"前年度登録!T28","v":0},{"$f":"前年度登録!DB28","v":""},{"$f":"前年度登録!AO28","v":""},{"$f":"前年度登録!DB28","v":""},{"$f":"前年度登録!AN28","v":""},{"$f":"前年度登録!DC28","v":""},{"$f":"前年度登録!DE28","v":0},{"$f":"前年度登録!DJ28","v":"00"},"三重",{"$f":"前年度登録!S28","v":0},null,"",{"$f":"IF(O31=\"\",\"\",HLOOKUP(O31,前年度登録!$AW$3:$CW$118,26,FALSE))","v":""},"","",null,"",null,"","",null,"",null,null,{"$f":"IF(AB31=\"\",\"\",IF(I31=1,VLOOKUP(AB31,#REF!,2,FALSE),IF(I31=2,VLOOKUP(AB31,#REF!,2,FALSE))))","v":""},null,null,null,null,null,null,null,null,"","女子",null,null,null,null,null,null,0,null,0,"",""]
[0,{"$f":"前年度登録!AE29","v":""},0,null,{"$f":"前年度登録!T29","v":0},{"$f":"前年度登録!DB29","v":""},{"$f":"前年度登録!AO29","v":""},{"$f":"前年度登録!DB29","v":""},{"$f":"前年度登録!AN29","v":""},{"$f":"前年度登録!DC29","v":""},{"$f":"前年度登録!DE29","v":0},{"$f":"前年度登録!DJ29","v":"00"},"三重",{"$f":"前年度登録!S29","v":0},null,"",{"$f":"IF(O32=\"\",\"\",HLOOKUP(O32,前年度登録!$AW$3:$CW$118,27,FALSE))","v":""},"","",null,"",null,"","",null,"",null,null,{"$f":"IF(AB32=\"\",\"\",IF(I32=1,VLOOKUP(AB32,#REF!,2,FALSE),IF(I32=2,VLOOKUP(AB32,#REF!,2,FALSE))))","v":""},null,null,null,null,null,null,null,null,"","100m",{"$f":"COUNTIF($P$7:$P$116,61)+COUNTIF($U$7:$U$116,61)","v":0},61,null,null,null,null,0,null,0,"","",null,null,null,null,{"$f":"VLookUpX(\"A\",$C$7:$F$116,1,3)","v":{"$error":"#N/A"}},{"$f":"VLookUpX(\"A\",$C$7:$F$116,1,4)","v":{"$error":"#N/A"}},{"$f":"VLookUpX(\"A\",$C$7:$I$116,1,7)","v":{"$error":"#N/A"}}]
[0,{"$f":"前年度登録!AE30","v":""},0,null,{"$f":"前年度登録!T30","v":0},{"$f":"前年度登録!DB30","v":""},{"$f":"前年度登録!AO30","v":""},{"$f":"前年度登録!DB30","v":""},{"$f":"前年度登録!AN30","v":""},{"$f":"前年度登録!DC30","v":""},{"$f":"前年度登録!DE30","v":0},{"$f":"前年度登録!DJ30","v":"00"},"三重",{"$f":"前年度登録!S30","v":0},null,"",{"$f":"IF(O33=\"\",\"\",HLOOKUP(O33,前年度登録!$AW$3:$CW$118,28,FALSE))","v":""},"","",null,"",null,"","",null,"",null,null,{"$f":"IF(AB33=\"\",\"\",IF(I33=1,VLOOKUP(AB33,#REF!,2,FALSE),IF(I33=2,VLOOKUP(AB33,#REF!,2,FALSE))))","v":""},null,null,null,null,null,null,null,null,"","200m",{"$f":"COUNTIF($P$7:$P$116,62)+COUNTIF($U$7:$U$116,62)","v":0},62,null,null,null,null,0,null,0,"","",null,null,null,null,{"$f":"VLookUpX(\"A\",$C$7:$F$116,2,3)","v":{"$error":"#N/A"}},{"$f":"VLookUpX(\"A\",$C$7:$F$116,2,4)","v":{"$error":"#N/A"}},{"$f":"VLookUpX(\"A\",$C$7:$I$116,2,7)","v":{"$error":"#N/A"}}]
[0,{"$f":"前年度登録!AE31","v":""},0,null,{"$f":"前年度登録!T31","v":0},{"$f":"前年度登録!DB31","v":""},{"$f":"前年度登録!AO31","v":""},{"$f":"前年度登録!DB31","v":""},{"$f":"前年度登録!AN31","v":""},{"$f":"前年度登録!DC31","v":""},{"$f":"前年度登録!DE31","v":0},{"$f":"前年度登録!DJ31","v":"00"},"三重",{"$f":"前年度登録!S31","v":0},null,"",{"$f":"IF(O34=\"\",\"\",HLOOKUP(O34,前年度登録!$AW$3:$CW$118,29,FALSE))","v":""},"","",null,"",null,"","",null,"",null,null,{"$f":"IF(AB34=\"\",\"\",IF(I34=1,VLOOKUP(AB34,#REF!,2,FALSE),IF(I34=2,VLOOKUP(AB34,#REF!,2,FALSE))))","v":""},null,null,null,null,null,null,null,null,"","800m",{"$f":"COUNTIF($P$7:$P$116,63)+COUNTIF($U$7:$U$116,63)","v":0},63,null,null,null,null,0,null,0,"","",null,null,null,null,{"$f":"VLookUpX(\"A\",$C$7:$F$116,3,3)","v":{"$error":"#N/A"}},{"$f":"VLookUpX(\"A\",$C$7:$F$116,3,4)","v":{"$error":"#N/A"}},{"$f":"VLookUpX(\"A\",$C$7:$I$116,3,7)","v":{"$error":"#N/A"}}]
[0,{"$f":"前年度登録!AE32","v":""},0,null,{"$f":"前年度登録!T32","v":0},{"$f":"前年度登録!DB32","v":""},{"$f":"前年度登録!AO32","v":""},{"$f":"前年度登録!DB32","v":""},{"$f":"前年度登録!AN32","v":""},{"$f":"前年度登録!DC32","v":""},{"$f":"前年度登録!DE32","v":0},{"$f":"前年度登録!DJ32","v":"00"},"三重",{"$f":"前年度登録!S32","v":0},null,"",{"$f":"IF(O35=\"\",\"\",HLOOKUP(O35,前年度登録!$AW$3:$CW$118,30,FALSE))","v":""},"","",null,"",null,"","",null,"",null,null,{"$f":"IF(AB35=\"\",\"\",IF(I35=1,VLOOKUP(AB35,#REF!,2,FALSE),IF(I35=2,VLOOKUP(AB35,#REF!,2,FALSE))))","v":""},null,null,null,null,null,null,null,null,"","1500m",{"$f":"COUNTIF($P$7:$P$116,69)+COUNTIF($U$7:$U$116,69)","v":0},69,null,null,null,null,0,null,0,"","",null,null,null,null,{"$f":"VLookUpX(\"A\",$C$7:$F$116,4,3)","v":{"$error":"#N/A"}},{"$f":"VLookUpX(\"A\",$C$7:$F$116,4,4)","v":{"$error":"#N/A"}},{"$f":"VLookUpX(\"A\",$C$7:$I$116,4,7)","v":{"$error":"#N/A"}}]
[0,{"$f":"前年度登録!AE33","v":""},0,null,{"$f":"前年度登録!T33","v":0},{"$f":"前年度登録!DB33","v":""},{"$f":"前年度登録!AO33","v":""},{"$f":"前年度登録!DB33","v":""},{"$f":"前年度登録!AN33","v":""},{"$f":"前年度登録!DC33","v":""},{"$f":"前年度登録!DE33","v":0},{"$f":"前年度登録!DJ33","v":"00"},"三重",{"$f":"前年度登録!S33","v":0},null,"",{"$f":"IF(O36=\"\",\"\",HLOOKUP(O36,前年度登録!$AW$3:$CW$118,31,FALSE))","v":""},"","",null,"",null,"","",null,"",null,null,{"$f":"IF(AB36=\"\",\"\",IF(I36=1,VLOOKUP(AB36,#REF!,2,FALSE),IF(I36=2,VLOOKUP(AB36,#REF!,2,FALSE))))","v":""},null,null,null,null,null,null,null,null,"","100mH",{"$f":"COUNTIF($P$7:$P$116,64)+COUNTIF($U$7:$U$116,64)","v":0},64,null,null,null,null,0,null,0,"","",null,null,null,null,{"$f":"VLookUpX(\"A\",$C$7:$F$116,5,3)","v":{"$error":"#N/A"}},{"$f":"VLookUpX(\"A\",$C$7:$F$116,5,4)","v":{"$error":"#N/A"}},{"$f":"VLookUpX(\"A\",$C$7:$I$116,5,7)","v":{"$error":"#N/A"}}]
[0,{"$f":"前年度登録!AE34","v":""},0,null,{"$f":"前年度登録!T34","v":0},{"$f":"前年度登録!DB34","v":""},{"$f":"前年度登録!AO34","v":""},{"$f":"前年度登録!DB34","v":""},{"$f":"前年度登録!AN34","v":""},{"$f":"前年度登録!DC34","v":""},{"$f":"前年度登録!DE34","v":0},{"$f":"前年度登録!DJ34","v":"00"},"三重",{"$f":"前年度登録!S34","v":0},null,"",{"$f":"IF(O37=\"\",\"\",HLOOKUP(O37,前年度登録!$AW$3:$CW$118,32,FALSE))","v":""},"","",null,"",null,"","",null,"",null,null,{"$f":"IF(AB37=\"\",\"\",IF(I37=1,VLOOKUP(AB37,#REF!,2,FALSE),IF(I37=2,VLOOKUP(AB37,#REF!,2,FALSE))))","v":""},null,null,null,null,null,null,null,null,"","走高跳",{"$f":"COUNTIF($P$7:$P$116,66)+COUNTIF($U$7:$U$116,66)","v":0},66,null,null,null,null,0,null,0,"","",null,null,null,null,{"$f":"VLookUpX(\"A\",$C$7:$F$116,6,3)","v":{"$error":"#N/A"}},{"$f":"VLookUpX(\"A\",$C$7:$F$116,6,4)","v":{"$error":"#N/A"}},{"$f":"VLookUpX(\"A\",$C$7:$I$116,6,7)","v":{"$error":"#N/A"}}]
[0,{"$f":"前年度登録!AE35","v":""},0,null,{"$f":"前年度登録!T35","v":0},{"$f":"前年度登録!DB35","v":""},{"$f":"前年度登録!AO35","v":""},{"$f":"前年度登録!DB35","v":""},{"$f":"前年度登録!AN35","v":""},{"$f":"前年度登録!DC35","v":""},{"$f":"前年度登録!DE35","v":0},{"$f":"前年度登録!DJ35","v":"00"},"三重",{"$f":"前年度登録!S35","v":0},null,"",{"$f":"IF(O38=\"\",\"\",HLOOKUP(O38,前年度登録!$AW$3:$CW$118,33,FALSE))","v":""},"","",null,"",null,"","",null,"",null,null,{"$f":"IF(AB38=\"\",\"\",IF(I38=1,VLOOKUP(AB38,#REF!,2,FALSE),IF(I38=2,VLOOKUP(AB38,#REF!,2,FALSE))))","v":""},null,null,null,null,null,null,null,null,"","棒高跳",{"$f":"COUNTIF($P$7:$P$116,72)+COUNTIF($U$7:$U$116,72)","v":0},72,"種目数",null,null,null,0,null,0,"",""]
[{"$f":"Y39","v":0},{"$f":"前年度登録!AE36","v":""},0,null,{"$f":"前年度登録!T36","v":0},{"$f":"前年度登録!DB36","v":""},{"$f":"前年度登録!AO36","v":""},{"$f":"前年度登録!DB36","v":""},{"$f":"前年度登録!AN36","v":""},{"$f":"前年度登録!DC36","v":""},{"$f":"前年度登録!DE36","v":0},{"$f":"前年度登録!DJ36","v":"00"},"三重",{"$f":"前年度登録!S36","v":0},null,"",{"$f":"IF(O39=\"\",\"\",HLOOKUP(O39,前年度登録!$AW$3:$CW$118,34,FALSE))","v":""},"","",null,"",null,"","",null,"",null,null,{"$f":"IF(AB39=\"\",\"\",IF(I39=1,VLOOKUP(AB39,#REF!,2,FALSE),IF(I39=2,VLOOKUP(AB39,#REF!,2,FALSE))))","v":""},null,null,null,null,null,null,null,null,"","走幅跳",{"$f":"COUNTIF($P$7:$P$116,67)+COUNTIF($U$7:$U$116,67)","v":0},67,{"$f":"COUNTIF($Y$7:$Y$116,AM48)","v":0},null,null,null,{"$f":"IF(OR(AL39=1,T39=\"\"),0,1)","v":0},null,0,{"$f":"IF(I39=1,AV39,\"\")","v":""},{"$f":"IF(I39=2,AV39,\"\")","v":""}]
[0,{"$f":"前年度登録!AE37","v":""},0,null,{"$f":"前年度登録!T37","v":0},{"$f":"前年度登録!DB37","v":""},{"$f":"前年度登録!AO37","v":""},{"$f":"前年度登録!DB37","v":""},{"$f":"前年度登録!AN37","v":""},{"$f":"前年度登録!DC37","v":""},{"$f":"前年度登録!DE37","v":0},{"$f":"前年度登録!DJ37","v":"00"},"三重",{"$f":"前年度登録!S37","v":0},null,"",{"$f":"IF(O40=\"\",\"\",HLOOKUP(O40,前年度登録!$AW$3:$CW$118,35,FALSE))","v":""},"","",null,"",null,"","",null,"",null,null,{"$f":"IF(AB40=\"\",\"\",IF(I40=1,VLOOKUP(AB40,#REF!,2,FALSE),IF(I40=2,VLOOKUP(AB40,#REF!,2,FALSE))))","v":""},null,null,null,null,null,null,null,null,"","三段跳",{"$f":"COUNTIF($P$7:$P$116,73)+COUNTIF($U$7:$U$116,73)","v":0},73,0,null,null,null,0,null,0,"","",null,null,null,null,{"$f":"VLookUpX(\"B\",$C$7:$F$116,1,3)","v":{"$error":"#N/A"}},{"$f":"VLookUpX(\"B\",$C$7:$F$116,1,4)","v":{"$error":"#N/A"}},{"$f":"VLookUpX(\"B\",$C$7:$I$116,1,7)","v":{"$error":"#N/A"}}]
[0,{"$f":"前年度登録!AE38","v":""},0,null,{"$f":"前年度登録!T38","v":0},{"$f":"前年度登録!DB38","v":""},{"$f":"前年度登録!AO38","v":""},{"$f":"前年度登録!DB38","v":""},{"$f":"前年度登録!AN38","v":""},{"$f":"前年度登録!DC38","v":""},{"$f":"前年度登録!DE38","v":0},{"$f":"前年度登録!DJ38","v":"00"},"三重",{"$f":"前年度登録!S38","v":0},null,"",{"$f":"IF(O41=\"\",\"\",HLOOKUP(O41,前年度登録!$AW$3:$CW$118,36,FALSE))","v":""},"","",null,"",null,"","",null,"",null,null,{"$f":"IF(AB41=\"\",\"\",IF(I41=1,VLOOKUP(AB41,#REF!,2,FALSE),IF(I41=2,VLOOKUP(AB41,#REF!,2,FALSE))))","v":""},null,null,null,null,null,null,null,null,"","砲丸投",{"$f":"COUNTIF($P$7:$P$116,66)+COUNTIF($U$7:$U$116,66)","v":0},66,0,null,null,null,0,null,0,"","",null,null,null,null,{"$f":"VLookUpX(\"B\",$C$7:$F$116,2,3)","v":{"$error":"#N/A"}},{"$f":"VLookUpX(\"B\",$C$7:$F$116,2,4)","v":{"$error":"#N/A"}},{"$f":"VLookUpX(\"B\",$C$7:$I$116,2,7)","v":{"$error":"#N/A"}}]
[0,{"$f":"前年度登録!AE39","v":""},0,null,{"$f":"前年度登録!T39","v":0},{"$f":"前年度登録!DB39","v":""},{"$f":"前年度登録!AO39","v":""},{"$f":"前年度登録!DB39","v":""},{"$f":"前年度登録!AN39","v":""},{"$f":"前年度登録!DC39","v":""},{"$f":"前年度登録!DE39","v":0},{"$f":"前年度登録!DJ39","v":"00"},"三重",{"$f":"前年度登録!S39","v":0},null,"",{"$f":"IF(O42=\"\",\"\",HLOOKUP(O42,前年度登録!$AW$3:$CW$118,37,FALSE))","v":""},"","",null,"",null,"","",null,"",null,null,{"$f":"IF(AB42=\"\",\"\",IF(I42=1,VLOOKUP(AB42,#REF!,2,FALSE),IF(I42=2,VLOOKUP(AB42,#REF!,2,FALSE))))","v":""},null,null,null,null,null,null,null,null,"","計",{"$f":"SUM(AN32:AN41)","v":0},null,0,null,null,null,0,null,0,"","",null,null,null,null,{"$f":"VLookUpX(\"B\",$C$7:$F$116,3,3)","v":{"$error":"#N/A"}},{"$f":"VLookUpX(\"B\",$C$7:$F$116,3,4)","v":{"$error":"#N/A"}},{"$f":"VLookUpX(\"B\",$C$7:$I$116,3,7)","v":{"$error":"#N/A"}}]
[0,{"$f":"前年度登録!AE40","v":""},0,null,{"$f":"前年度登録!T40","v":0},{"$f":"前年度登録!DB40","v":""},{"$f":"前年度登録!AO40","v":""},{"$f":"前年度登録!DB40","v":""},{"$f":"前年度登録!AN40","v":""},{"$f":"前年度登録!DC40","v":""},{"$f":"前年度登録!DE40","v":0},{"$f":"前年度登録!DJ40","v":"00"},"三重",{"$f":"前年度登録!S40","v":0},null,"",{"$f":"IF(O43=\"\",\"\",HLOOKUP(O43,前年度登録!$AW$3:$CW$118,38,FALSE))","v":""},"","",null,"",null,"","",null,"",null,null,{"$f":"IF(AB43=\"\",\"\",IF(I43=1,VLOOKUP(AB43,#REF!,2,FALSE),IF(I43=2,VLOOKUP(AB43,#REF!,2,FALSE))))","v":""},null,null,null,null,null,null,null,null,"",null,null,null,0,null,null,null,0,null,0,"","",null,null,null,null,{"$f":"VLookUpX(\"B\",$C$7:$F$116,4,3)","v":{"$error":"#N/A"}},{"$f":"VLookUpX(\"B\",$C$7:$F$116,4,4)","v":{"$error":"#N/A"}},{"$f":"VLookUpX(\"B\",$C$7:$I$116,4,7)","v":{"$error":"#N/A"}}]
[0,{"$f":"前年度登録!AE41","v":""},0,null,{"$f":"前年度登録!T41","v":0},{"$f":"前年度登録!DB41","v":""},{"$f":"前年度登録!AO41","v":""},{"$f":"前年度登録!DB41","v":""},{"$f":"前年度登録!AN41","v":""},{"$f":"前年度登録!DC41","v":""},{"$f":"前年度登録!DE41","v":0},{"$f":"前年度登録!DJ41","v":"00"},"三重",{"$f":"前年度登録!S41","v":0},null,"",{"$f":"IF(O44=\"\",\"\",HLOOKUP(O44,前年度登録!$AW$3:$CW$118,39,FALSE))","v":""},"","",null,"",null,"","",null,"",null,null,{"$f":"IF(AB44=\"\",\"\",IF(I44=1,VLOOKUP(AB44,#REF!,2,FALSE),IF(I44=2,VLOOKUP(AB44,#REF!,2,FALSE))))","v":""},null,null,null,null,null,null,null,null,"",null,null,null,0,null,null,null,0,null,0,"","",null,null,null,null,{"$f":"VLookUpX(\"B\",$C$7:$F$116,5,3)","v":{"$error":"#N/A"}},{"$f":"VLookUpX(\"B\",$C$7:$F$116,5,4)","v":{"$error":"#N/A"}},{"$f":"VLookUpX(\"B\",$C$7:$I$116,5,7)","v":{"$error":"#N/A"}}]
[0,{"$f":"前年度登録!AE42","v":""},0,null,{"$f":"前年度登録!T42","v":0},{"$f":"前年度登録!DB42","v":""},{"$f":"前年度登録!AO42","v":""},{"$f":"前年度登録!DB42","v":""},{"$f":"前年度登録!AN42","v":""},{"$f":"前年度登録!DC42","v":""},{"$f":"前年度登録!DE42","v":0},{"$f":"前年度登録!DJ42","v":"00"},"三重",{"$f":"前年度登録!S42","v":0},null,"",{"$f":"IF(O45=\"\",\"\",HLOOKUP(O45,前年度登録!$AW$3:$CW$118,40,FALSE))","v":""},"","",null,"",null,"","",null,"",null,null,{"$f":"IF(AB45=\"\",\"\",IF(I45=1,VLOOKUP(AB45,#REF!,2,FALSE),IF(I45=2,VLOOKUP(AB45,#REF!,2,FALSE))))","v":""},null,null,null,null,null,null,null,null,"",null,null,null,0,null,null,null,0,null,0,"","",null,null,null,null,{"$f":"VLookUpX(\"B\",$C$7:$F$116,6,3)","v":{"$error":"#N/A"}},{"$f":"VLookUpX(\"B\",$C$7:$F$116,6,4)","v":{"$error":"#N/A"}},{"$f":"VLookUpX(\"B\",$C$7:$I$116,6,7)","v":{"$error":"#N/A"}}]
[0,{"$f":"前年度登録!AE43","v":""},0,null,{"$f":"前年度登録!T43","v":0},{"$f":"前年度登録!DB43","v":""},{"$f":"前年度登録!AO43","v":""},{"$f":"前年度登録!DB43","v":""},{"$f":"前年度登録!AN43","v":""},{"$f":"前年度登録!DC43","v":""},{"$f":"前年度登録!DE43","v":0},{"$f":"前年度登録!DJ43","v":"00"},"三重",{"$f":"前年度登録!S43","v":0},null,"",{"$f":"IF(O46=\"\",\"\",HLOOKUP(O46,前年度登録!$AW$3:$CW$118,41,FALSE))","v":""},"","",null,"",null,"","",null,"",null,null,{"$f":"IF(AB46=\"\",\"\",IF(I46=1,VLOOKUP(AB46,#REF!,2,FALSE),IF(I46=2,VLOOKUP(AB46,#REF!,2,FALSE))))","v":""},null,null,null,null,null,null,null,null,"",null,null,null,0,null,null,null,0,null,0,"",""]
[0,{"$f":"前年度登録!AE44","v":""},0,null,{"$f":"前年度登録!T44","v":0},{"$f":"前年度登録!DB44","v":""},{"$f":"前年度登録!AO44","v":""},{"$f":"前年度登録!DB44","v":""},{"$f":"前年度登録!AN44","v":""},{"$f":"前年度登録!DC44","v":""},{"$f":"前年度登録!DE44","v":0},{"$f":"前年度登録!DJ44","v":"00"},"三重",{"$f":"前年度登録!S44","v":0},null,"",{"$f":"IF(O47=\"\",\"\",HLOOKUP(O47,前年度登録!$AW$3:$CW$118,42,FALSE))","v":""},"","",null,"",null,"","",null,"",null,null,{"$f":"IF(AB47=\"\",\"\",IF(I47=1,VLOOKUP(AB47,#REF!,2,FALSE),IF(I47=2,VLOOKUP(AB47,#REF!,2,FALSE))))","v":""},null,null,null,null,null,null,null,null,"",null,null,null,0,null,null,null,0,null,0,"",""]
[0,{"$f":"前年度登録!AE45","v":""},0,null,{"$f":"前年度登録!T45","v":0},{"$f":"前年度登録!DB45","v":""},{"$f":"前年度登録!AO45","v":""},{"$f":"前年度登録!DB45","v":""},{"$f":"前年度登録!AN45","v":""},{"$f":"前年度登録!DC45","v":""},{"$f":"前年度登録!DE45","v":0},{"$f":"前年度登録!DJ45","v":"00"},"三重",{"$f":"前年度登録!S45","v":0},null,"",{"$f":"IF(O48=\"\",\"\",HLOOKUP(O48,前年度登録!$AW$3:$CW$118,43,FALSE))","v":""},"","",null,"",null,"","",null,"",null,null,{"$f":"IF(AB48=\"\",\"\",IF(I48=1,VLOOKUP(AB48,#REF!,2,FALSE),IF(I48=2,VLOOKUP(AB48,#REF!,2,FALSE))))","v":""},null,null,null,null,null,null,null,null,"","男子A",57,20,{"$f":"COUNTIF(AP39:AP47,0)","v":9},{"$f":"9-AP48","v":0},null,null,0,null,0,"","",null,null,null,null,{"$f":"VLookUpX(\"C\",$C$7:$F$116,1,3)","v":{"$error":"#N/A"}},{"$f":"VLookUpX(\"C\",$C$7:$F$116,1,4)","v":{"$error":"#N/A"}},{"$f":"VLookUpX(\"C\",$C$7:$I$116,1,7)","v":{"$error":"#N/A"}}]
[0,{"$f":"前年度登録!AE46","v":""},0,null,{"$f":"前年度登録!T46","v":0},{"$f":"前年度登録!DB46","v":""},{"$f":"前年度登録!AO46","v":""},{"$f":"前年度登録!DB46","v":""},{"$f":"前年度登録!AN46","v":""},{"$f":"前年度登録!DC46","v":""},{"$f":"前年度登録!DE46","v":0},{"$f":"前年度登録!DJ46","v":"00"},"三重",{"$f":"前年度登録!S46","v":0},null,"",{"$f":"IF(O49=\"\",\"\",HLOOKUP(O49,前年度登録!$AW$3:$CW$118,44,FALSE))","v":""},"","",null,"",null,"","",null,"",null,null,{"$f":"IF(AB49=\"\",\"\",IF(I49=1,VLOOKUP(AB49,#REF!,2,FALSE),IF(I49=2,VLOOKUP(AB49,#REF!,2,FALSE))))","v":""},null,null,null,null,null,null,null,null,"","男子B",57,20,null,null,null,null,0,null,0,"","",null,null,null,null,{"$f":"VLookUpX(\"C\",$C$7:$F$116,2,3)","v":{"$error":"#N/A"}},{"$f":"VLookUpX(\"C\",$C$7:$F$116,2,4)","v":{"$error":"#N/A"}},{"$f":"VLookUpX(\"C\",$C$7:$I$116,2,7)","v":{"$error":"#N/A"}}]
[0,{"$f":"前年度登録!AE47","v":""},0,null,{"$f":"前年度登録!T47","v":0},{"$f":"前年度登録!DB47","v":""},{"$f":"前年度登録!AO47","v":""},{"$f":"前年度登録!DB47","v":""},{"$f":"前年度登録!AN47","v":""},{"$f":"前年度登録!DC47","v":""},{"$f":"前年度登録!DE47","v":0},{"$f":"前年度登録!DJ47","v":"00"},"三重",{"$f":"前年度登録!S47","v":0},null,"",{"$f":"IF(O50=\"\",\"\",HLOOKUP(O50,前年度登録!$AW$3:$CW$118,45,FALSE))","v":""},"","",null,"",null,"","",null,"",null,null,{"$f":"IF(AB50=\"\",\"\",IF(I50=1,VLOOKUP(AB50,#REF!,2,FALSE),IF(I50=2,VLOOKUP(AB50,#REF!,2,FALSE))))","v":""},null,null,null,null,null,null,null,null,"","男子C",57,20,null,null,null,null,0,null,0,"","",null,null,null,null,{"$f":"VLookUpX(\"C\",$C$7:$F$116,3,3)","v":{"$error":"#N/A"}},{"$f":"VLookUpX(\"C\",$C$7:$F$116,3,4)","v":{"$error":"#N/A"}},{"$f":"VLookUpX(\"C\",$C$7:$I$116,3,7)","v":{"$error":"#N/A"}}]
[0,{"$f":"前年度登録!AE48","v":""},0,null,{"$f":"前年度登録!T48","v":0},{"$f":"前年度登録!DB48","v":""},{"$f":"前年度登録!AO48","v":""},{"$f":"前年度登録!DB48","v":""},{"$f":"前年度登録!AN48","v":""},{"$f":"前年度登録!DC48","v":""},{"$f":"前年度登録!DE48","v":0},{"$f":"前年度登録!DJ48","v":"00"},"三重",{"$f":"前年度登録!S48","v":0},null,"",{"$f":"IF(O51=\"\",\"\",HLOOKUP(O51,前年度登録!$AW$3:$CW$118,46,FALSE))","v":""},"","",null,"",null,"","",null,"",null,null,{"$f":"IF(AB51=\"\",\"\",IF(I51=1,VLOOKUP(AB51,#REF!,2,FALSE),IF(I51=2,VLOOKUP(AB51,#REF!,2,FALSE))))","v":""},null,null,null,null,null,null,null,null,"","女子A",65,27,null,null,null,null,0,null,0,"","",null,null,null,null,{"$f":"VLookUpX(\"C\",$C$7:$F$116,4,3)","v":{"$error":"#N/A"}},{"$f":"VLookUpX(\"C\",$C$7:$F$116,4,4)","v":{"$error":"#N/A"}},{"$f":"VLookUpX(\"C\",$C$7:$I$116,4,7)","v":{"$error":"#N/A"}}]
[0,{"$f":"前年度登録!AE49","v":""},0,null,{"$f":"前年度登録!T49","v":0},{"$f":"前年度登録!DB49","v":""},{"$f":"前年度登録!AO49","v":""},{"$f":"前年度登録!DB49","v":""},{"$f":"前年度登録!AN49","v":""},{"$f":"前年度登録!DC49","v":""},{"$f":"前年度登録!DE49","v":0},{"$f":"前年度登録!DJ49","v":"00"},"三重",{"$f":"前年度登録!S49","v":0},null,"",{"$f":"IF(O52=\"\",\"\",HLOOKUP(O52,前年度登録!$AW$3:$CW$118,47,FALSE))","v":""},"","",null,"",null,"","",null,"",null,null,{"$f":"IF(AB52=\"\",\"\",IF(I52=1,VLOOKUP(AB52,#REF!,2,FALSE),IF(I52=2,VLOOKUP(AB52,#REF!,2,FALSE))))","v":""},null,null,null,null,null,null,null,null,"","女子B",65,27,null,null,null,null,0,null,0,"","",null,null,null,null,{"$f":"VLookUpX(\"C\",$C$7:$F$116,5,3)","v":{"$error":"#N/A"}},{"$f":"VLookUpX(\"C\",$C$7:$F$116,5,4)","v":{"$error":"#N/A"}},{"$f":"VLookUpX(\"C\",$C$7:$I$116,5,7)","v":{"$error":"#N/A"}}]
[0,{"$f":"前年度登録!AE50","v":""},0,null,{"$f":"前年度登録!T50","v":0},{"$f":"前年度登録!DB50","v":""},{"$f":"前年度登録!AO50","v":""},{"$f":"前年度登録!DB50","v":""},{"$f":"前年度登録!AN50","v":""},{"$f":"前年度登録!DC50","v":""},{"$f":"前年度登録!DE50","v":0},{"$f":"前年度登録!DJ50","v":"00"},"三重",{"$f":"前年度登録!S50","v":0},null,"",{"$f":"IF(O53=\"\",\"\",HLOOKUP(O53,前年度登録!$AW$3:$CW$118,48,FALSE))","v":""},"","",null,"",null,"","",null,"",null,null,{"$f":"IF(AB53=\"\",\"\",IF(I53=1,VLOOKUP(AB53,#REF!,2,FALSE),IF(I53=2,VLOOKUP(AB53,#REF!,2,FALSE))))","v":""},null,null,null,null,null,null,null,null,"","女子C",65,27,null,null,null,null,0,null,0,"","",null,null,null,null,{"$f":"VLookUpX(\"C\",$C$7:$F$116,6,3)","v":{"$error":"#N/A"}},{"$f":"VLookUpX(\"C\",$C$7:$F$116,6,4)","v":{"$error":"#N/A"}},{"$f":"VLookUpX(\"C\",$C$7:$I$116,6,7)","v":{"$error":"#N/A"}}]
[0,{"$f":"前年度登録!AE51","v":""},0,null,{"$f":"前年度登録!T51","v":0},{"$f":"前年度登録!DB51","v":""},{"$f":"前年度登録!AO51","v":""},{"$f":"前年度登録!DB51","v":""},{"$f":"前年度登録!AN51","v":""},{"$f":"前年度登録!DC51","v":""},{"$f":"前年度登録!DE51","v":0},{"$f":"前年度登録!DJ51","v":"00"},"三重",{"$f":"前年度登録!S51","v":0},null,"",{"$f":"IF(O54=\"\",\"\",HLOOKUP(O54,前年度登録!$AW$3:$CW$118,49,FALSE))","v":""},"","",null,"",null,"","",null,"",null,null,{"$f":"IF(AB54=\"\",\"\",IF(I54=1,VLOOKUP(AB54,#REF!,2,FALSE),IF(I54=2,VLOOKUP(AB54,#REF!,2,FALSE))))","v":""},null,null,null,null,null,null,null,null,"",null,null,28,null,null,null,null,0,null,0,"",""]
[0,{"$f":"前年度登録!AE52","v":""},0,null,{"$f":"前年度登録!T52","v":0},{"$f":"前年度登録!DB52","v":""},{"$f":"前年度登録!AO52","v":""},{"$f":"前年度登録!DB52","v":""},{"$f":"前年度登録!AN52","v":""},{"$f":"前年度登録!DC52","v":""},{"$f":"前年度登録!DE52","v":0},{"$f":"前年度登録!DJ52","v":"00"},"三重",{"$f":"前年度登録!S52","v":0},null,"",{"$f":"IF(O55=\"\",\"\",HLOOKUP(O55,前年度登録!$AW$3:$CW$118,50,FALSE))","v":""},"","",null,"",null,"","",null,"",null,null,{"$f":"IF(AB55=\"\",\"\",IF(I55=1,VLOOKUP(AB55,#REF!,2,FALSE),IF(I55=2,VLOOKUP(AB55,#REF!,2,FALSE))))","v":""},null,null,null,null,null,null,null,null,"",null,null,28,null,null,null,null,0,null,0,"",""]
[0,{"$f":"前年度登録!AE53","v":""},0,null,{"$f":"前年度登録!T53","v":0},{"$f":"前年度登録!DB53","v":""},{"$f":"前年度登録!AO53","v":""},{"$f":"前年度登録!DB53","v":""},{"$f":"前年度登録!AN53","v":""},{"$f":"前年度登録!DC53","v":""},{"$f":"前年度登録!DE53","v":0},{"$f":"前年度登録!DJ53","v":"00"},"三重",{"$f":"前年度登録!S53","v":0},null,"",{"$f":"IF(O56=\"\",\"\",HLOOKUP(O56,前年度登録!$AW$3:$CW$118,51,FALSE))","v":""},"","",null,"",null,"","",null,"",null,null,{"$f":"IF(AB56=\"\",\"\",IF(I56=1,VLOOKUP(AB56,#REF!,2,FALSE),IF(I56=2,VLOOKUP(AB56,#REF!,2,FALSE))))","v":""},null,null,null,null,null,null,null,null,"",null,null,28,null,null,null,null,0,null,0,"",""]
[0,{"$f":"前年度登録!AE54","v":""},0,null,{"$f":"前年度登録!T54","v":0},{"$f":"前年度登録!DB54","v":""},{"$f":"前年度登録!AO54","v":""},{"$f":"前年度登録!DB54","v":""},{"$f":"前年度登録!AN54","v":""},{"$f":"前年度登録!DC54","v":""},{"$f":"前年度登録!DE54","v":0},{"$f":"前年度登録!DJ54","v":"00"},"三重",{"$f":"前年度登録!S54","v":0},null,"",{"$f":"IF(O57=\"\",\"\",HLOOKUP(O57,前年度登録!$AW$3:$CW$118,52,FALSE))","v":""},"","",null,"",null,"","",null,"",null,null,{"$f":"IF(AB57=\"\",\"\",IF(I57=1,VLOOKUP(AB57,#REF!,2,FALSE),IF(I57=2,VLOOKUP(AB57,#REF!,2,FALSE))))","v":""},null,null,null,null,null,null,null,null,"",null,null,null,null,null,null,null,0,null,0,"",""]
[0,{"$f":"前年度登録!AE55","v":""},0,null,{"$f":"前年度登録!T55","v":0},{"$f":"前年度登録!DB55","v":""},{"$f":"前年度登録!AO55","v":""},{"$f":"前年度登録!DB55","v":""},{"$f":"前年度登録!AN55","v":""},{"$f":"前年度登録!DC55","v":""},{"$f":"前年度登録!DE55","v":0},{"$f":"前年度登録!DJ55","v":"00"},"三重",{"$f":"前年度登録!S55","v":0},null,"",{"$f":"IF(O58=\"\",\"\",HLOOKUP(O58,前年度登録!$AW$3:$CW$118,53,FALSE))","v":""},"","",null,"",null,"","",null,"",null,null,{"$f":"IF(AB58=\"\",\"\",IF(I58=1,VLOOKUP(AB58,#REF!,2,FALSE),IF(I58=2,VLOOKUP(AB58,#REF!,2,FALSE))))","v":""},null,null,null,null,null,null,null,null,"",null,null,null,null,null,null,null,0,null,0,"",""]
[0,{"$f":"前年度登録!AE56","v":""},0,null,{"$f":"前年度登録!T56","v":0},{"$f":"前年度登録!DB56","v":""},{"$f":"前年度登録!AO56","v":""},{"$f":"前年度登録!DB56","v":""},{"$f":"前年度登録!AN56","v":""},{"$f":"前年度登録!DC56","v":""},{"$f":"前年度登録!DE56","v":0},{"$f":"前年度登録!DJ56","v":"00"},"三重",{"$f":"前年度登録!S56","v":0},null,"",{"$f":"IF(O59=\"\",\"\",HLOOKUP(O59,前年度登録!$AW$3:$CW$118,54,FALSE))","v":""},"","",null,"",null,"","",null,"",null,null,{"$f":"IF(AB59=\"\",\"\",IF(I59=1,VLOOKUP(AB59,#REF!,2,FALSE),IF(I59=2,VLOOKUP(AB59,#REF!,2,FALSE))))","v":""},null,null,null,null,null,null,null,null,"",null,null,null,null,null,null,null,0,null,0,"",""]
[0,{"$f":"前年度登録!AE57","v":""},0,null,{"$f":"前年度登録!T57","v":0},{"$f":"前年度登録!DB57","v":""},{"$f":"前年度登録!AO57","v":""},{"$f":"前年度登録!DB57","v":""},{"$f":"前年度登録!AN57","v":""},{"$f":"前年度登録!DC57","v":""},{"$f":"前年度登録!DE57","v":0},{"$f":"前年度登録!DJ57","v":"00"},"三重",{"$f":"前年度登録!S57","v":0},null,"",{"$f":"IF(O60=\"\",\"\",HLOOKUP(O60,前年度登録!$AW$3:$CW$118,55,FALSE))","v":""},"","",null,"",null,"","",null,"",null,null,{"$f":"IF(AB60=\"\",\"\",IF(I60=1,VLOOKUP(AB60,#REF!,2,FALSE),IF(I60=2,VLOOKUP(AB60,#REF!,2,FALSE))))","v":""},null,null,null,null,null,null,null,null,"",null,null,null,null,null,null,null,0,null,0,"",""]
[0,{"$f":"前年度登録!AE58","v":""},0,null,{"$f":"前年度登録!T58","v":0},{"$f":"前年度登録!DB58","v":""},{"$f":"前年度登録!AO58","v":""},{"$f":"前年度登録!DB58","v":""},{"$f":"前年度登録!AN58","v":""},{"$f":"前年度登録!DC58","v":""},{"$f":"前年度登録!DE58","v":0},{"$f":"前年度登録!DJ58","v":"00"},"三重",{"$f":"前年度登録!S58","v":0},null,"",{"$f":"IF(O61=\"\",\"\",HLOOKUP(O61,前年度登録!$AW$3:$CW$118,56,FALSE))","v":""},"","",null,"",null,"","",null,"",null,null,{"$f":"IF(AB61=\"\",\"\",IF(I61=1,VLOOKUP(AB61,#REF!,2,FALSE),IF(I61=2,VLOOKUP(AB61,#REF!,2,FALSE))))","v":""},null,null,null,null,null,null,null,null,"",null,null,null,null,null,null,null,0,null,0,"",""]
[0,{"$f":"前年度登録!AE59","v":""},0,null,{"$f":"前年度登録!T59","v":0},{"$f":"前年度登録!DB59","v":""},{"$f":"前年度登録!AO59","v":""},{"$f":"前年度登録!DB59","v":""},{"$f":"前年度登録!AN59","v":""},{"$f":"前年度登録!DC59","v":""},{"$f":"前年度登録!DE59","v":0},{"$f":"前年度登録!DJ59","v":"00"},"三重",{"$f":"前年度登録!S59","v":0},null,"",{"$f":"IF(O62=\"\",\"\",HLOOKUP(O62,前年度登録!$AW$3:$CW$118,57,FALSE))","v":""},"","",null,"",null,"","",null,"",null,null,{"$f":"IF(AB62=\"\",\"\",IF(I62=1,VLOOKUP(AB62,#REF!,2,FALSE),IF(I62=2,VLOOKUP(AB62,#REF!,2,FALSE))))","v":""},null,null,null,null,null,null,null,null,"",null,null,null,null,null,null,null,0,null,0,"",""]
[0,{"$f":"前年度登録!AE60","v":""},0,null,{"$f":"前年度登録!T60","v":0},{"$f":"前年度登録!DB60","v":""},{"$f":"前年度登録!AO60","v":""},{"$f":"前年度登録!DB60","v":""},{"$f":"前年度登録!AN60","v":""},{"$f":"前年度登録!DC60","v":""},{"$f":"前年度登録!DE60","v":0},{"$f":"前年度登録!DJ60","v":"00"},"三重",{"$f":"前年度登録!S60","v":0},null,"",{"$f":"IF(O63=\"\",\"\",HLOOKUP(O63,前年度登録!$AW$3:$CW$118,58,FALSE))","v":""},"","",null,"",null,"","",null,"",null,null,{"$f":"IF(AB63=\"\",\"\",IF(I63=1,VLOOKUP(AB63,#REF!,2,FALSE),IF(I63=2,VLOOKUP(AB63,#REF!,2,FALSE))))","v":""},null,null,null,null,null,null,null,null,"",null,null,null,null,null,null,null,0,null,0,"",""]
[0,{"$f":"前年度登録!AE61","v":""},0,null,{"$f":"前年度登録!T61","v":0},{"$f":"前年度登録!DB61","v":""},{"$f":"前年度登録!AO61","v":""},{"$f":"前年度登録!DB61","v":""},{"$f":"前年度登録!AN61","v":""},{"$f":"前年度登録!DC61","v":""},{"$f":"前年度登録!DE61","v":0},{"$f":"前年度登録!DJ61","v":"00"},"三重",{"$f":"前年度登録!S61","v":0},null,"",{"$f":"IF(O64=\"\",\"\",HLOOKUP(O64,前年度登録!$AW$3:$CW$118,59,FALSE))","v":""},"","",null,"",null,"","",null,"",null,null,{"$f":"IF(AB64=\"\",\"\",IF(I64=1,VLOOKUP(AB64,#REF!,2,FALSE),IF(I64=2,VLOOKUP(AB64,#REF!,2,FALSE))))","v":""},null,null,null,null,null,null,null,null,"",null,null,null,null,null,null,null,0,null,0,"",""]
[0,{"$f":"前年度登録!AE62","v":""},0,null,{"$f":"前年度登録!T62","v":0},{"$f":"前年度登録!DB62","v":""},{"$f":"前年度登録!AO62","v":""},{"$f":"前年度登録!DB62","v":""},{"$f":"前年度登録!AN62","v":""},{"$f":"前年度登録!DC62","v":""},{"$f":"前年度登録!DE62","v":0},{"$f":"前年度登録!DJ62","v":"00"},"三重",{"$f":"前年度登録!S62","v":0},null,"",{"$f":"IF(O65=\"\",\"\",HLOOKUP(O65,前年度登録!$AW$3:$CW$118,60,FALSE))","v":""},"","",null,"",null,"","",null,"",null,null,{"$f":"IF(AB65=\"\",\"\",IF(I65=1,VLOOKUP(AB65,#REF!,2,FALSE),IF(I65=2,VLOOKUP(AB65,#REF!,2,FALSE))))","v":""},null,null,null,null,null,null,null,null,"",null,null,null,null,null,null,null,0,null,0,"",""]
[0,{"$f":"前年度登録!AE63","v":""},0,null,{"$f":"前年度登録!T63","v":0},{"$f":"前年度登録!DB63","v":""},{"$f":"前年度登録!AO63","v":""},{"$f":"前年度登録!DB63","v":""},{"$f":"前年度登録!AN63","v":""},{"$f":"前年度登録!DC63","v":""},{"$f":"前年度登録!DE63","v":0},{"$f":"前年度登録!DJ63","v":"00"},"三重",{"$f":"前年度登録!S63","v":0},null,"",{"$f":"IF(O66=\"\",\"\",HLOOKUP(O66,前年度登録!$AW$3:$CW$118,61,FALSE))","v":""},"","",null,"",null,"","",null,"",null,null,{"$f":"IF(AB66=\"\",\"\",IF(I66=1,VLOOKUP(AB66,#REF!,2,FALSE),IF(I66=2,VLOOKUP(AB66,#REF!,2,FALSE))))","v":""},null,null,null,null,null,null,null,null,"",null,null,null,null,null,null,null,0,null,0,"",""]
[0,{"$f":"前年度登録!AE64","v":""},0,null,{"$f":"前年度登録!T64","v":0},{"$f":"前年度登録!DB64","v":""},{"$f":"前年度登録!AO64","v":""},{"$f":"前年度登録!DB64","v":""},{"$f":"前年度登録!AN64","v":""},{"$f":"前年度登録!DC64","v":""},{"$f":"前年度登録!DE64","v":0},{"$f":"前年度登録!DJ64","v":"00"},"三重",{"$f":"前年度登録!S64","v":0},null,"",{"$f":"IF(O67=\"\",\"\",HLOOKUP(O67,前年度登録!$AW$3:$CW$118,62,FALSE))","v":""},"","",null,"",null,"","",null,"",null,null,{"$f":"IF(AB67=\"\",\"\",IF(I67=1,VLOOKUP(AB67,#REF!,2,FALSE),IF(I67=2,VLOOKUP(AB67,#REF!,2,FALSE))))","v":""},null,null,null,null,null,null,null,null,"",null,null,null,null,null,null,null,0,null,0,"",""]
[0,{"$f":"前年度登録!AE65","v":""},0,null,{"$f":"前年度登録!T65","v":0},{"$f":"前年度登録!DB65","v":""},{"$f":"前年度登録!AO65","v":""},{"$f":"前年度登録!DB65","v":""},{"$f":"前年度登録!AN65","v":""},{"$f":"前年度登録!DC65","v":""},{"$f":"前年度登録!DE65","v":0},{"$f":"前年度登録!DJ65","v":"00"},"三重",{"$f":"前年度登録!S65","v":0},null,"",{"$f":"IF(O68=\"\",\"\",HLOOKUP(O68,前年度登録!$AW$3:$CW$118,63,FALSE))","v":""},"","",null,"",null,"","",null,"",null,null,{"$f":"IF(AB68=\"\",\"\",IF(I68=1,VLOOKUP(AB68,#REF!,2,FALSE),IF(I68=2,VLOOKUP(AB68,#REF!,2,FALSE))))","v":""},null,null,null,null,null,null,null,null,"",null,null,null,null,null,null,null,0,null,0,"",""]
[0,{"$f":"前年度登録!AE66","v":""},0,null,{"$f":"前年度登録!T66","v":0},{"$f":"前年度登録!DB66","v":""},{"$f":"前年度登録!AO66","v":""},{"$f":"前年度登録!DB66","v":""},{"$f":"前年度登録!AN66","v":""},{"$f":"前年度登録!DC66","v":""},{"$f":"前年度登録!DE66","v":0},{"$f":"前年度登録!DJ66","v":"00"},"三重",{"$f":"前年度登録!S66","v":0},null,"",{"$f":"IF(O69=\"\",\"\",HLOOKUP(O69,前年度登録!$AW$3:$CW$118,64,FALSE))","v":""},"","",null,"",null,"","",null,"",null,null,{"$f":"IF(AB69=\"\",\"\",IF(I69=1,VLOOKUP(AB69,#REF!,2,FALSE),IF(I69=2,VLOOKUP(AB69,#REF!,2,FALSE))))","v":""},null,null,null,null,null,null,null,null,"",null,null,null,null,null,null,null,0,null,0,"",""]
[0,{"$f":"前年度登録!AE67","v":""},0,null,{"$f":"前年度登録!T67","v":0},{"$f":"前年度登録!DB67","v":""},{"$f":"前年度登録!AO67","v":""},{"$f":"前年度登録!DB67","v":""},{"$f":"前年度登録!AN67","v":""},{"$f":"前年度登録!DC67","v":""},{"$f":"前年度登録!DE67","v":0},{"$f":"前年度登録!DJ67","v":"00"},"三重",{"$f":"前年度登録!S67","v":0},null,"",{"$f":"IF(O70=\"\",\"\",HLOOKUP(O70,前年度登録!$AW$3:$CW$118,65,FALSE))","v":""},"","",null,"",null,"","",null,"",null,null,{"$f":"IF(AB70=\"\",\"\",IF(I70=1,VLOOKUP(AB70,#REF!,2,FALSE),IF(I70=2,VLOOKUP(AB70,#REF!,2,FALSE))))","v":""},null,null,null,null,null,null,null,null,"",null,null,null,null,null,null,null,0,null,0,"",""]
[{"$f":"Y71","v":0},{"$f":"前年度登録!AE68","v":""},0,null,{"$f":"前年度登録!T68","v":0},{"$f":"前年度登録!DB68","v":""},{"$f":"前年度登録!AO68","v":""},{"$f":"前年度登録!DB68","v":""},{"$f":"前年度登録!AN68","v":""},{"$f":"前年度登録!DC68","v":""},{"$f":"前年度登録!DE68","v":0},{"$f":"前年度登録!DJ68","v":"00"},"三重",{"$f":"前年度登録!S68","v":0},null,"",{"$f":"IF(O71=\"\",\"\",HLOOKUP(O71,前年度登録!$AW$3:$CW$118,66,FALSE))","v":""},"","",null,"",null,"","",null,"",null,null,{"$f":"IF(AB71=\"\",\"\",IF(I71=1,VLOOKUP(AB71,#REF!,2,FALSE),IF(I71=2,VLOOKUP(AB71,#REF!,2,FALSE))))","v":""},null,null,null,null,null,null,null,null,"",null,null,null,null,null,null,null,{"$f":"IF(OR(AL71=1,T71=\"\"),0,1)","v":0},null,0,{"$f":"IF(I71=1,AV71,\"\")","v":""},{"$f":"IF(I71=2,AV71,\"\")","v":""}]
[0,{"$f":"前年度登録!AE69","v":""},{"$f":"Y72","v":0},null,{"$f":"前年度登録!T69","v":0},{"$f":"前年度登録!DB69","v":""},{"$f":"前年度登録!AO69","v":""},{"$f":"前年度登録!DB69","v":""},{"$f":"前年度登録!AN69","v":""},{"$f":"前年度登録!DC69","v":""},{"$f":"前年度登録!DE69","v":0},{"$f":"前年度登録!DJ69","v":"00"},"三重",{"$f":"前年度登録!S69","v":0},null,{"$f":"IF(O72=\"\",\"\",IF(I72=1,VLOOKUP(O72,$AM$19:$AO$29,3,FALSE),IF(I72=2,VLOOKUP(O72,$AM$32:$AO$41,3,FALSE))))","v":""},{"$f":"IF(O72=\"\",\"\",HLOOKUP(O72,前年度登録!$AW$3:$CW$118,67,FALSE))","v":""},{"$f":"IF(O72=\"\",\"\",0)","v":""},{"$f":"IF(O72=\"\",\"\",2)","v":""},null,{"$f":"IF(T72=\"\",\"\",IF(I72=1,VLOOKUP(T72,$AM$19:$AO$29,3,FALSE),IF(I72=2,VLOOKUP(T72,$AM$32:$AO$41,3,FALSE))))","v":""},null,{"$f":"IF(T72=\"\",\"\",0)","v":""},{"$f":"IF(T72=\"\",\"\",2)","v":""},null,{"$f":"IF(Y72=\"\",\"\",IF(I72=1,VLOOKUP(Y72,$AM$48:$AN$50,2,FALSE),IF(I72=2,VLOOKUP(Y72,$AM$51:$AN$53,2,FALSE))))","v":""},null,null,{"$f":"IF(AB72=\"\",\"\",IF(I72=1,VLOOKUP(AB72,#REF!,2,FALSE),IF(I72=2,VLOOKUP(AB72,#REF!,2,FALSE))))","v":""},null,null,null,null,null,null,null,null,{"$f":"IF(O72=\"\",\"\",1)","v":""},null,null,null,null,null,null,null,0,null,{"$f":"COUNT(P72,U72,Z72)","v":0},"",""]
[0,{"$f":"前年度登録!AE70","v":""},0,null,{"$f":"前年度登録!T70","v":0},{"$f":"前年度登録!DB70","v":""},{"$f":"前年度登録!AO70","v":""},{"$f":"前年度登録!DB70","v":""},{"$f":"前年度登録!AN70","v":""},{"$f":"前年度登録!DC70","v":""},{"$f":"前年度登録!DE70","v":0},{"$f":"前年度登録!DJ70","v":"00"},"三重",{"$f":"前年度登録!S70","v":0},null,"",{"$f":"IF(O73=\"\",\"\",HLOOKUP(O73,前年度登録!$AW$3:$CW$118,68,FALSE))","v":""},"","",null,"",null,"","",null,"",null,null,{"$f":"IF(AB73=\"\",\"\",IF(I73=1,VLOOKUP(AB73,#REF!,2,FALSE),IF(I73=2,VLOOKUP(AB73,#REF!,2,FALSE))))","v":""},null,null,null,null,null,null,null,null,"",null,null,null,null,null,null,null,0,null,0,"",""]
[0,{"$f":"前年度登録!AE71","v":""},0,null,{"$f":"前年度登録!T71","v":0},{"$f":"前年度登録!DB71","v":""},{"$f":"前年度登録!AO71","v":""},{"$f":"前年度登録!DB71","v":""},{"$f":"前年度登録!AN71","v":""},{"$f":"前年度登録!DC71","v":""},{"$f":"前年度登録!DE71","v":0},{"$f":"前年度登録!DJ71","v":"00"},"三重",{"$f":"前年度登録!S71","v":0},null,"",{"$f":"IF(O74=\"\",\"\",HLOOKUP(O74,前年度登録!$AW$3:$CW$118,69,FALSE))","v":""},"","",null,"",null,"","",null,"",null,null,{"$f":"IF(AB74=\"\",\"\",IF(I74=1,VLOOKUP(AB74,#REF!,2,FALSE),IF(I74=2,VLOOKUP(AB74,#REF!,2,FALSE))))","v":""},null,null,null,null,null,null,null,null,"",null,null,null,null,null,null,null,0,null,0,"",""]
[0,{"$f":"前年度登録!AE72","v":""},0,null,{"$f":"前年度登録!T72","v":0},{"$f":"前年度登録!DB72","v":""},{"$f":"前年度登録!AO72","v":""},{"$f":"前年度登録!DB72","v":""},{"$f":"前年度登録!AN72","v":""},{"$f":"前年度登録!DC72","v":""},{"$f":"前年度登録!DE72","v":0},{"$f":"前年度登録!DJ72","v":"00"},"三重",{"$f":"前年度登録!S72","v":0},null,"",{"$f":"IF(O75=\"\",\"\",HLOOKUP(O75,前年度登録!$AW$3:$CW$118,70,FALSE))","v":""},"","",null,"",null,"","",null,"",null,null,{"$f":"IF(AB75=\"\",\"\",IF(I75=1,VLOOKUP(AB75,#REF!,2,FALSE),IF(I75=2,VLOOKUP(AB75,#REF!,2,FALSE))))","v":""},null,null,null,null,null,null,null,null,"",null,null,null,null,null,null,null,0,null,0,"",""]
[0,{"$f":"前年度登録!AE73","v":""},0,null,{"$f":"前年度登録!T73","v":0},{"$f":"前年度登録!DB73","v":""},{"$f":"前年度登録!AO73","v":""},{"$f":"前年度登録!DB73","v":""},{"$f":"前年度登録!AN73","v":""},{"$f":"前年度登録!DC73","v":""},{"$f":"前年度登録!DE73","v":0},{"$f":"前年度登録!DJ73","v":"00"},"三重",{"$f":"前年度登録!S73","v":0},null,"",{"$f":"IF(O76=\"\",\"\",HLOOKUP(O76,前年度登録!$AW$3:$CW$118,71,FALSE))","v":""},"","",null,"",null,"","",null,"",null,null,{"$f":"IF(AB76=\"\",\"\",IF(I76=1,VLOOKUP(AB76,#REF!,2,FALSE),IF(I76=2,VLOOKUP(AB76,#REF!,2,FALSE))))","v":""},null,null,null,null,null,null,null,null,"",null,null,null,null,null,null,null,0,null,0,"",""]
[0,{"$f":"前年度登録!AE74","v":""},0,null,{"$f":"前年度登録!T74","v":0},{"$f":"前年度登録!DB74","v":""},{"$f":"前年度登録!AO74","v":""},{"$f":"前年度登録!DB74","v":""},{"$f":"前年度登録!AN74","v":""},{"$f":"前年度登録!DC74","v":""},{"$f":"前年度登録!DE74","v":0},{"$f":"前年度登録!DJ74","v":"00"},"三重",{"$f":"前年度登録!S74","v":0},null,"",{"$f":"IF(O77=\"\",\"\",HLOOKUP(O77,前年度登録!$AW$3:$CW$118,72,FALSE))","v":""},"","",null,"",null,"","",null,"",null,null,{"$f":"IF(AB77=\"\",\"\",IF(I77=1,VLOOKUP(AB77,#REF!,2,FALSE),IF(I77=2,VLOOKUP(AB77,#REF!,2,FALSE))))","v":""},null,null,null,null,null,null,null,null,"",null,null,null,null,null,null,null,0,null,0,"",""]
[0,{"$f":"前年度登録!AE75","v":""},0,null,{"$f":"前年度登録!T75","v":0},{"$f":"前年度登録!DB75","v":""},{"$f":"前年度登録!AO75","v":""},{"$f":"前年度登録!DB75","v":""},{"$f":"前年度登録!AN75","v":""},{"$f":"前年度登録!DC75","v":""},{"$f":"前年度登録!DE75","v":0},{"$f":"前年度登録!DJ75","v":"00"},"三重",{"$f":"前年度登録!S75","v":0},null,"",{"$f":"IF(O78=\"\",\"\",HLOOKUP(O78,前年度登録!$AW$3:$CW$118,73,FALSE))","v":""},"","",null,"",null,"","",null,"",null,null,{"$f":"IF(AB78=\"\",\"\",IF(I78=1,VLOOKUP(AB78,#REF!,2,FALSE),IF(I78=2,VLOOKUP(AB78,#REF!,2,FALSE))))","v":""},null,null,null,null,null,null,null,null,"",null,null,null,null,null,null,null,0,null,0,"",""]
[0,{"$f":"前年度登録!AE76","v":""},0,null,{"$f":"前年度登録!T76","v":0},{"$f":"前年度登録!DB76","v":""},{"$f":"前年度登録!AO76","v":""},{"$f":"前年度登録!DB76","v":""},{"$f":"前年度登録!AN76","v":""},{"$f":"前年度登録!DC76","v":""},{"$f":"前年度登録!DE76","v":0},{"$f":"前年度登録!DJ76","v":"00"},"三重",{"$f":"前年度登録!S76","v":0},null,"",{"$f":"IF(O79=\"\",\"\",HLOOKUP(O79,前年度登録!$AW$3:$CW$118,74,FALSE))","v":""},"","",null,"",null,"","",null,"",null,null,{"$f":"IF(AB79=\"\",\"\",IF(I79=1,VLOOKUP(AB79,#REF!,2,FALSE),IF(I79=2,VLOOKUP(AB79,#REF!,2,FALSE))))","v":""},null,null,null,null,null,null,null,null,"",null,null,null,null,null,null,null,0,null,0,"",""]
[0,{"$f":"前年度登録!AE77","v":""},0,null,{"$f":"前年度登録!T77","v":0},{"$f":"前年度登録!DB77","v":""},{"$f":"前年度登録!AO77","v":""},{"$f":"前年度登録!DB77","v":""},{"$f":"前年度登録!AN77","v":""},{"$f":"前年度登録!DC77","v":""},{"$f":"前年度登録!DE77","v":0},{"$f":"前年度登録!DJ77","v":"00"},"三重",{"$f":"前年度登録!S77","v":0},null,"",{"$f":"IF(O80=\"\",\"\",HLOOKUP(O80,前年度登録!$AW$3:$CW$118,75,FALSE))","v":""},"","",null,"",null,"","",null,"",null,null,{"$f":"IF(AB80=\"\",\"\",IF(I80=1,VLOOKUP(AB80,#REF!,2,FALSE),IF(I80=2,VLOOKUP(AB80,#REF!,2,FALSE))))","v":""},null,null,null,null,null,null,null,null,"",null,null,null,null,null,null,null,0,null,0,"",""]
[0,{"$f":"前年度登録!AE78","v":""},0,null,{"$f":"前年度登録!T78","v":0},{"$f":"前年度登録!DB78","v":""},{"$f":"前年度登録!AO78","v":""},{"$f":"前年度登録!DB78","v":""},{"$f":"前年度登録!AN78","v":""},{"$f":"前年度登録!DC78","v":""},{"$f":"前年度登録!DE78","v":0},{"$f":"前年度登録!DJ78","v":"00"},"三重",{"$f":"前年度登録!S78","v":0},null,"",{"$f":"IF(O81=\"\",\"\",HLOOKUP(O81,前年度登録!$AW$3:$CW$118,76,FALSE))","v":""},"","",null,"",null,"","",null,"",null,null,{"$f":"IF(AB81=\"\",\"\",IF(I81=1,VLOOKUP(AB81,#REF!,2,FALSE),IF(I81=2,VLOOKUP(AB81,#REF!,2,FALSE))))","v":""},null,null,null,null,null,null,null,null,"",null,null,null,null,null,null,null,0,null,0,"",""]
[0,{"$f":"前年度登録!AE79","v":""},0,null,{"$f":"前年度登録!T79","v":0},{"$f":"前年度登録!DB79","v":""},{"$f":"前年度登録!AO79","v":""},{"$f":"前年度登録!DB79","v":""},{"$f":"前年度登録!AN79","v":""},{"$f":"前年度登録!DC79","v":""},{"$f":"前年度登録!DE79","v":0},{"$f":"前年度登録!DJ79","v":"00"},"三重",{"$f":"前年度登録!S79","v":0},null,"",{"$f":"IF(O82=\"\",\"\",HLOOKUP(O82,前年度登録!$AW$3:$CW$118,77,FALSE))","v":""},"","",null,"",null,"","",null,"",null,null,{"$f":"IF(AB82=\"\",\"\",IF(I82=1,VLOOKUP(AB82,#REF!,2,FALSE),IF(I82=2,VLOOKUP(AB82,#REF!,2,FALSE))))","v":""},null,null,null,null,null,null,null,null,"",null,null,null,null,null,null,null,0,null,0,"",""]
[0,{"$f":"前年度登録!AE80","v":""},0,null,{"$f":"前年度登録!T80","v":0},{"$f":"前年度登録!DB80","v":""},{"$f":"前年度登録!AO80","v":""},{"$f":"前年度登録!DB80","v":""},{"$f":"前年度登録!AN80","v":""},{"$f":"前年度登録!DC80","v":""},{"$f":"前年度登録!DE80","v":0},{"$f":"前年度登録!DJ80","v":"00"},"三重",{"$f":"前年度登録!S80","v":0},null,"",{"$f":"IF(O83=\"\",\"\",HLOOKUP(O83,前年度登録!$AW$3:$CW$118,78,FALSE))","v":""},"","",null,"",null,"","",null,"",null,null,{"$f":"IF(AB83=\"\",\"\",IF(I83=1,VLOOKUP(AB83,#REF!,2,FALSE),IF(I83=2,VLOOKUP(AB83,#REF!,2,FALSE))))","v":""},null,null,null,null,null,null,null,null,"",null,null,null,null,null,null,null,0,null,0,"",""]
[0,{"$f":"前年度登録!AE81","v":""},0,null,{"$f":"前年度登録!T81","v":0},{"$f":"前年度登録!DB81","v":""},{"$f":"前年度登録!AO81","v":""},{"$f":"前年度登録!DB81","v":""},{"$f":"前年度登録!AN81","v":""},{"$f":"前年度登録!DC81","v":""},{"$f":"前年度登録!DE81","v":0},{"$f":"前年度登録!DJ81","v":"00"},"三重",{"$f":"前年度登録!S81","v":0},null,"",{"$f":"IF(O84=\"\",\"\",HLOOKUP(O84,前年度登録!$AW$3:$CW$118,79,FALSE))","v":""},"","",null,"",null,"","",null,"",null,null,{"$f":"IF(AB84=\"\",\"\",IF(I84=1,VLOOKUP(AB84,#REF!,2,FALSE),IF(I84=2,VLOOKUP(AB84,#REF!,2,FALSE))))","v":""},null,null,null,null,null,null,null,null,"",null,null,null,null,null,null,null,0,null,0,"",""]
[0,{"$f":"前年度登録!AE82","v":""},0,null,{"$f":"前年度登録!T82","v":0},{"$f":"前年度登録!DB82","v":""},{"$f":"前年度登録!AO82","v":""},{"$f":"前年度登録!DB82","v":""},{"$f":"前年度登録!AN82","v":""},{"$f":"前年度登録!DC82","v":""},{"$f":"前年度登録!DE82","v":0},{"$f":"前年度登録!DJ82","v":"00"},"三重",{"$f":"前年度登録!S82","v":0},null,"",{"$f":"IF(O85=\"\",\"\",HLOOKUP(O85,前年度登録!$AW$3:$CW$118,80,FALSE))","v":""},"","",null,"",null,"","",null,"",null,null,{"$f":"IF(AB85=\"\",\"\",IF(I85=1,VLOOKUP(AB85,#REF!,2,FALSE),IF(I85=2,VLOOKUP(AB85,#REF!,2,FALSE))))","v":""},null,null,null,null,null,null,null,null,"",null,null,null,null,null,null,null,0,null,0,"",""]
[0,{"$f":"前年度登録!AE83","v":""},0,null,{"$f":"前年度登録!T83","v":0},{"$f":"前年度登録!DB83","v":""},{"$f":"前年度登録!AO83","v":""},{"$f":"前年度登録!DB83","v":""},{"$f":"前年度登録!AN83","v":""},{"$f":"前年度登録!DC83","v":""},{"$f":"前年度登録!DE83","v":0},{"$f":"前年度登録!DJ83","v":"00"},"三重",{"$f":"前年度登録!S83","v":0},null,"",{"$f":"IF(O86=\"\",\"\",HLOOKUP(O86,前年度登録!$AW$3:$CW$118,81,FALSE))","v":""},"","",null,"",null,"","",null,"",null,null,{"$f":"IF(AB86=\"\",\"\",IF(I86=1,VLOOKUP(AB86,#REF!,2,FALSE),IF(I86=2,VLOOKUP(AB86,#REF!,2,FALSE))))","v":""},null,null,null,null,null,null,null,null,"",null,null,null,null,null,null,null,0,null,0,"",""]
[0,{"$f":"前年度登録!AE84","v":""},0,null,{"$f":"前年度登録!T84","v":0},{"$f":"前年度登録!DB84","v":""},{"$f":"前年度登録!AO84","v":""},{"$f":"前年度登録!DB84","v":""},{"$f":"前年度登録!AN84","v":""},{"$f":"前年度登録!DC84","v":""},{"$f":"前年度登録!DE84","v":0},{"$f":"前年度登録!DJ84","v":"00"},"三重",{"$f":"前年度登録!S84","v":0},null,"",{"$f":"IF(O87=\"\",\"\",HLOOKUP(O87,前年度登録!$AW$3:$CW$118,82,FALSE))","v":""},"","",null,"",null,"","",null,"",null,null,{"$f":"IF(AB87=\"\",\"\",IF(I87=1,VLOOKUP(AB87,#REF!,2,FALSE),IF(I87=2,VLOOKUP(AB87,#REF!,2,FALSE))))","v":""},null,null,null,null,null,null,null,null,"",null,null,null,null,null,null,null,0,null,0,"",""]
[0,{"$f":"前年度登録!AE85","v":""},0,null,{"$f":"前年度登録!T85","v":0},{"$f":"前年度登録!DB85","v":""},{"$f":"前年度登録!AO85","v":""},{"$f":"前年度登録!DB85","v":""},{"$f":"前年度登録!AN85","v":""},{"$f":"前年度登録!DC85","v":""},{"$f":"前年度登録!DE85","v":0},{"$f":"前年度登録!DJ85","v":"00"},"三重",{"$f":"前年度登録!S85","v":0},null,"",{"$f":"IF(O88=\"\",\"\",HLOOKUP(O88,前年度登録!$AW$3:$CW$118,83,FALSE))","v":""},"","",null,"",null,"","",null,"",null,null,{"$f":"IF(AB88=\"\",\"\",IF(I88=1,VLOOKUP(AB88,#REF!,2,FALSE),IF(I88=2,VLOOKUP(AB88,#REF!,2,FALSE))))","v":""},null,null,null,null,null,null,null,null,"",null,null,null,null,null,null,null,0,null,0,"",""]
[0,{"$f":"前年度登録!AE86","v":""},0,null,{"$f":"前年度登録!T86","v":0},{"$f":"前年度登録!DB86","v":""},{"$f":"前年度登録!AO86","v":""},{"$f":"前年度登録!DB86","v":""},{"$f":"前年度登録!AN86","v":""},{"$f":"前年度登録!DC86","v":""},{"$f":"前年度登録!DE86","v":0},{"$f":"前年度登録!DJ86","v":"00"},"三重",{"$f":"前年度登録!S86","v":0},null,"",{"$f":"IF(O89=\"\",\"\",HLOOKUP(O89,前年度登録!$AW$3:$CW$118,84,FALSE))","v":""},"","",null,"",null,"","",null,"",null,null,{"$f":"IF(AB89=\"\",\"\",IF(I89=1,VLOOKUP(AB89,#REF!,2,FALSE),IF(I89=2,VLOOKUP(AB89,#REF!,2,FALSE))))","v":""},null,null,null,null,null,null,null,null,"",null,null,null,null,null,null,null,0,null,0,"",""]
[0,{"$f":"前年度登録!AE87","v":""},0,null,{"$f":"前年度登録!T87","v":0},{"$f":"前年度登録!DB87","v":""},{"$f":"前年度登録!AO87","v":""},{"$f":"前年度登録!DB87","v":""},{"$f":"前年度登録!AN87","v":""},{"$f":"前年度登録!DC87","v":""},{"$f":"前年度登録!DE87","v":0},{"$f":"前年度登録!DJ87","v":"00"},"三重",{"$f":"前年度登録!S87","v":0},null,"",{"$f":"IF(O90=\"\",\"\",HLOOKUP(O90,前年度登録!$AW$3:$CW$118,85,FALSE))","v":""},"","",null,"",null,"","",null,"",null,null,{"$f":"IF(AB90=\"\",\"\",IF(I90=1,VLOOKUP(AB90,#REF!,2,FALSE),IF(I90=2,VLOOKUP(AB90,#REF!,2,FALSE))))","v":""},null,null,null,null,null,null,null,null,"",null,null,null,null,null,null,null,0,null,0,"",""]
[0,{"$f":"前年度登録!AE88","v":""},0,null,{"$f":"前年度登録!T88","v":0},{"$f":"前年度登録!DB88","v":""},{"$f":"前年度登録!AO88","v":""},{"$f":"前年度登録!DB88","v":""},{"$f":"前年度登録!AN88","v":""},{"$f":"前年度登録!DC88","v":""},{"$f":"前年度登録!DE88","v":0},{"$f":"前年度登録!DJ88","v":"00"},"三重",{"$f":"前年度登録!S88","v":0},null,"",{"$f":"IF(O91=\"\",\"\",HLOOKUP(O91,前年度登録!$AW$3:$CW$118,86,FALSE))","v":""},"","",null,"",null,"","",null,"",null,null,{"$f":"IF(AB91=\"\",\"\",IF(I91=1,VLOOKUP(AB91,#REF!,2,FALSE),IF(I91=2,VLOOKUP(AB91,#REF!,2,FALSE))))","v":""},null,null,null,null,null,null,null,null,"",null,null,null,null,null,null,null,0,null,0,"",""]
[0,{"$f":"前年度登録!AE89","v":""},0,null,{"$f":"前年度登録!T89","v":0},{"$f":"前年度登録!DB89","v":""},{"$f":"前年度登録!AO89","v":""},{"$f":"前年度登録!DB89","v":""},{"$f":"前年度登録!AN89","v":""},{"$f":"前年度登録!DC89","v":""},{"$f":"前年度登録!DE89","v":0},{"$f":"前年度登録!DJ89","v":"00"},"三重",{"$f":"前年度登録!S89","v":0},null,"",{"$f":"IF(O92=\"\",\"\",HLOOKUP(O92,前年度登録!$AW$3:$CW$118,87,FALSE))","v":""},"","",null,"",null,"","",null,"",null,null,{"$f":"IF(AB92=\"\",\"\",IF(I92=1,VLOOKUP(AB92,#REF!,2,FALSE),IF(I92=2,VLOOKUP(AB92,#REF!,2,FALSE))))","v":""},null,null,null,null,null,null,null,null,"",null,null,null,null,null,null,null,0,null,0,"",""]
[0,{"$f":"前年度登録!AE90","v":""},0,null,{"$f":"前年度登録!T90","v":0},{"$f":"前年度登録!DB90","v":""},{"$f":"前年度登録!AO90","v":""},{"$f":"前年度登録!DB90","v":""},{"$f":"前年度登録!AN90","v":""},{"$f":"前年度登録!DC90","v":""},{"$f":"前年度登録!DE90","v":0},{"$f":"前年度登録!DJ90","v":"00"},"三重",{"$f":"前年度登録!S90","v":0},null,"",{"$f":"IF(O93=\"\",\"\",HLOOKUP(O93,前年度登録!$AW$3:$CW$118,88,FALSE))","v":""},"","",null,"",null,"","",null,"",null,null,{"$f":"IF(AB93=\"\",\"\",IF(I93=1,VLOOKUP(AB93,#REF!,2,FALSE),IF(I93=2,VLOOKUP(AB93,#REF!,2,FALSE))))","v":""},null,null,null,null,null,null,null,null,"",null,null,null,null,null,null,null,0,null,0,"",""]
[0,{"$f":"前年度登録!AE91","v":""},0,null,{"$f":"前年度登録!T91","v":0},{"$f":"前年度登録!DB91","v":""},{"$f":"前年度登録!AO91","v":""},{"$f":"前年度登録!DB91","v":""},{"$f":"前年度登録!AN91","v":""},{"$f":"前年度登録!DC91","v":""},{"$f":"前年度登録!DE91","v":0},{"$f":"前年度登録!DJ91","v":"00"},"三重",{"$f":"前年度登録!S91","v":0},null,"",{"$f":"IF(O94=\"\",\"\",HLOOKUP(O94,前年度登録!$AW$3:$CW$118,89,FALSE))","v":""},"","",null,"",null,"","",null,"",null,null,{"$f":"IF(AB94=\"\",\"\",IF(I94=1,VLOOKUP(AB94,#REF!,2,FALSE),IF(I94=2,VLOOKUP(AB94,#REF!,2,FALSE))))","v":""},null,null,null,null,null,null,null,null,"",null,null,null,null,null,null,null,0,null,0,"",""]
[0,{"$f":"前年度登録!AE92","v":""},0,null,{"$f":"前年度登録!T92","v":0},{"$f":"前年度登録!DB92","v":""},{"$f":"前年度登録!AO92","v":""},{"$f":"前年度登録!DB92","v":""},{"$f":"前年度登録!AN92","v":""},{"$f":"前年度登録!DC92","v":""},{"$f":"前年度登録!DE92","v":0},{"$f":"前年度登録!DJ92","v":"00"},"三重",{"$f":"前年度登録!S92","v":0},null,"",{"$f":"IF(O95=\"\",\"\",HLOOKUP(O95,前年度登録!$AW$3:$CW$118,90,FALSE))","v":""},"","",null,"",null,"","",null,"",null,null,{"$f":"IF(AB95=\"\",\"\",IF(I95=1,VLOOKUP(AB95,#REF!,2,FALSE),IF(I95=2,VLOOKUP(AB95,#REF!,2,FALSE))))","v":""},null,null,null,null,null,null,null,null,"",null,null,null,null,null,null,null,0,null,0,"",""]
[0,{"$f":"前年度登録!AE93","v":""},0,null,{"$f":"前年度登録!T93","v":0},{"$f":"前年度登録!DB93","v":""},{"$f":"前年度登録!AO93","v":""},{"$f":"前年度登録!DB93","v":""},{"$f":"前年度登録!AN93","v":""},{"$f":"前年度登録!DC93","v":""},{"$f":"前年度登録!DE93","v":0},{"$f":"前年度登録!DJ93","v":"00"},"三重",{"$f":"前年度登録!S93","v":0},null,"",{"$f":"IF(O96=\"\",\"\",HLOOKUP(O96,前年度登録!$AW$3:$CW$118,91,FALSE))","v":""},"","",null,"",null,"","",null,"",null,null,{"$f":"IF(AB96=\"\",\"\",IF(I96=1,VLOOKUP(AB96,#REF!,2,FALSE),IF(I96=2,VLOOKUP(AB96,#REF!,2,FALSE))))","v":""},null,null,null,null,null,null,null,null,"",null,null,null,null,null,null,null,0,null,0,"",""]
[0,{"$f":"前年度登録!AE94","v":""},0,null,{"$f":"前年度登録!T94","v":0},{"$f":"前年度登録!DB94","v":""},{"$f":"前年度登録!AO94","v":""},{"$f":"前年度登録!DB94","v":""},{"$f":"前年度登録!AN94","v":""},{"$f":"前年度登録!DC94","v":""},{"$f":"前年度登録!DE94","v":0},{"$f":"前年度登録!DJ94","v":"00"},"三重",{"$f":"前年度登録!S94","v":0},null,"",{"$f":"IF(O97=\"\",\"\",HLOOKUP(O97,前年度登録!$AW$3:$CW$118,92,FALSE))","v":""},"","",null,"",null,"","",null,"",null,null,{"$f":"IF(AB97=\"\",\"\",IF(I97=1,VLOOKUP(AB97,#REF!,2,FALSE),IF(I97=2,VLOOKUP(AB97,#REF!,2,FALSE))))","v":""},null,null,null,null,null,null,null,null,"",null,null,null,null,null,null,null,0,null,0,"",""]
[0,{"$f":"前年度登録!AE95","v":""},0,null,{"$f":"前年度登録!T95","v":0},{"$f":"前年度登録!DB95","v":""},{"$f":"前年度登録!AO95","v":""},{"$f":"前年度登録!DB95","v":""},{"$f":"前年度登録!AN95","v":""},{"$f":"前年度登録!DC95","v":""},{"$f":"前年度登録!DE95","v":0},{"$f":"前年度登録!DJ95","v":"00"},"三重",{"$f":"前年度登録!S95","v":0},null,"",{"$f":"IF(O98=\"\",\"\",HLOOKUP(O98,前年度登録!$AW$3:$CW$118,93,FALSE))","v":""},"","",null,"",null,"","",null,"",null,null,{"$f":"IF(AB98=\"\",\"\",IF(I98=1,VLOOKUP(AB98,#REF!,2,FALSE),IF(I98=2,VLOOKUP(AB98,#REF!,2,FALSE))))","v":""},null,null,null,null,null,null,null,null,"",null,null,null,null,null,null,null,0,null,0,"",""]
[0,{"$f":"前年度登録!AE96","v":""},0,null,{"$f":"前年度登録!T96","v":0},{"$f":"前年度登録!DB96","v":""},{"$f":"前年度登録!AO96","v":""},{"$f":"前年度登録!DB96","v":""},{"$f":"前年度登録!AN96","v":""},{"$f":"前年度登録!DC96","v":""},{"$f":"前年度登録!DE96","v":0},{"$f":"前年度登録!DJ96","v":"00"},"三重",{"$f":"前年度登録!S96","v":0},null,"",{"$f":"IF(O99=\"\",\"\",HLOOKUP(O99,前年度登録!$AW$3:$CW$118,94,FALSE))","v":""},"","",null,"",null,"","",null,"",null,null,{"$f":"IF(AB99=\"\",\"\",IF(I99=1,VLOOKUP(AB99,#REF!,2,FALSE),IF(I99=2,VLOOKUP(AB99,#REF!,2,FALSE))))","v":""},null,null,null,null,null,null,null,null,"",null,null,null,null,null,null,null,0,null,0,"",""]
[0,{"$f":"前年度登録!AE97","v":""},0,null,{"$f":"前年度登録!T97","v":0},{"$f":"前年度登録!DB97","v":""},{"$f":"前年度登録!AO97","v":""},{"$f":"前年度登録!DB97","v":""},{"$f":"前年度登録!AN97","v":""},{"$f":"前年度登録!DC97","v":""},{"$f":"前年度登録!DE97","v":0},{"$f":"前年度登録!DJ97","v":"00"},"三重",{"$f":"前年度登録!S97","v":0},null,"",{"$f":"IF(O100=\"\",\"\",HLOOKUP(O100,前年度登録!$AW$3:$CW$118,95,FALSE))","v":""},"","",null,"",null,"","",null,"",null,null,{"$f":"IF(AB100=\"\",\"\",IF(I100=1,VLOOKUP(AB100,#REF!,2,FALSE),IF(I100=2,VLOOKUP(AB100,#REF!,2,FALSE))))","v":""},null,null,null,null,null,null,null,null,"",null,null,null,null,null,null,null,0,null,0,"",""]
[0,{"$f":"前年度登録!AE98","v":""},0,null,{"$f":"前年度登録!T98","v":0},{"$f":"前年度登録!DB98","v":""},{"$f":"前年度登録!AO98","v":""},{"$f":"前年度登録!DB98","v":""},{"$f":"前年度登録!AN98","v":""},{"$f":"前年度登録!DC98","v":""},{"$f":"前年度登録!DE98","v":0},{"$f":"前年度登録!DJ98","v":"00"},"三重",{"$f":"前年度登録!S98","v":0},null,"",{"$f":"IF(O101=\"\",\"\",HLOOKUP(O101,前年度登録!$AW$3:$CW$118,96,FALSE))","v":""},"","",null,"",null,"","",null,"",null,null,{"$f":"IF(AB101=\"\",\"\",IF(I101=1,VLOOKUP(AB101,#REF!,2,FALSE),IF(I101=2,VLOOKUP(AB101,#REF!,2,FALSE))))","v":""},null,null,null,null,null,null,null,null,"",null,null,null,null,null,null,null,0,null,0,"",""]
[0,{"$f":"前年度登録!AE99","v":""},0,null,{"$f":"前年度登録!T99","v":0},{"$f":"前年度登録!DB99","v":""},{"$f":"前年度登録!AO99","v":""},{"$f":"前年度登録!DB99","v":""},{"$f":"前年度登録!AN99","v":""},{"$f":"前年度登録!DC99","v":""},{"$f":"前年度登録!DE99","v":0},{"$f":"前年度登録!DJ99","v":"00"},"三重",{"$f":"前年度登録!S99","v":0},null,"",{"$f":"IF(O102=\"\",\"\",HLOOKUP(O102,前年度登録!$AW$3:$CW$118,97,FALSE))","v":""},"","",null,"",null,"","",null,"",null,null,{"$f":"IF(AB102=\"\",\"\",IF(I102=1,VLOOKUP(AB102,#REF!,2,FALSE),IF(I102=2,VLOOKUP(AB102,#REF!,2,FALSE))))","v":""},null,null,null,null,null,null,null,null,"",null,null,null,null,null,null,null,0,null,0,"",""]
[{"$f":"Y103","v":0},{"$f":"前年度登録!AE100","v":""},0,null,{"$f":"前年度登録!T100","v":0},{"$f":"前年度登録!DB100","v":""},{"$f":"前年度登録!AO100","v":""},{"$f":"前年度登録!DB100","v":""},{"$f":"前年度登録!AN100","v":""},{"$f":"前年度登録!DC100","v":""},{"$f":"前年度登録!DE100","v":0},{"$f":"前年度登録!DJ100","v":"00"},"三重",{"$f":"前年度登録!S100","v":0},null,"",{"$f":"IF(O103=\"\",\"\",HLOOKUP(O103,前年度登録!$AW$3:$CW$118,98,FALSE))","v":""},"","",null,"",null,"","",null,"",null,null,{"$f":"IF(AB103=\"\",\"\",IF(I103=1,VLOOKUP(AB103,#REF!,2,FALSE),IF(I103=2,VLOOKUP(AB103,#REF!,2,FALSE))))","v":""},null,null,null,null,null,null,null,null,"",null,null,null,null,null,null,null,{"$f":"IF(OR(AL103=1,T103=\"\"),0,1)","v":0},null,0,{"$f":"IF(I103=1,AV103,\"\")","v":""},{"$f":"IF(I103=2,AV103,\"\")","v":""}]
[0,{"$f":"前年度登録!AE101","v":""},0,null,{"$f":"前年度登録!T101","v":0},{"$f":"前年度登録!DB101","v":""},{"$f":"前年度登録!AO101","v":""},{"$f":"前年度登録!DB101","v":""},{"$f":"前年度登録!AN101","v":""},{"$f":"前年度登録!DC101","v":""},{"$f":"前年度登録!DE101","v":0},{"$f":"前年度登録!DJ101","v":"00"},"三重",{"$f":"前年度登録!S101","v":0},null,"",{"$f":"IF(O104=\"\",\"\",HLOOKUP(O104,前年度登録!$AW$3:$CW$118,99,FALSE))","v":""},"","",null,"",null,"","",null,"",null,null,{"$f":"IF(AB104=\"\",\"\",IF(I104=1,VLOOKUP(AB104,#REF!,2,FALSE),IF(I104=2,VLOOKUP(AB104,#REF!,2,FALSE))))","v":""},null,null,null,null,null,null,null,null,"",null,null,null,null,null,null,null,0,null,0,"",""]
[0,{"$f":"前年度登録!AE102","v":""},0,null,{"$f":"前年度登録!T102","v":0},{"$f":"前年度登録!DB102","v":""},{"$f":"前年度登録!AO102","v":""},{"$f":"前年度登録!DB102","v":""},{"$f":"前年度登録!AN102","v":""},{"$f":"前年度登録!DC102","v":""},{"$f":"前年度登録!DE102","v":0},{"$f":"前年度登録!DJ102","v":"00"},"三重",{"$f":"前年度登録!S102","v":0},null,"",{"$f":"IF(O105=\"\",\"\",HLOOKUP(O105,前年度登録!$AW$3:$CW$118,100,FALSE))","v":""},"","",null,"",null,"","",null,"",null,null,{"$f":"IF(AB105=\"\",\"\",IF(I105=1,VLOOKUP(AB105,#REF!,2,FALSE),IF(I105=2,VLOOKUP(AB105,#REF!,2,FALSE))))","v":""},null,null,null,null,null,null,null,null,"",null,null,null,null,null,null,null,0,null,0,"",""]
[0,{"$f":"前年度登録!AE103","v":""},0,null,{"$f":"前年度登録!T103","v":0},{"$f":"前年度登録!DB103","v":""},{"$f":"前年度登録!AO103","v":""},{"$f":"前年度登録!DB103","v":""},{"$f":"前年度登録!AN103","v":""},{"$f":"前年度登録!DC103","v":""},{"$f":"前年度登録!DE103","v":0},{"$f":"前年度登録!DJ103","v":"00"},"三重",{"$f":"前年度登録!S103","v":0},null,"",{"$f":"IF(O106=\"\",\"\",HLOOKUP(O106,前年度登録!$AW$3:$CW$118,101,FALSE))","v":""},"","",null,"",null,"","",null,"",null,null,null,null,null,null,null,null,null,null,null,"",null,null,null,null,null,null,null,0,null,0,"",""]
[0,{"$f":"前年度登録!AE104","v":""},0,null,{"$f":"前年度登録!T104","v":0},{"$f":"前年度登録!DB104","v":""},{"$f":"前年度登録!AO104","v":""},{"$f":"前年度登録!DB104","v":""},{"$f":"前年度登録!AN104","v":""},{"$f":"前年度登録!DC104","v":""},{"$f":"前年度登録!DE104","v":0},{"$f":"前年度登録!DJ104","v":"00"},"三重",{"$f":"前年度登録!S104","v":0},null,"",{"$f":"IF(O107=\"\",\"\",HLOOKUP(O107,前年度登録!$AW$3:$CW$118,102,FALSE))","v":""},"","",null,"",null,"","",null,"",null,null,null,null,null,null,null,null,null,null,null,"",null,null,null,null,null,null,null,0,null,0,"",""]
[0,{"$f":"前年度登録!AE105","v":""},0,null,{"$f":"前年度登録!T105","v":0},{"$f":"前年度登録!DB105","v":""},{"$f":"前年度登録!AO105","v":""},{"$f":"前年度登録!DB105","v":""},{"$f":"前年度登録!AN105","v":""},{"$f":"前年度登録!DC105","v":""},{"$f":"前年度登録!DE105","v":0},{"$f":"前年度登録!DJ105","v":"00"},"三重",{"$f":"前年度登録!S105","v":0},null,"",{"$f":"IF(O108=\"\",\"\",HLOOKUP(O108,前年度登録!$AW$3:$CW$118,103,FALSE))","v":""},"","",null,"",null,"","",null,"",null,null,null,null,null,null,null,null,null,null,null,"",null,null,null,null,null,null,null,0,null,0,"",""]
[0,{"$f":"前年度登録!AE106","v":""},0,null,{"$f":"前年度登録!T106","v":0},{"$f":"前年度登録!DB106","v":""},{"$f":"前年度登録!AO106","v":""},{"$f":"前年度登録!DB106","v":""},{"$f":"前年度登録!AN106","v":""},{"$f":"前年度登録!DC106","v":""},{"$f":"前年度登録!DE106","v":0},{"$f":"前年度登録!DJ106","v":"00"},"三重",{"$f":"前年度登録!S106","v":0},null,"",{"$f":"IF(O109=\"\",\"\",HLOOKUP(O109,前年度登録!$AW$3:$CW$118,104,FALSE))","v":""},"","",null,"",null,"","",null,"",null,null,null,null,null,null,null,null,null,null,null,"",null,null,null,null,null,null,null,0,null,0,"",""]
[0,{"$f":"前年度登録!AE107","v":""},0,null,{"$f":"前年度登録!T107","v":0},{"$f":"前年度登録!DB107","v":""},{"$f":"前年度登録!AO107","v":""},{"$f":"前年度登録!DB107","v":""},{"$f":"前年度登録!AN107","v":""},{"$f":"前年度登録!DC107","v":""},{"$f":"前年度登録!DE107","v":0},{"$f":"前年度登録!DJ107","v":"00"},"三重",{"$f":"前年度登録!S107","v":0},null,"",{"$f":"IF(O110=\"\",\"\",HLOOKUP(O110,前年度登録!$AW$3:$CW$118,105,FALSE))","v":""},"","",null,"",null,"","",null,"",null,null,null,null,null,null,null,null,null,null,null,"",null,null,null,null,null,null,null,0,null,0,"",""]
[0,{"$f":"前年度登録!AE108","v":""},0,null,{"$f":"前年度登録!T108","v":0},{"$f":"前年度登録!DB108","v":""},{"$f":"前年度登録!AO108","v":""},{"$f":"前年度登録!DB108","v":""},{"$f":"前年度登録!AN108","v":""},{"$f":"前年度登録!DC108","v":""},{"$f":"前年度登録!DE108","v":0},{"$f":"前年度登録!DJ108","v":"00"},"三重",{"$f":"前年度登録!S108","v":0},null,"",{"$f":"IF(O111=\"\",\"\",HLOOKUP(O111,前年度登録!$AW$3:$CW$118,106,FALSE))","v":""},"","",null,"",null,"","",null,"",null,null,null,null,null,null,null,null,null,null,null,"",null,null,null,null,null,null,null,0,null,0,"",""]
[0,{"$f":"前年度登録!AE109","v":""},0,null,{"$f":"前年度登録!T109","v":0},{"$f":"前年度登録!DB109","v":""},{"$f":"前年度登録!AO109","v":""},{"$f":"前年度登録!DB109","v":""},{"$f":"前年度登録!AN109","v":""},{"$f":"前年度登録!DC109","v":""},{"$f":"前年度登録!DE109","v":0},{"$f":"前年度登録!DJ109","v":"00"},"三重",{"$f":"前年度登録!S109","v":0},null,"",{"$f":"IF(O112=\"\",\"\",HLOOKUP(O112,前年度登録!$AW$3:$CW$118,107,FALSE))","v":""},"","",null,"",null,"","",null,"",null,null,null,null,null,null,null,null,null,null,null,"",null,null,null,null,null,null,null,0,null,0,"",""]
[0,{"$f":"前年度登録!AE110","v":""},0,null,{"$f":"前年度登録!T110","v":0},{"$f":"前年度登録!DB110","v":""},{"$f":"前年度登録!AO110","v":""},{"$f":"前年度登録!DB110","v":""},{"$f":"前年度登録!AN110","v":""},{"$f":"前年度登録!DC110","v":""},{"$f":"前年度登録!DE110","v":0},{"$f":"前年度登録!DJ110","v":"00"},"三重",{"$f":"前年度登録!S110","v":0},null,"",{"$f":"IF(O113=\"\",\"\",HLOOKUP(O113,前年度登録!$AW$3:$CW$118,108,FALSE))","v":""},"","",null,"",null,"","",null,"",null,null,null,null,null,null,null,null,null,null,null,"",null,null,null,null,null,null,null,0,null,0,"",""]
[0,{"$f":"前年度登録!AE111","v":""},0,null,{"$f":"前年度登録!T111","v":0},{"$f":"前年度登録!DB111","v":""},{"$f":"前年度登録!AO111","v":""},{"$f":"前年度登録!DB111","v":""},{"$f":"前年度登録!AN111","v":""},{"$f":"前年度登録!DC111","v":""},{"$f":"前年度登録!DE111","v":0},{"$f":"前年度登録!DJ111","v":"00"},"三重",{"$f":"前年度登録!S111","v":0},null,"",{"$f":"IF(O114=\"\",\"\",HLOOKUP(O114,前年度登録!$AW$3:$CW$118,109,FALSE))","v":""},"","",null,"",null,"","",null,"",null,null,null,null,null,null,null,null,null,null,null,"",null,null,null,null,null,null,null,0,null,0,"",""]
[0,{"$f":"前年度登録!AE112","v":""},0,null,{"$f":"前年度登録!T112","v":0},{"$f":"前年度登録!DB112","v":""},{"$f":"前年度登録!AO112","v":""},{"$f":"前年度登録!DB112","v":""},{"$f":"前年度登録!AN112","v":""},{"$f":"前年度登録!DC112","v":""},{"$f":"前年度登録!DE112","v":0},{"$f":"前年度登録!DJ112","v":"00"},"三重",{"$f":"前年度登録!S112","v":0},null,"",{"$f":"IF(O115=\"\",\"\",HLOOKUP(O115,前年度登録!$AW$3:$CW$118,110,FALSE))","v":""},"","",null,"",null,"","",null,"",null,null,null,null,null,null,null,null,null,null,null,"",null,null,null,null,null,null,null,0,null,0,"",""]
[0,{"$f":"前年度登録!AE113","v":""},0,null,{"$f":"前年度登録!T113","v":0},{"$f":"前年度登録!DB113","v":""},{"$f":"前年度登録!AO113","v":""},{"$f":"前年度登録!DB113","v":""},{"$f":"前年度登録!AN113","v":""},{"$f":"前年度登録!DC113","v":""},{"$f":"前年度登録!DE113","v":0},{"$f":"前年度登録!DJ113","v":"00"},"三重",{"$f":"前年度登録!S113","v":0},null,"",{"$f":"IF(O116=\"\",\"\",HLOOKUP(O116,前年度登録!$AW$3:$CW$118,111,FALSE))","v":""},"","",null,"",null,"","",null,"",null,null,{"$f":"IF(AB116=\"\",\"\",IF(I116=1,VLOOKUP(AB116,#REF!,2,FALSE),IF(I116=2,VLOOKUP(AB116,#REF!,2,FALSE))))","v":""},null,null,null,null,null,null,null,null,"",null,null,null,null,null,null,null,0,null,0,"",""]
[null,null,null,null,null,null,null,null,null,null,null,null,null,null,null,null,null,null,null,null,null,null,null,null,null,null,null,null,null,null,null,{"$f":"SUM(AL7:AL116)","v":0},null,null,null,null,null,null,null,null,null,{"$f":"SUM(AV7:AV116)","v":0},{"$f":"SUM(AW7:AW116)","v":0},{"$f":"SUM(AX7:AX116)","v":0},{"$f":"SUM(AY6:AY115)","v":0},{"$f":"SUM(AT7:AT116)","v":0}]

{"sheet":"所属コード","index":2,"n_rows":189,"n_cols":7,"rows_kept":189,"cut":false,"hidden":true,"merged":[]}
["所属名","所属NO","所属名","所属名略称","所属地NO"]
["成徳","235001","成徳","桑名市",100,null,"桑員"]
["明正","235002","明正","桑名市",100,null,"桑員"]
["光風","235003","光風","桑名市",100,null,"桑員"]
["陽和","235004","陽和","桑名市",100,null,"桑員"]
["正和","235005","正和","桑名市",100,null,"桑員"]
["陵成","235006","陵成","桑名市",100,null,"桑員"]
["光陵","235007","光陵","桑名市",100,null,"桑員"]
["多度","235008","多度","桑名市",100,null,"桑員"]
["長島","235009","長島","桑名市",100,null,"桑員"]
["津田学園","235010","津田学園","桑名市",100,null,"桑員"]
["木曽岬","235011","木曽岬","桑名郡",100,null,"桑員"]
["北勢","235012","北勢","いなべ市",100,null,"桑員"]
["員弁","235013","員弁","いなべ市",100,null,"桑員"]
["大安","235014","大安","いなべ市",100,null,"桑員"]
["東員第一","235015","東員第一","員弁郡",100,null,"桑員"]
["東員第二","235016","東員第二","員弁郡",100,null,"桑員"]
["藤原","235017","藤原","いなべ市",100,null,"桑員"]
["中部","235018","中部","四日市",101,null,"三泗"]
["港","235019","港","四日市",101,null,"三泗"]
["塩浜","235020","塩浜","四日市",101,null,"三泗"]
["山手","235021","山手","四日市",101,null,"三泗"]
["富洲原","235022","富洲原","四日市",101,null,"三泗"]
["富田","235023","富田","四日市",101,null,"三泗"]
["笹川","235024","笹川","四日市",101,null,"三泗"]
["四日市南","235025","四日市南","四日市",101,null,"三泗"]
["西陵","235026","西陵","四日市",101,null,"三泗"]
["三滝","235027","三滝","四日市",101,null,"三泗"]
["大池","235028","大池","四日市",101,null,"三泗"]
["朝明","235029","朝明","四日市",101,null,"三泗"]
["保々","235030","保々","四日市",101,null,"三泗"]
["常磐","235031","常磐","四日市",101,null,"三泗"]
["西笹川","235032","西笹川","四日市",101,null,"三泗"]
["三重平","235033","三重平","四日市",101,null,"三泗"]
["羽津","235034","羽津","四日市",101,null,"三泗"]
["西朝明","235035","西朝明","四日市",101,null,"三泗"]
["桜","235036","桜","四日市",101,null,"三泗"]
["内部","235037","内部","四日市",101,null,"三泗"]
["暁","235038","暁","四日市",101,null,"三泗"]
["海星","235039","海星","四日市",101,null,"三泗"]
["ﾒﾘﾉｰﾙ","235040","ﾒﾘﾉｰﾙ","四日市",101,null,"三泗"]
["菰野","235041","菰野","三重郡",101,null,"三泗"]
["八風","235042","八風","三重郡",101,null,"三泗"]
["楠","235043","楠","四日市",101,null,"三泗"]
["朝日","235044","朝日","三重郡",101,null,"三泗"]
["川越","235045","川越","三重郡",101,null,"三泗"]
["平田野","235046","平田野","鈴鹿市",103,null,"鈴亀"]
["白鳥","235047","白鳥","鈴鹿市",103,null,"鈴亀"]
["神戸","235048","神戸","鈴鹿市",103,null,"鈴亀"]
["大木","235049","大木","鈴鹿市",103,null,"鈴亀"]
["千代崎","235050","千代崎","鈴鹿市",103,null,"鈴亀"]
["白子","235051","白子","鈴鹿市",103,null,"鈴亀"]
["天栄","235052","天栄","鈴鹿市",103,null,"鈴亀"]
["鈴峰","235053","鈴峰","鈴鹿市",103,null,"鈴亀"]
["鼓ヶ浦","235054","鼓ヶ浦","鈴鹿市",103,null,"鈴亀"]
["創徳","235055","創徳","鈴鹿市",103,null,"鈴亀"]
["鈴鹿","235056","鈴鹿","鈴鹿市",103,null,"鈴亀"]
["亀山","235057","亀山","亀山市",103,null,"鈴亀"]
["亀山中部","235058","亀山中部","亀山市",103,null,"鈴亀"]
["関","235059","関","亀山市",103,null,"鈴亀"]
["橋北","235060","橋北","津市",104,null,"津"]
["東橋内","235061","東橋内","津市",104,null,"津"]
["西橋内","235062","西橋内","津市",104,null,"津"]
["橋南","235063","橋南","津市",104,null,"津"]
["南郊","235064","南郊","津市",104,null,"津"]
["西郊","235065","西郊","津市",104,null,"津"]
["一身田","235066","一身田","津市",104,null,"津"]
["一身田国児","235067","一身田国児","津市",104,null,"津"]
["南が丘","235068","南が丘","津市",104,null,"津"]
["高田","235069","高田","津市",104,null,"津"]
["セントヨゼフ","235070","セントヨゼフ","津市",104,null,"津"]
["三重大附属","235071","三重大附属","津市",104,null,"津"]
["豊里","235072","豊里","津市",104,null,"津"]
["朝陽","235073","朝陽","津市",104,null,"津"]
["芸濃","235074","芸濃","津市",104,null,"津"]
["美里","235075","美里","津市",104,null,"津"]
["東観","235076","東観","津市",104,null,"津"]
["久居","235077","久居","津市",104,null,"津"]
["久居西","235078","久居西","津市",104,null,"津"]
["久居東","235079","久居東","津市",104,null,"津"]
["香海","235080","香海","津市",104,null,"津"]
["一志","235081","一志","津市",104,null,"津"]
["白山","235082","白山","津市",104,null,"津"]
["嬉野","235083","嬉野","松阪市",105,null,"松多"]
["美杉","235084","美杉","津市",104,null,"津"]
["三雲","235085","三雲","松阪市",105,null,"松多"]
["殿町","235086","殿町","松阪市",105,null,"松多"]
["鎌田","235087","鎌田","松阪市",105,null,"松多"]
["久保","235088","久保","松阪市",105,null,"松多"]
["松阪東部","235089","松阪東部","松阪市",105,null,"松多"]
["松阪中部","235090","松阪中部","松阪市",105,null,"松多"]
["大江","235091","大江","松阪市",105,null,"松多"]
["西","235092","西","松阪市",105,null,"松多"]
["三重","235093","三重","松阪市",105,null,"松多"]
["飯南","235094","飯南","松阪市",105,null,"松多"]
["飯高西","235095","飯高西","松阪市",105,null,"松多"]
["飯高東","235096","飯高東","松阪市",105,null,"松多"]
["多気","235097","多気","多気郡",105,null,"松多"]
["明和","235098","明和","多気郡",105,null,"松多"]
["協和","235099","協和","多気郡",105,null,"松多"]
["大台","235100","大台","多気郡",105,null,"松多"]
["勢和","235101","勢和","多気郡",105,null,"松多"]
["多気宮川","235102","多気宮川","多気郡",105,null,"松多"]
["倉田山","235103","倉田山","伊勢市",106,null,"伊度"]
["厚生","235104","厚生","伊勢市",106,null,"伊度"]
["伊勢宮川","235105","伊勢宮川","伊勢市",106,null,"伊度"]
["伊勢港","235106","伊勢港","伊勢市",106,null,"伊度"]
["豊浜","235107","豊浜","伊勢市",106,null,"伊度"]
["北浜","235108","北浜","伊勢市",106,null,"伊度"]
["沼木","235109","沼木","伊勢市",106,null,"伊度"]
["城田","235110","城田","伊勢市",106,null,"伊度"]
["五十鈴","235111","五十鈴","伊勢市",106,null,"伊度"]
["皇學館","235112","皇學館","伊勢市",106,null,"伊度"]
["二見","235113","二見","伊勢市",106,null,"伊度"]
["御薗","235114","御薗","伊勢市",106,null,"伊度"]
["小俣","235115","小俣","伊勢市",106,null,"伊度"]
["玉城","235116","玉城","度会郡",106,null,"伊度"]
["大宮","235117","大宮","度会郡",106,null,"伊度"]
["大紀","235119","大紀","度会郡",106,null,"伊度"]
["南島","235121","南島","度会郡",106,null,"伊度"]
["南島西","235122","南島西","度会郡",106,null,"伊度"]
["南勢","235123","南勢","度会郡",106,null,"伊度"]
["度会","235124","度会","度会郡",106,null,"伊度"]
["鳥羽東","235125","鳥羽東","鳥羽市",107,null,"鳥志"]
["答志","235126","答志","鳥羽市",107,null,"鳥志"]
["神島","235127","神島","鳥羽市",107,null,"鳥志"]
["加茂","235128","加茂","鳥羽市",107,null,"鳥志"]
["鏡浦","235129","鏡浦","鳥羽市",107,null,"鳥志"]
["長岡","235130","長岡","鳥羽市",107,null,"鳥志"]
["浜島","235131","浜島","志摩市",107,null,"鳥志"]
["波切","235132","波切","志摩市",107,null,"鳥志"]
["船越","235133","船越","志摩市",107,null,"鳥志"]
["片田","235134","片田","志摩市",107,null,"鳥志"]
["和具","235135","和具","志摩市",107,null,"鳥志"]
["越賀","235136","越賀","志摩市",107,null,"鳥志"]
["文岡","235137","文岡","志摩市",107,null,"鳥志"]
["東海","235138","東海","志摩市",107,null,"鳥志"]
["安乗","235139","安乗","志摩市",107,null,"鳥志"]
["磯部","235140","磯部","志摩市",107,null,"鳥志"]
["的矢","235141","的矢","志摩市",107,null,"鳥志"]
["崇広","235142","崇広","伊賀市",108,null,"伊賀"]
["城東","235143","城東","伊賀市",108,null,"伊賀"]
["緑ヶ丘","235144","緑ヶ丘","伊賀市",108,null,"伊賀"]
["成和","235146","成和","伊賀市",108,null,"伊賀"]
["丸山","235147","丸山","伊賀市",108,null,"伊賀"]
["日生付属","235148","日生付属","伊賀市",108,null,"伊賀"]
["名張","235149","名張","名張市",109,null,"名張"]
["赤目","235150","赤目","名張市",109,null,"名張"]
["桔梗が丘","235151","桔梗が丘","名張市",109,null,"名張"]
["名張北","235152","名張北","名張市",109,null,"名張"]
["南","235153","南","名張市",109,null,"名張"]
["青山","235154","青山","伊賀市",109,null,"名張"]
["柘植","235155","柘植","伊賀市",109,null,"名張"]
["霊峰","235156","霊峰","伊賀市",109,null,"名張"]
["島ヶ原","235157","島ヶ原","伊賀市",109,null,"名張"]
["阿山","235158","阿山","伊賀市",109,null,"名張"]
["大山田","235159","大山田","伊賀市",109,null,"名張"]
["尾鷲","235160","尾鷲","尾鷲市",109,null,"名張"]
["九鬼","235161","九鬼","尾鷲市",110,null,"尾北"]
["北輪内","235162","北輪内","尾鷲市",110,null,"尾北"]
["輪内","235163","輪内","尾鷲市",110,null,"尾北"]
["紀北","235164","紀北","北牟婁",110,null,"尾北"]
["赤羽","235165","赤羽","北牟婁",110,null,"尾北"]
["潮南","235166","潮南","北牟婁",110,null,"尾北"]
["三船","235167","三船","北牟婁",110,null,"尾北"]
["荒坂","235168","荒坂","熊野市",111,null,"熊南"]
["新鹿","235169","新鹿","熊野市",111,null,"熊南"]
["木本","235170","木本","熊野市",111,null,"熊南"]
["有馬","235171","有馬","熊野市",111,null,"熊南"]
["育生","235172","育生","熊野市",111,null,"熊南"]
["神上","235173","神上","熊野市",111,null,"熊南"]
["五郷","235174","五郷","熊野市",111,null,"熊南"]
["飛鳥","235175","飛鳥","熊野市",111,null,"熊南"]
["御浜","235176","御浜","南牟婁",111,null,"熊南"]
["阿田和","235177","阿田和","南牟婁",111,null,"熊南"]
["尾呂志学園","235178","尾呂志学園","南牟婁",111,null,"熊南"]
["相野谷","235179","相野谷","南牟婁",111,null,"熊南"]
["入鹿","235180","入鹿","南牟婁",111,null,"熊南"]
["矢渕","235181","矢渕","南牟婁",111,null,"熊南"]
["Y_W_C","230082","Y_W_C","三重",101,null,"三泗"]
["四日市陸上","239128","四日市陸上","三重",101,null,"三泗"]
["ASSA-TC","230081","ASSA-TC","三重",103,null,"鈴亀"]
["イムラＡＡ","239125","イムラＡＡ","三重",103,null,"鈴亀"]
["橋南スポク","230096","橋南スポク","三重",104,null,"津"]
["J＆E久居","239127","J＆E久居","三重",104,null,"津"]
["伊賀TC","230092","伊賀ＴＣ","三重",108,null,"伊賀"]
["上野ＡＣ","239125","上野ＡＣ","三重",108,null,"伊賀"]
["名張ｸﾗﾌﾞ","230116","名張クラブ","三重",109,null,"名張"]
["熊野ＲＣ","230115","熊野ＲＣ","三重",111,null,"熊南"]

{"sheet":"1","index":3,"n_rows":1,"n_cols":4,"rows_kept":1,"cut":false,"hidden":true,"merged":[]}
[1,"選　手","コード","コード"]